{"text_format":"1","workbook":"xlsx","n_sheets":3,"sheets":["Neu 2024","Suche","Hilfstabelle"],"not_rendered":{"charts":0,"images":0,"macros":1,"external_links":1,"defined_names":4,"comments":0,"pivot_tables":0},"unopened":[],"bounds":{"document_bytes":16777216,"sheet_cells":100000,"rows_first":2000,"rows_last":500,"rows_between":2000,"halvings":0,"cell_chars":16384,"cell_head_chars":4096},"cells_cut":0,"cells_raw":0,"read":"whole","date_system":"1900"}

{"sheet":"Neu 2024","index":0,"n_rows":899,"n_cols":16,"rows_kept":899,"cut":false,"hidden":false,"merged":[[1,0,1,1]]}
["Mein Verein"]
[{"$f":"TODAY()","v":"2025-01-20"}]
["Verein:","Vereinsname",null,"Vorstand Präsident:","Name Präsi",null,"Dirigent:","Name Dirigent"]
["Ort:","Wohnort",null,"Notenverwalter:","Name Archivar",null,"Kassierer:","Name Kassier"]
["Anzahl Stücke:",{"$f":"COUNTA($B$7:$B$2000)","v":893}]
["Nr.","Titel","Stückart","Beschrieb","Komponist","Arrangeur","Schwere\ngrad","Musikverlag","Jahr","Spender","Noten\nformat","Einzel","Partitur","Kompl","Digital \nNoten","Hörprobe\nMP3"]
[1,"Amboss-Polka","Polka",".","Parlow Albert","P.Kühn","mittel","Ruh Musik AG",2000,".","A4",".",".",".","Beispiel","Hörprobe MP3"]
[2,"ABBA Gold","Modern",".",".","Ron Sebrets","mittel","De Haske",2001,".","A4",".","X",".",".","."]
[3,"Amazing Grace","Gospel",".",".","Schneider Manfred","leicht","Rundel GmbH",2000,".","C5",".",".",".",".","."]
[4,"African Symphony","Symphonie",".","Van McCoy","Naohiro Iwai","mittel","De Haske",2000,".","A4",".",".",".",".","."]
[5,"Blumengeflüster","Walzer",".","Stolc Emil","Weinkopf Gerald","mittel","Ruh Musik AG",2000,".","A4",".",".",".",".","."]
[6,"One day I'll fly away",".",".","Jennings Will/Sample Joe","Hautvast Willy","mittel","Ruh Musik AG",".",".","A4",".",".",".",".","."]
[7,"Carmen Ouvertüre",".",".","Georges Bizet","Peter A. Platt",".",".",".",".",".",".",".",".","CH - Noten Digital","."]
[8,"Dawn of a new day",".",".","James Swearingen",".","mittel","Ruh Musik AG",".",".","A4",".",".",".",".","."]
[9,"Marche au Supplice","Symphonie",".","Berlioz Hector","Van der Beek Wil","schwer","De Haske",".",".","A4",".",".",".",".","."]
[10,"Mambo Nr. 5","Pop",".","Lou Bega","Bocook Jay","leicht","Ruh Musik AG",2001,".","A4",".",".",".",".","."]
[11,"Laurena","Klassisch",".","Nijs Johan",".","leicht","De Haske",2000,".","A4",".",".",".",".","."]
[12,"Largo Nr. 43","Klassisch",".","Händel G.F.","Ruh E.","leicht","Ruh Musik AG",2000,".","C5",".",".",".",".","."]
[13,"Farandole",".",".","Georges Bizet","Robert Longfield",".",".",".",".",".",".",".",".","CH - Noten Digital","."]
[14,"Passacaille",".",".","Georg Friedrich Händel","Albert Loritz",".",".",".",".",".",".",".",".",".","."]
[15,"Io senza te",".",".","Peter Reber","Sandy Smith",".",".",".",".",".",".",".",".",".","."]
[16,"You raise me up",".",".","Brendan Graham / Rolf Lovland","Frank Bernaerts",".",".",".",".",".",".",".",".",".","."]
[17,"Credo","Marsch","Prozession","Hartwig Hans",".","mittel","Rundel Siegfried Musikverlag",2001,".","C5",".",".",".",".","."]
[18,"Plui de Roses",".",".","René Berberat",".",".",".",".",".",".",".",".",".",".","."]
[19,"Choclat",".",".","Rachel Portmann","Jirka Kadlec",".",".",".",".",".",".",".",".",".","."]
[20,"Der Anton aus Tirol","Pop",".","Badinger,Schachner,Schicho","Jahreis Erwin","leicht","Ruh Musik AG",2000,".","C5",".",".",".",".","."]
[21,"Spirit: Stallion of the Cimarron",".",".","Hans Zimmer","Roland Smeets",".",".",".",".",".",".",".",".",".","."]
[22,"The Imperial March ( Darth Vader`s Theme)",".",".","John Williams","Paul Murtha",".",".",".",".",".",".",".",".",".","."]
[23,"You'll never walk alone","Pop",".","Hammerstein,Rodgers","Foster Larry","mittel","De Haske",2000,".","A4",".",".",".",".","."]
[24,"Conquest of paradise","Film",".","Vangelis","Sebregts Ron","mittel","De Haske",2001,".","A4",".",".",".",".","."]
[25,"Charles Chaplin","Film",".","Chaplin,Delange,Willson,Phillips,Parsons","Peeters Marcel","schwer","Ruh Musik AG",2001,".","A4",".",".",".",".","."]
[26,"Valetta Rambler","Swing",".","Abel Lex",".","mittel","Belgano Musikverlag",2001,".","C5",".",".",".",".","."]
[27,"Televisions-Melodien","Fernsehmelodien","Potpourri","Kolditz Hans",".","mittel","Arcon Music",".",".","A4",".",".",".",".","."]
[28,"Tiger Rag",".",".","La Rocca N.","Scheffer Pi","schwer","Molenaar",2001,".","C5",".",".",".",".","."]
[29,"The walking frog","Unterhaltung",".","King Karl L.","Foster Robert E.","mittel","Ruh Musik AG",2001,".","A4",".",".",".",".","."]
[30,"Trumpets in the night","Unterhaltung","Solo Trompete","Kenny Terry",".","mittel","Molenaar",2001,".","A4",".",".",".",".","."]
[31,"Variationen über ein Thema von Glinka","Klassisch","Solo Oboe","Rimski Nikolai","Exl Engelbert M.","schwer","Molenaar",2000,".","A4",".",".",".",".","."]
[32,"Requiescant in Pace","Trauermusik",".","Fihn Peter",".","mittel","Belgano Musikverlag",1999,".","C5",".",".",".",".","."]
[33,"Rondo für Rosie","Klassisch","Solo Querflöte","Huggens Ted",".","mittel","Molenaar",2000,".","C5",".",".",".",".","."]
[34,"Sarah","Tango",".","Wyss Rudolf",".","mittel","Rudo Verlag",2001,".","C5",".",".",".",".","."]
[35,"Schlachthymne und Willkommen Roms Söhne","Klassisch",".","Wagner Richard","Watz Franz","schwer","Ewoton Musikverlag",2000,".","A4",".",".",".",".","."]
[36,"The Jungel Book",".",".","Sherman / Sherman","Rob Balfoort",".",".",".",".",".",".",".",".",".","."]
[37,"Solistentraum","Unterhaltung","Solo Tenorhorn","Watz Franz",".","mittel","De Haske",".",".","A4",".",".",".",".","."]
[38,"Symphony #5-Finale","Symphony",".","Van Beethoven Ludwig","Hannickel Mike","schwer","Curnow Music",2000,".","A4",".",".",".",".","."]
[39,"Stetten bey de Rüs","Marsch",".","Wyss Rudolf",".","mittel","Rudo Verlag",".",".","C5",".",".",".",".","."]
[40,"That's Soul","Swing",".","Warrington John",".","mittel",".",".",".","C5",".",".",".",".","."]
[41,"The Acrobat","Unterhaltung","Solo Posaune","Greenwood J.A.","Maas Wim","schwer","Molenaar",2000,".","A4",".",".",".",".","."]
[42,"The Muppets",".",".","Piero Umiliani / Sam Pottle","Johny Ocean",".",".",".",".",".",".",".",".",".","."]
[43,"Man of Many Parts","Overture",".","Scheffer Pi",".","leicht","Molenaar",2001,".","A4",".",".",".",".","."]
[44,"Transformers",".",".","Steve Jablonsky","Jirka Kadlec",".",".",".",".",".",".",".",".",".","."]
[45,"Vielen Dank für die Blumen",".",".","Udo Jürgens","Mnozil Brass / Brighton",".",".",".",".",".",".",".",".",".","."]
[46,"There's no business like show business","Musical",".","Berlin Irving","Iwai Naohiro",".","De Haske",".",".","A4",".",".",".",".","."]
[47,"Castellum",".",".","Mario Bürki",".",".",".",".",".",".",".",".",".",".","."]
[48,"Turnerlied",".",".",".","H.R.Binder",".",".",".",".",".",".",".",".",".","."]
[49,"Jesus Christ Superstar","Musical",".","Lloyd Webber","Hautvast Willy",".","Molenaar",".",".","A4",".",".",".",".","."]
[50,"Film-Festival","Filmmelodien",".","Kolditz Hans",".",".","Arcon Music",1996,".","A4",".",".",".",".","."]
[51,"San Carlo",".",".","Oscar Tschuor",".",".",".",".",".",".",".",".",".",".","."]
[52,"Auf der Vogelwiese",".",".","Josef Poncar","Jaroslav Ondra",".",".",".",".",".",".",".",".",".","."]
[53,"The Bassmen",".",".","Tuschla Walter/Russler Erwin",".",".","Rundel Siegfried",".",".","A4",".",".",".",".","."]
[54,"Autumn Leaves",".",".","Kosma J./Prevert J.","Kleine Schaars Peter","mittel","Molenaar",2003,".","A4",".",".",".",".","."]
[55,"A day at the circus",".",".","Curnow James",".","mittel","De Haske",2000,".","A4",".",".",".",".","."]
[56,"Blitz Party","Marsch",".","Schröer Hermann",".",".","Schröer Hermann",".",".","C5",".",".",".",".","."]
[57,"Ave verum-KV 618 Holzbläserquintett",".",".","Wolfgang Amadeus Mozart","Achim Graf / Peter Welte",".",".",2021,".",".",".",".",".",".","."]
[58,"Western Dances",".",".","Kernen Roland",".",".","De Haske",".",".","A4",".",".",".",".","."]
[59,"Sonority","Marsch","Konzertmarsch","Riedemann Peter",".","mittel","De Haske",2005,".","A4",".",".",".",".","."]
[60,"Songs for Tony - Sax Quartett",".",".","Michael Nyman",".",".",".",2021,".",".",".",".",".",".","."]
[61,"Brazilian Bay Dance","Modern","Latin","Evers Harm",".",".","De Haske",".",".","A4",".",".",".",".","."]
[62,"Holz Quintett in Es-Dur, Op. 88, Nr.2",".",".",".",".",".",".",2021,".",".",".",".",".",".","."]
[63,"Yakety Sax -Sax Quartett",".",".","James Rich / Boots Randolph","Larry Norred",".",".",2021,".",".",".",".",".",".","."]
[64,"Rhapsody from Scotland",".",".","Van Lijnschooten Henk",".","schwer","Molenaar",".",".","A4",".",".",".",".","."]
[65,"Musiktag",".",".","Jean-Pierre Fleury",".",".",".",2022,".",".",".",".",".",".","."]
[66,"La sera sper il Lagg",".",".","Gion B. Casanova","Thomas Rüedi",".",".",".",".",".",".",".",".",".","."]
[70,"Ueber den Wolken",".",".","Mey Reinhard","Brogli Kurt",".","Ruh Musik AG",".",".","C5",".",".",".",".","."]
[71,"Latin Sounds",".",".",".","Beck R.",".",".",1980,".","A4",".",".",".",".","."]
[73,"Choral and Rock-Out",".",".","Huggens Ted",".",".","Molenaar",2002,".","A4",".",".",".",".","."]
[74,"Revival Rag 1920",".",".","Stoeckart Jan","Peeters Marcel",".","Ruh Musik AG",".",".","A4",".",".",".",".","."]
[75,"Give us peace",".","Solo für Trompete",".","Huggens Ted",".","Molenaar",1999,".","A4",".",".",".",".","."]
[75,"The happy cyclist",".","Solo für Fahrradglocke","Huggens Ted",".",".","Molenaar",".",".","A4",".",".",".",".","."]
[79,"Mit dir mal in Urlaub gehn","Walzer",".","Stepanek Josef","Bummerl Franz",".","Ewoton Musikverlag",".",".","C5",".",".",".",".","."]
[80,"La Tromba Espagnola",".","Solo für Trompeten","Etzel Roy/Wilden Gert","Gerrens Pit",".","Arcon Music",".",".","A4",".",".",".",".","."]
[81,"Durch Kampf zum Sieg","Marsch",".","Von Blon Franz","Domberger Alois",".","Elwe Musikverlag",".",".","A4",".",".",".",".","."]
[82,"Pomp and Circumstance Nr. 1","Marsch",".","Elgar Edward","Van Lijnschooten Henk",".","Ruh Musik AG",2000,".","A4",".",".",".",".","."]
[83,"Wild Cat Blues","Blues",".","Waller Thomas, Williams Clarence","Kabec Vlad",".",".",".",".","A4",".",".",".",".","."]
[84,"Remember when",".",".","Kämpfert Bert, Rehbein Herbert","Brogli Kurt",".","Ruh Musik AG",".",".","C5",".",".",".",".","."]
[85,"Estudiantina","Walzer",".","Waldteufel Emil","Tuschla Walter",".",".",".",".","A4",".",".",".",".","."]
[87,"Rosamunde","Polka",".",".","Weinkopf Gerald, Vejvoda Jaromir",".",".",".",".","A4",".",".",".",".","."]
[88,"Rocking Parade","Jazz-Rock",".","Bernard Francis",".",".",".",".",".","C5",".",".",".",".","."]
[90,"Gentry's Triumphal March","Marsch",".","Jewell Fred",".",".","Ruh Musik AG",".",".","C5",".",".",".",".","."]
[95,"Alpenglühn",".",".","Büttler Karl",".",".","Büttler Karl",".",".","C5",".",".",".",".","."]
[96,"Sei nicht bös",".","Operette Der Obersteiger","Zeller C.","Bohne H.",".","Bohne H.",".",".","C5",".",".",".",".","."]
[97,"Alabama-Dixie","Dixie",".","Hammes Gerd","Seifert R.",".",".",1985,".",".",".",".",".",".","."]
[98,"Amsel-Polka","Polka",".","Lüthold Ernst",".",".",".",98,".",".",".",".",".",".","."]
[98,"Mein Herz, Dein Herz",".",".","Ermatinger Emil",".",".",".",".",".",".",".",".",".",".","."]
[99,"Auf weiter Flur","Walzer",".","Kubes Ladislav",".",".",".",".",".",".",".",".",".",".","."]
[100,"Alpenländer-Stimmungsparade",".",".","Seifert Rudi","Greber Walter",".",".",1984,".",".",".",".",".",".","."]
[101,"Amora","Pasa Doble",".","Darling John",".",".",".",".",".",".",".",".",".",".","."]
[102,"Amercian Panorama","Jazz",".","Darling John",".",".",".",".",".",".",".",".",".",".","."]
[103,"Acapulco","Paso Doble vivo",".","Leemann Max",".",".",".",1972,".",".",".",".",".",".","."]
[104,"Am schönen Thunersee",".",".","Furter Theo",".",".",".",1945,".",".",".",".",".",".","."]
[106,"Baby-Face",".",".","Abel Lex",".",".",".",".",".",".",".",".",".",".","."]
[107,"Brummerl-Polka","Polka",".","Kubes Ladislav",".",".",".",".",".",".",".",".",".",".","."]
[108,"Brasiliana",".",".","Schröer Hermann",".",".",".",".",".",".",".",".",".",".","."]
[109,"Meine Braut ist bei der Feuerwehr",".",".","Oldörp Fred",".",".",".",".",".",".",".",".",".",".","."]
[110,"Rubbling Woodwinds",".","Solo für Flöten und Klarinetten","Schanke David",".",".",".",1977,".",".",".",".",".",".","."]
[114,"Country and Western",".",".","Walters Harold L.",".",".",".",1977,".",".",".",".",".",".","."]
[115,"Charleston Chorly",".",".","Kolditz Hans",".",".",".",".",".",".",".",".",".",".","."]
[115,"Morgens um Sieben ist die Welt noch in Ordnung",".",".","James Last","Gilbert Tinner",".",".","Jako 16",".",".",".",".",".",".","."]
[116,"Congratulations",".",".","Martin Bill",".",".",".",".",".",".",".",".",".",".","."]
[117,"Donausagen","Walzer",".","Fucik Julius",".",".",".",".",".",".",".",".",".",".","."]
[118,"Dankeschön Bert Kämpfert",".","Potpourri","Kolditz Hans",".",".",".",1987,".",".",".",".",".",".","."]
[119,"Der fidele Bassist","Polka","Solo für Tuba","Rückauer Hans",".",".",".",1983,".",".",".",".",".",".","."]
[123,"Ich hab das Glück bestellt","Tango",".","Hämmerie Toni",".",".",".",".",".",".",".",".",".",".","."]
[126,"Die neue Staccato Polka","Polka",".","Allmend Robert",".",".",".",".",".",".",".",".",".",".","."]
[128,"Die Ländler-Solisten","Ländler",".","Kleeb Sales",".",".",".",1975,".",".",".",".",".",".","."]
[129,"Der Teufelsbassist","Polka","Solo für Bass","Winkler Peter Paul",".",".",".",".",".",".",".",".",".",".","."]
[129,"Mein Hobby ist Musik","Polka",".","Frankenstein Lutz",".",".",".",".",".",".",".",".",".",".","."]
[130,"Dancing-Party",".",".","Hartwig Hans",".",".",".",1972,".",".",".",".",".",".","."]
[131,"Wenn eine Frau die Wahrheit spricht",".",".","Egidius H.",".",".",".",".",".",".",".",".",".",".","."]
[133,"Escamito","Paso Doble",".","Bourbon René",".",".",".",".",".",".",".",".",".",".","."]
[134,"Evergreen-Sterne",".",".","Schestag Paul",".",".",".",".",".",".",".",".",".",".","."]
[136,"Ennet am Gotthard",".","Tessinerlieder","Stranner H.",".",".",".",1982,".",".",".",".",".",".","."]
[138,"Es steht im Tor",".",".","Kolditz Hans",".",".",".",".",".",".",".",".",".",".","."]
[138,"Stille Wasser die sind tief",".",".","Kolditz Hans",".",".",".",".",".",".",".",".",".",".","."]
[139,"El Bimbo","Schlager",".","Morgan Claude",".",".",".",1975,".",".",".",".",".",".","."]
[140,"Eiger-Mönch-Jungfrau",".",".","Klees Werner",".",".",".",".",".",".",".",".",".",".","."]
[141,"Fascination","March Paraphrase",".","Marchetti F. D.","Walters Harold L.",".",".",".",".",".",".",".",".",".","."]
[142,"Für Stadt und Land",".","Volkslieder-Potpourri","Tschuor Oscar",".",".",".",".",".",".",".",".",".",".","."]
[143,"Fröhliche Polka","Polka","Solo für Posaune","Kugler Franz",".",".",".",".",".",".",".",".",".",".","."]
[145,"Gummi-Mambo","Mambo",".","David Franz",".",".",".",1983,".",".",".",".",".",".","."]
[149,"Hootenanny","Folk Festival",".","Walters Harold L.",".","mittel","Ruh Musik AG","1992/2005",".","A4",".",".",".",".","."]
[153,"Im weissen Rössl",".",".","Burkhardt V.",".",".",".",".",".",".",".",".",".",".","."]
[154,"eidgenossen","Marsch",".","Wichers Joh.",".",".",".",".",".",".",".",".",".",".","."]
[158,"Knittel-Twist",".",".","Abel Lex",".",".",".",".",".",".",".",".",".",".","."]
[159,"Heimweh-Walzer","Walzer",".","Würmli Emil",".",".",".",1991,".",".",".",".",".",".","."]
[159,"Lineli-Walzer","Walzer",".","Würmli Emil",".",".",".",1991,".",".",".",".",".",".","."]
[160,"Five minutes with Cole Porter",".",".","Porter Cole",".",".",".",".",".",".",".",".",".",".","."]
[162,"Let's go",".",".","Papert Willi",".",".",".",".",".",".",".",".",".",".","."]
[164,"Lustige Musikanten",".",".","Neumayer Sepp",".",".",".",".",".",".",".",".",".",".","."]
[166,"La Parranda",".",".","Lipman-Ham",".",".",".",".",".",".",".",".",".",".","."]
[167,"Landi 39",".","Potpourri","David Franz",".",".",".",1985,".",".",".",".",".",".","."]
[169,"Rohrdorfer Marsch","Marsch",".","W.Klingele",".",".",".",1990,".",".",".",".",".",".","."]
[170,"My Happy Girl",".",".","Abel Lex",".",".",".",1999,".",".",".",".",".",".","."]
[171,"Miluska","Polka",".","Benetka F.",".",".",".",".",".",".",".",".",".",".","."]
[172,"Manitoba-Dixieland","Dixie",".","Abel Lex",".",".",".",1990,".",".",".",".",".",".","."]
[173,"Musikante-Fraue","Walzer",".","Keysten Ralf",".",".",".",1973,".",".",".",".",".",".","."]
[174,"Mexican Trumpets",".",".","Beck R.",".",".",".",1975,".",".",".",".",".",".","."]
[175,"Mixed-Pickles","Modern",".","Leemann Max",".",".",".",".",".",".",".",".",".",".","."]
[176,"Days of Swing","Marsch",".","Weistra W.",".",".","Ruh Musik AG",".",".","C5",".",".",".",".","."]
[178,"Militärländler",".",".","Signer Pius",".",".",".",".",".",".",".",".",".",".","."]
[179,"In the Lime - Tree Avenue","Marsch",".","Bosch Adr.",".",".","Ruh Musik AG",".",".","C5",".",".",".",".","."]
[180,"King-Size","Marsch",".","Frank Fred L.",".",".","Ruh Musik AG",".",".","C5",".",".",".",".","."]
[181,"Mit Sang und Klang","Volkslieder","Potpourri","Tschuor Oscar",".",".",".",1972,".",".",".",".",".",".","."]
[182,"Sabinchen Polka","Polka",".","Grund Bert",".",".",".",".",".",".",".",".",".",".","."]
[184,"Netolicka Polka","Polka",".","Kubes Ladislav",".",".",".",2004,".",".",".",".",".",".","."]
[185,"Oesterreichische Marschperlen","Marsch",".","Bernhauser Anton",".",".",".",".",".",".",".",".",".",".","."]
[187,"Puppet on a String",".",".","Kolditz Hans",".",".",".",".",".",".",".",".",".",".","."]
[190,"Deutschmeister-Regiments-Marsch","Marsch",".","Jurek Wilh. Aug.",".",".",".",".",".","C5",".",".",".",".","."]
[192,"Register-Show",".","Solistenparade","Lange Willy",".",".",".",1979,".",".",".",".",".",".","."]
[194,"Rimballzello","Boogie Woogie",".","Abel Lex",".",".",".",".",".",".",".",".",".",".","."]
[196,"Fairplay","Marsch",".","Frei Fridolin",".",".","Milgra Edition",".",".","C5",".",".",".",".","."]
[197,"Sichleten Walzer","Walzer",".","Stucki G.",".",".",".",1990,".",".",".",".",".",".","."]
[198,"San Francisco","Boogie Woogie",".","Bieri Jakob",".",".",".",1988,".",".",".",".",".",".","."]
[199,"So ein Tag",".",".","Nagel Willi",".",".",".",".",".",".",".",".",".",".","."]
[200,"Samba Tequila",".",".","Wili März",".",".",".",".",".",".",".",".",".",".","."]
[201,"Summertime",".","Fanfare","Gershwin - Jaroc",".",".",".",1976,".",".",".",".",".",".","."]
[202,"Spanischer Tanz",".",".","Rossow Albert",".",".",".",".",".",".",".",".",".",".","."]
[203,"So zwei, wie wir zwei",".",".","Furter Th.",".",".",".",".",".",".",".",".",".",".","."]
[204,"Schunkel-Parade","Walzer","Potpourri","Rundel Siegfried",".",".",".",1974,".",".",".",".",".",".","."]
[205,"Schlittschuhläufer Polka","Polka",".","David Franz",".",".",".",1981,".",".",".",".",".",".","."]
[207,"Schiff ahoi",".","Seemannslieder-Potpourri","Seifert Rudi",".",".",".",1975,".",".",".",".",".",".","."]
[208,"Twelve Time Rhythm","Boogie",".","Strebel A.",".",".",".",".",".","C5",".",".",".",".","."]
[209,"Stelldichein in Oberkrain","Polka","Potpourri","Avsenik V. S.","Rundel Siegfried",".",".",1979,".",".",".",".",".",".","."]
[210,"Starparade",".","Solisten-Medley","Kolditz Hans",".",".",".",1976,".",".",".",".",".",".","."]
[211,"Le Commandant","Marsch",".","Haag Willy",".",".","Hug & Co. Basel",".",".","C5",".",".",".",".","."]
[212,"The Beatles in Concert","Pop",".","Lennon John","Hautvast Cartney",".",".",1976,".",".",".",".",".",".","."]
[214,"Trio Eugster-Hits","Volkstümlich","Potpourri","David Franz",".",".",".",1976,".",".",".",".",".",".","."]
[215,"Tritsch-Tratsch-Polka","Polka",".","Strauss Johann",".",".",".",1974,".",".",".",".",".",".","."]
[217,"Violetta",".",".","Keysten R.",".",".",".",".",".",".",".",".",".",".","."]
[218,"Volkslieder im Marschtempo",".",".","Lotterer Gustav",".",".",".",".",".",".",".",".",".",".","."]
[219,"Venkovska","Polka",".","Vacek Karel",".",".",".",1968,".",".",".",".",".",".","."]
[220,"Walzerklänge","Walzer","Potpourri","Pfortner Karl",".",".",".",1982,".",".",".",".",".",".","."]
[226,"Am Bergsee",".","Solo für Tenorhorn","Röthlin A.",".",".",".",".",".",".",".",".",".",".","."]
[229,"Andante sostenuto",".",".","Müller H./Frei F.",".",".",".",".",".",".",".",".",".",".","."]
[230,"Am Lago di Poschiavo",".",".","Zurmühle Otto","Manazza Luigi",".",".",".",".",".",".",".",".",".","."]
[233,"Choral alpin","Choral",".","Tuschla Walter",".",".",".",1980,".",".",".",".",".",".","."]
[234,"Das Lied der Berge",".",".","Hartmann Bruno",".",".",".",".",".",".",".",".",".",".","."]
[235,"Des Sennen Abschied",".","Solo für Tenorhorn","Forster M. H.",".",".",".",".",".",".",".",".",".",".","."]
[236,"Du meiner Väter Land","Hymne",".","Weber Heinrich","Mantegazzi G. B.",".",".",".",".",".",".",".",".",".","."]
[240,"Festliche Intonation für Blasorchester",".",".","Huber Paul",".",".",".",".",".",".",".",".",".",".","."]
[241,"Fanfaren-Intrada",".",".","Möckel Hans",".",".",".",".",".",".",".",".",".",".","."]
[243,"Gloria Nr. 33",".",".","Rossow A.",".",".",".",1990,".",".",".",".",".",".","."]
[244,"Gedenken",".","Serenade","Büttler Karl",".",".",".",1993,".",".",".",".",".",".","."]
[246,"Intrada",".",".","Benz Albert",".",".",".",1968,".",".",".",".",".",".","."]
[247,"Intrada Solenne",".",".","Benz Albert",".",".",".",".",".",".",".",".",".",".","."]
[248,"Larghetto pastorale",".",".","Benz Albert",".",".",".",".",".",".",".",".",".",".","."]
[249,"Liechtensteiner-Romanze",".",".","Von Falz-Fein E. A.",".",".",".",1979,".",".",".",".",".",".","."]
[252,"La Golondrina",".",".","Frey Hans",".",".",".",".",".",".",".",".",".",".","."]
[253,"Lingua materna",".",".","Heusser Hans",".",".",".",".",".",".",".",".",".",".","."]
[254,"Maremma",".",".","Bernhagen W.",".",".",".",".",".",".",".",".",".",".","."]
[255,"Musica Helvetica",".",".","Königshofer Franz",".",".",".",".",".",".",".",".",".",".","."]
[256,"Hymne für Blasorchester",".",".","Huber Paul",".",".",".",1992,".",".",".",".",".",".","."]
[259,"Notturno",".",".","Krauer R.",".",".",".",".",".",".",".",".",".",".","."]
[260,"Psalm für Blasorchester",".",".","Huber Paul",".",".",".",1962,".",".",".",".",".",".","."]
[263,"Reigen seliger Geister",".",".","von Gluck",".",".",".",".",".",".",".",".",".",".","."]
[264,"Sizilianisches Ständchen",".",".","Winkler Gerhard",".",".",".",".",".",".",".",".",".",".","."]
[265,"Schweiz. Fahnenmarsch",".","Vaterlandslieder","Zwyssig/Carey/Baumgartner",".",".",".",".",".",".",".",".",".",".","."]
[266,"The Phantom Brigade",".",".","Myddleton W. H.","Zaugg R.",".",".",".",".",".",".",".",".",".","."]
[268,"Trompet Voluntary",".",".","Purcell H.","Tiemersma S.",".","Molenaar",2002,".","C5",".",".",".",".","."]
[269,"Trumpet Tune and Air",".",".","Purcell",".",".",".",1992,".",".",".",".",".",".","."]
[270,"Three Twens",".","Solo für 3 Trompeten","Hartwig Hans",".",".",".",1975,".",".",".",".",".",".","."]
[272,"Weihung","Choral",".","Roccard Ken",".",".",".",1992,".",".",".",".",".",".","."]
[273,"Arosa","Marsch",".","Tschuor Oscar",".",".","Molenaar",2005,".","C5",".",".",".",".","."]
[275,"Arc-en-ciel","Marsch",".","Anklin G.",".",".",".",".",".",".",".",".",".",".","."]
[277,"Alte Kameraden","Marsch",".","Teike C.",".",".",".",".",".",".",".",".",".",".","."]
[278,"Appenzeller-Alpenbitter","Marsch",".","Kramer P. A.","Bichsel J.",".",".",1982,".",".",".",".",".",".","."]
[279,"Billy-Boy","Marsch",".","Fihn Peter",".",".",".",2001,".","C5",".",".",".",".","."]
[280,"Bellinzona Marsch","Marsch",".","Mantegazzi G. B.",".",".",".",".",".",".",".",".",".",".","."]
[281,"Berner Jubiläumsmarsch","Marsch",".","Schori F.",".",".",".",".",".",".",".",".",".",".","."]
[282,"Bannergruss","Marsch",".","Wenger H.",".",".",".",".",".",".",".",".",".",".","."]
[283,"Badener Gold","Marsch",".","Brogli Kurt",".",".",".",".",".",".",".",".",".",".","."]
[284,"Biel 76 Marsch","Marsch",".","Joseph W.",".",".",".",1976,".",".",".",".",".",".","."]
[286,"Bis früh um Fünfe","Marsch",".","Lincke Paul","Royer Günter",".",".",".",".",".",".",".",".",".","."]
[286,"Folies Bergère","Marsch",".","Lincke Paul","Royer Günter",".",".",".",".",".",".",".",".",".","."]
[287,"Badenfahrt 1947","Marsch",".","Neukomm Werner",".",".",".",".",".",".",".",".",".",".","."]
[288,"Bundesfeier Marsch","Marsch",".","Schild W.",".",".",".",".",".",".",".",".",".",".","."]
[289,"Badenfahrt-Marschlied","Marsch",".","Sidler F.","Möckel Hans",".",".",".",".",".",".",".",".",".","."]
[290,"Brasses to the Fore","Marsch",".","Walters Harold L.",".",".",".",2002,".","C5",".",".",".",".","."]
[291,"Concorde Marsch","Marsch",".","Denny Ray/Moore Pete",".",".",".",1976,".",".",".",".",".",".","."]
[292,"De-Garde","Marsch","mit Tambouren","Cori J. N.",".",".",".",".",".",".",".",".",".",".","."]
[293,"Das Banner weht","Marsch",".","Müller Hans",".",".",".",".",".",".",".",".",".",".","."]
[294,"Deep in the Heart of Texas","Marsch",".","Swander Don","Yoder Paul",".",".",1980,".",".",".",".",".",".","."]
[295,"Der österreichische Soldat","Marsch",".","Prohaszka Adam",".",".",".",".",".",".",".",".",".",".","."]
[298,"Dem Villiger Stumpen","Marsch",".","Boggio R.",".",".",".",".",".",".",".",".",".",".","."]
[299,"Drina Mars","Marsch",".","Binicki Stanislav","van der Veken J.",".",".",".",".",".",".",".",".",".","."]
[300,"Erzherzog Albrecht Marsch","Marsch",".","Komzak Karl","Villinger Max",".",".",".",".",".",".",".",".",".","."]
[301,"Elitekorps","Marsch",".","Häfeli Walter",".",".",".",1971,".",".",".",".",".",".","."]
[302,"Einig Volk","Marsch",".","Friedemann Carl",".",".",".",".",".",".",".",".",".",".","."]
[303,"Ehr und Preis","Marsch",".","Seffel X.",".",".",".",".",".",".",".",".",".",".","."]
[305,"Eidgenossen","Marsch",".","Weber Kurt",".",".",".",2004,".",".",".",".",".",".","."]
[306,"Einer für alle, alle für einen","Marsch",".","Seffel X.",".",".",".",".",".",".",".",".",".",".","."]
[307,"Empor zur Harmonie","Marsch",".","Seffel X.",".",".",".",".",".",".",".",".",".",".","."]
[308,"Erwachendes Leben","Marsch",".","Müller H.",".",".",".",".",".",".",".",".",".",".","."]
[310,"Freies Land","Marsch",".","Burkhardt Viktor",".",".",".",1976,".",".",".",".",".",".","."]
[311,"Froh und Heiter","Marsch",".","Leemann Max",".",".",".",1985,".",".",".",".",".",".","."]
[312,"Florentiner Marsch","Marsch",".","Fucik Julius",".",".",".",".",".",".",".",".",".",".","."]
[313,"From Lucerne to Weggis","Marsch",".","Brogli Kurt",".",".",".",1992,".",".",".",".",".",".","."]
[314,"Frohes Wiederseh'n","Marsch",".","Würmli E.",".",".",".",".",".",".",".",".",".",".","."]
[315,"Aargauer Feuerwehrmarsch","Marsch",".","Jäggi Stephan",".",".",".",".",".",".",".",".",".",".","."]
[316,"Furchtlos und treu","Marsch",".","Fucik Julius","Kliment Hans",".",".",1968,".",".",".",".",".",".","."]
[317,"Fribourg","Marsch",".","Mantegazzi G. B.",".",".",".",".",".",".",".",".",".",".","."]
[319,"Festparade","Marsch",".","Müller H.",".",".",".",".",".",".",".",".",".",".","."]
[320,"Frei wie der Adler","Marsch",".","Steinbeck Heinrich",".",".",".",".",".",".",".",".",".",".","."]
[321,"Froher Wanderer","Marsch",".","Teike Carl",".",".",".",".",".",".",".",".",".",".","."]
[322,"Festjubel","Marsch",".","Müller Albert",".",".",".",".",".",".",".",".",".",".","."]
[323,"Festgruss","Marsch",".","Steinbeck Heinrich",".",".",".",1990,".",".",".",".",".",".","."]
[324,"Frohes Leben","Marsch",".","Würmli Emil",".",".",".",".",".",".",".",".",".",".","."]
[326,"Frohsinn Marsch","Marsch",".","Körner B.",".",".",".",".",".",".",".",".",".",".","."]
[326,"Ponto Tresa Marsch","Marsch",".","Körner B.",".",".",".",".",".",".",".",".",".",".","."]
[329,"Fanfaren Marsch","Marsch",".","Zaugg Paul",".",".",".",1968,".",".",".",".",".",".","."]
[330,"Freie Welt","Marsch",".","Müller H.",".",".",".",".",".",".",".",".",".",".","."]
[331,"Freie Eidgenossen","Marsch",".","Bohnsack Oskar",".",".",".",".",".",".",".",".",".",".","."]
[361,"Jugend voran","Marsch",".","Jäggi Stephan",".",".",".",".",".",".",".",".",".",".","."]
[362,"I'm on my way","Marsch",".","Walters Harold L.",".",".",".",1974,".",".",".",".",".",".","."]
[363,"Interlaken-Jungfrau","Marsch",".","Ringgenberg Jörg",".",".",".",1996,".",".",".",".",".",".","."]
[423,"Schwyzer-Soldaten","Marsch",".","Lüthold Ernst",".",".",".",".",".",".",".",".",".",".","."]
[427,"The Liberty Bell","Marsch",".","Sousa J. P.",".",".",".",2003,".",".",".",".",".",".","."]
[428,"Trombones on Parade","Marsch",".","Taylor J. S.",".",".",".",".",".",".",".",".",".",".","."]
[449,"Zur Feier des Tages","Marsch",".","Leemann Max",".",".",".",1990,".",".",".",".",".",".","."]
[464,"Gedenke mein",".",".","Kiesler E.",".",".",".",".",".",".",".",".",".",".","."]
[466,"Don Pasquale","Ouverture",".","Donizetti G.",".",".",".",".",".",".",".",".",".",".","."]
[474,"Karl der Kühne",".",".","Dätwyler J.",".",".",".",".",".",".",".",".",".",".","."]
[477,"Morgarten 1315","Ouverture",".","Dätwyler Jean",".",".",".",".",".",".",".",".",".",".","."]
[491,"Valerius Suite","Suite",".",".","Boekel Meindert",".",".",".",".",".",".",".",".",".","."]
[502,"O schöne Gotteswelt",".",".","Ruh E.",".",".",".",2000,".",".",".",".",".",".","."]
[506,"St. Jan",".",".","Bisselink B.",".",".",".",1989,".",".",".",".",".",".","."]
[507,"Trauermarsch","Marsch",".","Chopin F.",".",".",".",".",".",".",".",".",".",".","."]
[511,"Rund um J. Offenbach",".",".",".","Rhinow Hans-Joachim",".",".",".",".","A4",".",".",".",".","."]
[512,"Polka Schräg","Polka",".","Wagner Philipp",".",".","Ruh Musik AG",".",".","C5",".",".",".",".","."]
[513,"Always look on the bright side of life",".",".","Idle Eric","Schneider Manfred",".",".",1997,".","C5",".",".",".",".","."]
[515,"Der gute Kamerad",".",".","Fr. Silcher","Otto Wimmer",".",".",".",".",".",".",".",".",".","."]
[520,"Ross Roy",".",".","De Haan Jacob",".",".","DIFEM ",".",".","A4",".",".",".",".","."]
[522,"Italienische Lustspiel Ouverture",".",".","Huggens Ted",".",".",".",".",".","A4",".",".",".",".","."]
[525,"South Rampart Street Parade",".",".","Iwai Naohiro","Bauduc Ray/Haggart Bob",".","De Haske",1999,".","A4",".",".",".",".","."]
[526,"Samba-Crazy","Samba",".","Kenny Terry",".",".","Molenaar",1999,".","A4",".",".",".",".","."]
[527,"A Tribute to Elvis","Pop",".","Elvis Presley","Oud Thijs",".","De Haske",1999,".","A4",".",".",".",".","."]
[528,"Swinging Brass","Marsch",".","Tuschla Walter",".",".",".",".",".","A4",".",".",".",".","."]
[529,"Tyrolean Tubas",".","Solo für Bass","Clark Maurice",".",".","Molenaar",1999,".","A4",".",".",".",".","."]
[530,"Riverboat-Blues",".","Solo für Klarinette","Schweppe Dirk/Seelos Ambros","Gottlöber Lothar",".","Greber Music",".",".","C5",".",".",".",".","."]
[531,"Topas",".",".","Blaser Hanspter",".",".",".",".",".","A4",".",".",".",".","."]
[534,"Diavolezza","Marsch",".","Künzle Adolf",".",".","Ruh Musik AG",".",".","C5",".",".",".",".","."]
[535,"St. Louis Blues-Marsch","Marsch",".","Handy W. C.","David Franz",".","Ruh Musik AG",".",".","C5",".",".",".",".","."]
[538,"The Washington Post","Marsch",".","Sousa J. P.","Hewitt C. W.",".","Ruh Musik AG",".",".","C5",".",".",".",".","."]
[544,"Sehnsuchtsmelodie",".","Solo für Trompete und Flügelhorn","Scholz Walter","Rundel Siegfried",".","Ruh Musik AG",".",".","C5",".",".",".",".","."]
[551,"Ice Cream",".",".","Johnson H./Moll B./King R.","Beck Randy",".","Elwe Musikverlag",".",".","C5",".",".",".",".","."]
[557,"Olandese","Marcia Sinfonico",".","Orsomando Giovanni",".",".","Ruh Musik AG",".",".","A4",".",".",".",".","."]
[558,"New York, New York",".",".","Kander J./Ebb F.","Scheffer Pi",".","Molenaar",1987,".","A4",".",".",".",".","."]
[559,"Verdi","Oper",".","Verdi Giuseppe","Tuschla Walter",".","Rundel Siegfried Musikverlag",1987,".","A4",".",".",".",".","."]
[560,"Letzte Rose",".",".",".","David Franz",".","Ruh Musik AG",".",".","C5",".",".",".",".","."]
[561,"Oregon",".",".","de Haan Jacob",".",".","De Haske",".",".","A4",".",".",".",".","."]
[562,"Patrizia","Cha-Cha-Cha",".","Prado Perez","Häusser Hans Egon",".",".",".",".","A4",".",".",".",".","."]
[563,"El Cumbanchero","Samba",".","Hernandez Rafael","Häusser Hans Egon",".",".",".",".","A4",".",".",".",".","."]
[564,"Finlandia",".",".","Sibelius Jean","Molenaar Jan",".","Molenaar",".",".","A4",".",".",".",".","."]
[565,"Andulko Safarova","Marsch",".","Kmoch Franz","Kliment Hans",".","Ruh Musik AG",".",".","C5",".",".",".",".","."]
[565,"Musik heraus","Marsch",".","Kliment Hans",".",".","Ruh Musik AG",".",".","C5",".",".",".",".","."]
[566,"Musikantenlaune","Polka",".","Fihn Peter",".",".",".",1984,".","C5",".",".",".",".","."]
[567,"Marcia Solenne","Parademarsch",".","Buzzi","Kahlfeld G.",".",".",".",".","C5",".",".",".",".","."]
[568,"Glocken der Heimat","Parademarsch",".","Bohnsack Oskar",".",".",".",".",".","C5",".",".",".",".","."]
[569,"Abendglocken",".",".","Grolimund H.",".",".","Musikverlag Grolimund",".",".","C5",".",".",".",".","."]
[570,"Geschwind Marsch","Marsch",".","Strauss Johann","Hautvast Willy",".","Elwe Musikverlag",".",".","C5",".",".",".",".","."]
[571,"Divertimento Classico",".",".","Häberling Albert",".",".","Elwe Musikverlag",".",".","A4",".",".",".",".","."]
[572,"Sailing",".",".","Sutherland Gavin","Waignein André",".",".",".",".","A4",".",".",".",".","."]
[573,"Suitony",".",".","Laseroms Wim",".",".","Ruh Musik AG",2002,".","A4",".",".",".",".","."]
[574,"One Moment in Time","Pop",".","Hammond Albert/Bettis John","Higgins John",".","Ruh Musik AG",".",".","A4",".",".",".",".","."]
[575,"Flash Dance","Pop",".","Evers Harm",".",".","De Haske",".",".","A4",".",".",".",".","."]
[576,"Unter Donner und Blitz","Polka",".","Strauss Johann","Wagner Otto",".",".",".",".","A4",".",".",".",".","."]
[577,"Happy Polka 3","Polka",".",".","Auer/Ansbach",".",".",".",".","A4",".",".",".",".","."]
[578,"Sinfonie Concertante",".",".","Boedijn Gerard",".",".","Molenaar",".",".","A4",".",".",".",".","."]
[579,"Rock around the clock","Pop",".","Freedman Max C./De Knight Jimmy","Van Auken Zane",".",".",".",".","C5",".",".",".",".","."]
[580,"Othello",".",".","Rimmer Drake","Flink A. J.",".","Molenaar",".",".","A4",".",".",".",".","."]
[581,"Musik ist Trumpf","Foxtrott",".","Gietz Heinz","Herrmannsdörfer Heinz",".",".",".",".","A4",".",".",".",".","."]
[582,"Festliche Fanfaren",".",".","Fülling Eugen",".",".",".",".",".","C5",".",".",".",".","."]
[583,"Visit to George Gershwin",".",".","Gershwin George","Kabec Vlad",".",".",1987,".","A4",".",".",".",".","."]
[584,"The Floral Dance",".",".","Moss Katie","Simon Felderer","mittel","Rundel Siegfried Musikverlag",2006,".","A4",".",".",".",".","."]
[585,"Ueber Berg und Tal","Polka","Solo für Fagott oder Bariton/Tenorhorn/Posaune","Gottlöber Lothar",".",".",".",".",".","C5",".",".",".",".","."]
[586,"Sousa-Favoriten","Marsch",".","Sousa John Philip","Tuschla Walter",".",".",".",".","A4",".",".",".",".","."]
[587,"Black Bottom","Charleston",".","Henderson Ray","Tuschla Walter",".",".",".",".","A4",".",".",".",".","."]
[588,"Teamwork","Marsch",".","Strebel A.",".",".","Ruh Musik AG",".",".","C5",".",".",".",".","."]
[589,"Ein schönes Wochenende",".",".",".","Auer/Ansbach",".",".",".",".","A4",".",".",".",".","."]
[590,"Don Pedro","Paso doble",".","Nijs Johan",".",".","Elwe Musikverlag",".",".","C5",".",".",".",".","."]
[591,"Memories of Cole Porter",".",".","Porter Cole","Trèves Jean",".","Elwe Musikverlag",1995,".","A4",".",".",".",".","."]
[592,"Henry Mancini in Concert",".",".","Mancini Henry","Schneider Manfred",".",".",".",".","A4",".",".",".",".","."]
[593,"Hair","Musical",".","MacDermot Galt/Rado James/Ragni Gerome","Schneider Manfred",".",".",".",".","A4",".",".",".",".","."]
[594,"Moonlight Serenade",".",".","Miller Glenn","Hautvast Willy",".","Molenaar",".",".","A4",".",".",".",".","."]
[595,"Hello Dolly","Musical",".","Hermann Jerry","Herrmannsdörfer Heinz",".",".",".",".","A4",".",".",".",".","."]
[596,"Glenn beats the Battle of Jericho",".",".","Penders Jef",".",".","Ruh Musik AG",2001,".","A4",".",".",".",".","."]
[597,"Moment for Morricone","Filmmusik",".","Morricone Ennio","De Meij Johan","mittel","Molenaar","2001/2005",".","A4",".",".",".",".","."]
[598,"Go ring them Bells",".",".","Bulla Stephen",".",".",".",".",".","A4",".",".",".",".","."]
[599,"O Happy Day","Gospels",".",".","Bernhard Helmut",".","Belgano Musikverlag",2001,".","A4",".",".",".",".","."]
[600,"1e Rhapsody on Negro Spirituals","Gospel",".","Ball Eric","Van Kammen A.","schwer","Ruh Musik AG",2001,".","A4",".",".",".",".","."]
[601,"Ice Cream",".",".","J. Howard/B. Moll/R. King","Müller Anton",".","Elwe Musikverlag",".",".","C5",".",".",".",".","."]
[602,"Rag from Aegeri",".",".","Huonder Ivo",".",".","Ruh Musik AG",".",".","C5",".",".",".",".","."]
[603,"Beim Dorfwirt",".",".","Hammerschmidt G.",".",".",".",".",".",".",".",".",".",".","."]
[603,"Diamanten-Polka","Polka",".","Völkl W./Luksch G.","Hammerschmidt G.",".",".",".",".","C5",".",".",".",".","."]
[604,"Sandy-Fox",".",".","Boss Walter",".",".","Elwe Musikverlag",".",".","C5",".",".",".",".","."]
[605,"Marsch der Grenadiere","Marsch",".","Honegger Hans",".",".","Ruh Musik AG",".",".","C5",".",".",".",".","."]
[606,"Brislach","Marsch",".","Anklin Guido",".",".","Ruh Musik AG",".",".","C5",".",".",".",".","."]
[607,"Gruss an das Worblental","Marsch",".","Jäggi Stephan",".",".",".",".",".","C5",".",".",".",".","."]
[608,"Hochzeitsnacht im Paradies","Operette",".","Hentschke Heinz","Gutzeit Erich",".","Elwe Musikverlag",".",".","A4",".",".",".",".","."]
[609,"Zwei kleine Finken","Polka","Solo für Piccolo","Kling Henry",".",".",".",".",".","A4",".",".",".",".","."]
[610,"Herbstruf",".",".","Möckel Hans",".",".",".",".",".","A4",".",".",".",".","."]
[611,"Sihlphoniker-Polka","Polka",".","Brunner Carlo","Egger Rolf",".","Ruh Musik AG",".",".","C5",".",".",".",".","."]
[612,"Das Alpenkorps","Marsch",".","Kleeb Sales",".",".","Ruh Musik AG",".",".","C5",".",".",".",".","."]
[613,"Felddivision 5","Marsch",".","Grob R./Müller A.",".",".","Elwe Musikverlag",".",".","C5",".",".",".",".","."]
[614,"Am Seealpsee","Serenade",".","Steinbeck Heinrich",".",".",".",".",".","A4",".",".",".",".","."]
[615,"Spatzen-Polka","Polka",".","Burgener Otto",".",".",".",1983,".","C5",".",".",".",".","."]
[616,"Surotoki",".",".","Kipfer Christian",".",".","Ruh Musik AG",".",".","C5",".",".",".",".","."]
[617,"Musik ist wie das Sonnenlicht","Marsch-Beat",".","Fihn Peter",".",".",".",1980,".","C5",".",".",".",".","."]
[618,"Boogie for Trumpets","Boogie","Solo für Trompeten","Hammes Gerd",".",".","Belgano Musikverlag",".",".","A4",".",".",".",".","."]
[619,"Bellaria","Walzer",".","Tschuor Oscar",".",".","Ruh Musik AG",".",".","C5",".",".",".",".","."]
[620,"Sportpalast Polka","Polka",".","Translateur S.","David Franz",".","Ruh Musik AG",".",".","C5",".",".",".",".","."]
[621,"Liebe Freunde","Polka",".","Payer Robert","Rundel Siegfried",".",".",".",".","C5",".",".",".",".","."]
[622,"Lochkovska","Polka",".","Burle Karel",".",".","Belgano Musikverlag",".",".","C5",".",".",".",".","."]
[623,"Plaisier d'amour","Foxtrott",".","Pfortner Karl",".",".",".",".",".","A4",".",".",".",".","."]
[624,"76 Trombones",".",".","Willson Meredith","Iwai Naohiro",".","De Haske",".",".","A4",".",".",".",".","."]
[625,"Cabaret",".",".","Kander John","Leyden Norman",".","Molenaar",".",".","A4",".",".",".",".","."]
[626,"Speedy Gonzales",".",".","Giant, Hess, Hill, Kay, Kaye, Lee","Brogli Kurt",".","Molenaar",".",".","C5",".",".",".",".","."]
[627,"Also sprach Zarathustra","Oper",".","Strauss Richard","Seifert Rudi","mittel","Belgano Musikverlag",2005,".","C5",".",".",".",".","."]
[628,"Clarinet Candy",".","Solo für Klarinetten","Watz Franz",".",".","Mitropa",".",".","A4",".",".",".",".","."]
[629,"Retraite francaise",".","Solo für Klarinetten und Trompeten","van Lijnschooten H.",".",".","Molenaar",".",".","C5",".",".",".",".","."]
[631,"Jubelklänge",".",".","Uebel Ernst","Molenaar P.J.",".","Molenaar",1991,".","A4",".",".",".",".","."]
[632,"Song from the States",".",".",".","Iwai Naohiro",".","de Haske",".",".","A4",".",".",".",".","."]
[633,"Papermills Bandsmen","Swing",".","Penders Jef",".",".","Molenaar",".",".","A4",".",".",".",".","."]
[634,"Brautchor","Oper",".","Wagner Richard","Löffler Edmund",".","Belgano Musikverlag",".",".","C5",".",".",".",".","."]
[635,"Hava Nagilah",".",".","David Franz",".",".","Ruh Musik AG",".",".","C5",".",".",".",".","."]
[636,"Niederbipp","Marsch",".","Wyss Rudolf",".",".","Rudo Verlag",".",".","C5",".",".",".",".","."]
[637,"Der verrückte Wecker",".",".","Anderson Leroy","Colmar J.",".","Scherzando",".",".","A4",".",".",".",".","."]
[638,"Locarno","Marsch",".","Heusser Hans",".",".","Ruh Musik AG",".",".","C5",".",".",".",".","."]
[639,"The little drummer boy",".",".","Davis, Onorati, Simeone","Watson Ty",".","Bernaerts Music",".",".","A4",".",".",".",".","."]
[640,"El Caballero","Samba",".","Reinter",".",".","DIFEM",".",".","C5",".",".",".",".","."]
[641,"Bourbon Street",".",".",".","Zollinger W. + D.",".",".",".",".",".",".",".",".",".","."]
[642,"El Pedro","Cha Cha Cha",".","Safaric Karl",".",".","Arcon Music",".",".","C5",".",".",".",".","."]
[643,"La Bannière","Marsch",".","Meijns Albert",".",".","Molenaar",".",".","C5",".",".",".",".","."]
[644,"Jubel Trubel Heiterkeit","Walzer",".","Woitschach Paul","Römer Paul",".","ELWE Musikverlag",".",".","A4",".",".",".",".","."]
[645,"Just a gigolo/I ain't got nobody","Swing",".",".","Vinson Johnnie",".","Ruh Musik AG",".",".","A4",".",".",".",".","."]
[646,"Südböhmische Polka","Polka",".","Kubes Ladislav","Bummerl Franz",".",".",".",".","A4",".",".",".",".","."]
[647,"Memory","Musical","Solo für Trompeten","Webber Andrew Lloyd","Weinkopf Gerald",".","Arcon Music",".",".","A4",".",".",".",".","."]
[648,"Jack's Rag",".",".","Fillinger Hans",".",".","Mitropa",".",".","A4",".",".",".",".","."]
[649,"Y.M.C.A.","Musical",".","Morali J.","Bernaerts Frank",".","EWOTON Musikverlag",".",".","A4",".",".",".",".","."]
[650,"Mood Romantic",".",".","Nijs Johan",".",".","De Haske",".",".","A4",".",".",".",".","."]
[651,"Joy to the world",".",".","Händel Georg Friedrich","van Kraeydonck Jan",".","Bernaerts Music",".",".","A4",".",".",".",".","."]
[652,"Blow the trumpets",".","Solo für Trompeten","Evers Harm",".",".","De Haske",".",".","A4",".",".",".",".","."]
[653,"Frieden auf der Welt","Polka",".","Farner Jakob","Adamek H. Paul",".",".",".",".","C5",".",".",".",".","."]
[654,"Princes Street Parade",".",".","Evers Harm",".",".","De Haske",".",".","A4",".",".",".",".","."]
[655,"Amor Amor Amor",".",".","Ruiz Gabriel","Häusser Hans-Egon",".","EWOTON Musikverlag",".",".","A4",".",".",".",".","."]
[656,"Alpenrosen","Polka",".","Freivogel Hans",".",".",".",".",".","C5",".",".",".",".","."]
[656,"Im Rosengarten","Polka",".","Freivogel Hans",".",".",".",".",".","C5",".",".",".",".","."]
[657,"Titanic","Fantasie",".","Jaeggi Stephan",".",".","Ruh Musik AG",".",".","A4",".",".",".",".","."]
[658,"Musical-Melodien","Musical",".",".","Kabec Vlad",".","ELWE Musikverlag",".",".","A4",".",".",".",".","."]
[659,"Olimpica","Konzertmarsch",".","Orsomando Giovanni",".",".","Ruh Musik AG",".",".","A4",".",".",".",".","."]
[660,"Zwee schnälli Bärner","Polka","Solo für 2 Klarinetten","Bär Edi","Benz Albert/Schumacher Rolf",".","Rhythmus Verlag",".",".","A4",".",".",".",".","."]
[661,"Unvergessener Fred Raymond",".",".","Raymond Fred","Rhinow Hans-Joachim",".",".",1992,".","A4",".",".",".",".","."]
[662,"Huntsman's Holiday",".",".","Kenny Terry",".",".","Ruh Musik AG",".",".","A4",".",".",".",".","."]
[663,"Der alte Bumser",".","Solo für grosse Trommel mit Becken","Ferstl Herbert",".",".","Belgano Musikverlag",".",".","A4",".",".",".",".","."]
[664,"Annie get your gun","Musical",".","Berlin Irving","Kolditz Hans",".","ELWE Musikverlag",1992,".","A4",".",".",".",".","."]
[665,"Tannhauser","Grande Marche",".","Wagner R.","Mellema Cor. M.",".","Ruh Musik AG",".",".","A4",".",".",".",".","."]
[666,"Volkslieder im Trompetensound","Potpourri","Solo für Trompeten",".","Linharek Franto",".","Ewoton Musikverlag",".",".","A4",".",".",".",".","."]
[667,"Tubantella",".","Solo für Bass","Legrady Thomas",".",".","Ruh Musik AG",".",".","A4",".",".",".",".","."]
[668,"Zillertaler Hochzeitsmarsch",".",".",".","Widemair Walter/Seifert Rudi",".","Ewoton Musikverlag",".",".","A4",".",".",".",".","."]
[669,"Laurona Marcha","Marsch",".","Mas Quiles Juan Vicente",".",".","Ruh Musik AG",".",".","C5",".",".",".",".","."]
[670,"Buretanz","Kanon","Solo für Trompeten","Kleeb Sales",".",".","Ruh Musik AG",".",".","C5",".",".",".",".","."]
[671,"Der Struwwelpeter","Tango","Show","Klein Josef",".",".","Belgano Musikverlag",".",".","C5",".",".",".",".","."]
[672,"Dr Schacher Seppli",".",".",".","David Franz",".","Ruh Musik AG",".",".","C5",".",".",".",".","."]
[673,"Junge Idee","Marsch",".","Vesely Karel","Charvat Josef",".","Migros",".",".","C5",".",".",".",".","."]
[674,"Jubiläumsmarsch","Marsch",".","Anklin Guido",".",".",".",".",".",".",".",".",".",".","."]
[675,"Belisar","Arie","Solo für Tenorhorn","Donizetti","Ringeisen M.",".","Saner W. Verlag",".",".","A4",".",".",".",".","."]
[676,"Erinnerungen","Marsch",".","Schori F.",".",".","Schori F. Verlag",".",".","C5",".",".",".",".","."]
[677,"Was Grosspapa erzählt",".","Solo für Tenorhorn","Pauker A.",".",".","Haag Hermann Verlag",1992,".","C5",".",".",".",".","."]
[678,"Römerhof Marsch","Marsch",".","Wyss Rudolf",".",".","Rudo Verlag",".",".","C5",".",".",".",".","."]
[679,"Horalka","Polka","Solo für Tenorhorn","Kubes Ladislav",".",".","Belgano Musikverlag",".",".","C5",".",".",".",".","."]
[680,"Sedesatka","Polka",".","Vacek Karel",".",".","Belgano Musikverlag",".",".","C5",".",".",".",".","."]
[681,"Glenn Miller Medley",".",".",".","Iwai Naohiro","schwer","De Haske",2002,".","A4",".",".",".",".","."]
[682,"Barnum and Bailey's Favorite","Konzertmarsch",".","King Karl L.","Bainum Glenn Cliffe",".","Ruh Musik AG",2000,".","A4",".",".",".",".","."]
[683,"A Call for Peace",".",".","Pastore Carmine",".",".",".",2002,".","A4",".",".",".",".","."]
[684,"The Farmer's Fair",".","Solo für Bass",".","Broadbent Derek",".","De Haske",2002,".","A4",".",".",".",".","."]
[685,"Feel the Spirit","Gospel",".","Johnson Timothy",".",".",".",2002,".","A4",".",".",".",".","."]
[686,"Variations on a French Folk Song",".",".","Cesarini Franco",".","schwer","Mitropa Music",2002,".","A4",".",".",".",".","."]
[687,"Intrada",".",".","Hassler Hans Leo",".",".",".",2002,".",".",".",".",".",".","."]
[688,"Eine kleine Nachtmusik",".","Klarinetten Ensemble","Mozart Wolfgang Amadeus","Sacci Frank",".",".",2002,".","A4",".",".",".",".","."]
[689,"Fanfare 2000",".",".","Vlak Kees",".",".","De Haske",2002,".","A4",".",".",".",".","."]
[690,"Comfort Ye My People","Klassik","Solo für Bariton und Euphonium","Händel Georg Friedrich","Hempel Jurjen",".","De Haske",2002,".","A4",".",".",".",".","."]
[691,"Bye Bye Spiritual","Gospel",".","Di Ghisallo Luigi",".","mittel","Ruh Musik AG","2002/2005",".","A4",".",".",".",".","."]
[692,"1...2...3...Maria","Pop",".","Blake Ian, Porter K.C., Escolar Luis Gomez","Schneiders Hardy",".","Difem",2003,".","A4",".",".",".",".","."]
[693,"Beach Boys","Pop",".",".","Viziru Mihail",".","Ruh Musik AG",2003,".","A4",".",".",".",".","."]
[694,"The Second Waltz",".",".","Shostakovitch Dimitri","Waignein André",".","Scherzando",2001,".","A4",".",".",".",".","."]
[695,"I'd like to teach the World to sing",".",".","Backer, Davis, Cook, Greenaway","Hautvast Willy",".","Molenaar",2001,".","C5",".",".",".",".","."]
[696,"Die Geheimnisse der Etsch","Walzer",".","Carena Felice","Warwas Fritz",".","Haag Hermann Kreuzlingen",".",".","A4",".",".",".",".","."]
[697,"Wiener Bürger","Walzer",".","Ziehrer C. M.",".",".",".",".",".","A4",".",".",".",".","."]
[698,"An der schönen blauen Donau","Walzer",".","Strauss Johann","Mantegazzi G. B.",".",".",".",".","A4",".",".",".",".","."]
[699,"Konzert Ouverture","Ouverture",".","Jaeggi Stephan",".",".",".",".",".",".",".",".",".",".","."]
[700,"Das Leben ein Kampf","Ouverture",".","Friedemann Carl",".",".",".",".",".","A4",".",".",".",".","."]
[701,"Fackeltanz Nr. 1",".",".","Meyerbeer G.","Schmidt-Köthen",".",".",".",".","A4",".",".",".",".","."]
[702,"Nachruf an Giuseppe Verdi",".",".","Ney Arthur",".",".",".",".",".","A4",".",".",".",".","."]
[703,"Klarinetten Twist",".","Solo für Klarinetten","Everaarts Mathieu",".",".","Ruh Musik AG",".",".","C5",".",".",".",".","."]
[704,"Bayrische Polka","Polka","Solo für Posaune","Lohmann Georg","Van Leeuwen S. P.",".","Ruh Musik AG",".",".","C5",".",".",".",".","."]
[705,"Winterthur 86","Marsch",".","Kipfer Christian",".",".","Edition Helbling AG",".",".","C5",".",".",".",".","."]
[706,"Die Rose vom Thunersee","Walzer",".","Ney Arthur",".",".","Ney Arthur Musikverlag",".",".","A4",".",".",".",".","."]
[707,"Zürcher Ausstellungs Marsch","Marsch",".","Komzak K.",".",".",".",".",".","A4",".",".",".",".","."]
[708,"Im Röseligarte","Potpourri",".","Ney Arthur",".",".","Ney Arthur Musikverlag",".",".","A4",".",".",".",".","."]
[709,"Petersburger Schlittenfahrt",".",".","Eilenberg R.",".",".",".",".",".","A4",".",".",".",".","."]
[710,"Poème et Fugue",".",".","Daetwyler Jean",".",".","Euphonia Musikverlag",".",".","A4",".",".",".",".","."]
[711,"Die Verlobung vor der Trommel","Ouverture",".","Titl A. E.",".",".",".",".",".","A4",".",".",".",".","."]
[712,"Sefira",".",".","Siede Ludwig","Reckling A.",".",".",".",".","A4",".",".",".",".","."]
[713,"Orpheus in der Unterwelt","Ouverture",".","Offenbach J.","Binder C.",".",".",".",".","A4",".",".",".",".","."]
[714,"Rübezahl","Ouverture",".","Von Flotow F.","Böhm Hans",".","Ringeisen Max Verlag",".",".","A4",".",".",".",".","."]
[715,"Pace e Lavoro","Ouverture",".","Mantegazzi G. B.",".",".","Tessiner Musikverlag",".",".","A4",".",".",".",".","."]
[716,"Der Wanderer im Gebirge","Ouverture",".","Steinbeck Heinrich",".",".","Reiner Max & Söhne",".",".","A4",".",".",".",".","."]
[717,"Polyhymnia",".",".","Königshofer Franz",".",".","Elwe Musikverlag",".",".","A4",".",".",".",".","."]
[718,"Marco Polo","Ouverture",".","Königshofer Franz",".",".","Ruh Musik AG",".",".","A4",".",".",".",".","."]
[719,"Canyon Passage",".",".","Tarver James L.","Zurmühle Otto",".","Ruh Musik AG",".",".","A4",".",".",".",".","."]
[720,"Rosamunde","Polka",".","Schubert Franz","Bohne H.",".",".",".",".","A4",".",".",".",".","."]
[721,"Edelweiss und Alpenrose",".",".","Steinbeck Heinrich",".",".",".",".",".","A4",".",".",".",".","."]
[722,"Berlin wie es weint und lacht","Ouverture",".","Conradi",".",".",".",".",".","A4",".",".",".",".","."]
[723,"Espana Cani","Ouverture",".","Marquina-Hanniken",".",".","Rauber Musik",".",".","A4",".",".",".",".","."]
[724,"Auf- und Abzug der Gnomengarde",".",".","Watzlaff Erich","Bohne H.",".",".",".",".","A4",".",".",".",".","."]
[725,"Rigoletto","Potpourri",".","Verdi G.","Ehmig J. P.",".",".",".",".","A4",".",".",".",".","."]
[726,"Frohsinn auf den Bergen",".",".","Fetras Oscar",".",".",".",".",".","A4",".",".",".",".","."]
[727,"Jugendträume","Ouverture",".","Forster M. H.",".",".","Schori F. Verlag",".",".","A4",".",".",".",".","."]
[728,"English Suite",".",".","Boedijn Gerard",".",".","Molenaar",".",".","A4",".",".",".",".","."]
[729,"Die Macht des Schicksals","Oper",".","Verdi G.","Schmidt Hermann",".",".",".",".","A4",".",".",".",".","."]
[730,"Die beiden Savoyarden","Ouverture",".","Offenbach Jacques","Schmidt-Köthen",".",".",".",".","A4",".",".",".",".","."]
[731,"Teenager Fantasie","Jazz",".","Everaarts Mathieu",".",".","Ruh Musik AG",".",".","A4",".",".",".",".","."]
[732,"Mondnacht auf der Alster","Walzer",".","Fetras Oscar","Pollak Franz",".","Haag Hermann Musikverlag",".",".","A4",".",".",".",".","."]
[733,"Leichte Cavallerie","Ouverture",".","Von Suppé Franz","Rossow A.",".","Teckel-Verlag Kühn Paul",".",".","A4",".",".",".",".","."]
[734,"Nabucco","Oper",".","Verdi G.","Kubat J.",".","Elwe Verlag",".",".","C5",".",".",".",".","."]
[735,"Erika",".",".","Körner B.",".",".","Körner B. Verlag",".",".","A4",".",".",".",".","."]
[736,"O Frühling wie bist du so schön","Walzer",".","Lincke Paul",".",".",".",".",".","A4",".",".",".",".","."]
[737,"Festhymnus",".",".","Silcher Friedrich","Bohne H.",".","Bohne H. Verlag",".",".","A4",".",".",".",".","."]
[738,"Kornblumen",".",".","Steinbeck Heinrich",".",".","Bohne H. Verlag",".",".","A4",".",".",".",".","."]
[739,"Weaner Mad'ln","Walzer",".","Ziehrer C. M.","Schröder M.",".",".",".",".","A4",".",".",".",".","."]
[740,"Beim Feste",".",".","Gade Niels W.","Zurmühle O.",".","Belgano Musikverlag",".",".","A4",".",".",".",".","."]
[741,"Im Frühjahr",".",".","Jaeggi Stephan",".",".","Euphonia Musikverlag",".",".","A4",".",".",".",".","."]
[742,"Ungarisches Bouquet",".",".","Fischer Hermann",".",".",".",".",".","A4",".",".",".",".","."]
[743,"Paraphrase über Heim's Abendfeier",".",".","Ruh E.",".",".","Mythen Verlag",".",".","A4",".",".",".",".","."]
[744,"Halleluja","Schlager",".","Oshrat K. / Orr S.","Trèves Jean",".",".",".",".","C5",".",".",".",".","."]
[744,"Hooray! Hooray!","Schlager",".","Farian Frank","Trèves Jean",".",".",".",".","C5",".",".",".",".","."]
[745,"Schwarzwaldmädel","Operette","Potpourri","Jessel Leon","Blüthgen H.",".",".",".",".","A4",".",".",".",".","."]
[746,"An den Frühling",".",".","Friedemann C.",".",".","Mythen Verlag",".",".","C5",".",".",".",".","."]
[747,"Die Zaubertrompete","Polka","Solo für Trompete","Hamm J. V.","Ringeisen M.",".","Belgano Musikverlag",".",".","A4",".",".",".",".","."]
[748,"Rotary Convention",".",".","Jenny Albert","Zurmühle Otto",".","Ruh Musik AG",".",".","A4",".",".",".",".","."]
[749,"Come back to Sorrento",".","Solo für Trompete oder Cornet","De Curtis Ernesto","Walters Harold L.",".",".",".",".","A4",".",".",".",".","."]
[750,"Volksgruss","Fanfare",".","Friedemann Carl",".",".","Belgano Musikverlag",".",".","A4",".",".",".",".","."]
[751,"Der Herr Tubist","Polka","Solo für Bass","Cosmar Harald","Löffler Willi",".",".",".",".","C5",".",".",".",".","."]
[752,"Die Eiche erzählt",".",".","Weber Kurt",".",".","Euphonia Musikverlag",".",".","C5",".",".",".",".","."]
[753,"Wach auf","Marsch",".","Wagner Richard","Bohne H.",".","Bohne H. Verlag",".",".","C5",".",".",".",".","."]
[754,"Finkenschlag",".",".","Stucki G.","Frey Hans",".","Ruh Musik AG",".",".","C5",".",".",".",".","."]
[755,"Dixieland Selection Number One","Dixieland",".","Beck R.",".",".",".",".",".","A4",".",".",".",".","."]
[756,"Parole d'amour","Walzer","Solo für Trompete","Zickoff","Ringeisen Max",".","Ringeisen Musikverlag",".",".","C5",".",".",".",".","."]
[757,"Chiemgauer-Bass-Sololändler","Ländler","Solo für Bass","Graetsch H.","Jugel Karl",".","ELWE Musikverlag",".",".","A4",".",".",".",".","."]
[758,"The Entertainer",".",".","Joplin Scott","Kokelaar Karel",".","Molenaar",".",".","A4",".",".",".",".","."]
[759,"Lausbüberei'n",".","Solo für Klarinetten","Koch Herbert","Kothera Georg",".",".",".",".","A4",".",".",".",".","."]
[760,"Der alte Brummbär",".","Solo für Bariton, Tenorsax, Baritonsax, Bass, Euphonium","Fucik Julius","Maston John",".","Molenaar",".",".","A4",".",".",".",".","."]
[761,"Ein Frühlingsmorgen",".",".","Forster M. H.",".",".","Schori F. Verlag",".",".","C5",".",".",".",".","."]
[762,"Ländliches Lied",".",".","Seeberger Adolf",".",".","Euphonia Musikverlag",".",".","C5",".",".",".",".","."]
[763,"Du nur du","Polka",".","Mosch Ernst","Egidius H.",".",".",".",".","A4",".",".",".",".","."]
[763,"Schaut her, schaut her","Polka",".","Zittner Wenzel","Egidius H.",".",".",".",".","A4",".",".",".",".","."]
[764,"The winner takes it all","Pop",".","ABBA","Harmoniemusik Rohrdorf",".",".",".",".","A4",".",".",".",".","."]
[765,"Frühlings-Einzug","Marsch",".","von Blon Fr.","Ringeisen Max",".","Ringeisen Max Verlag",".",".","C5",".",".",".",".","."]
[766,"Der Ackersmann","Ouvertüre",".","Kinzl Franz",".",".","Lüthold A. Musikverlag",".",".","A4",".",".",".",".","."]
[767,"Gebet und Schlachthymne",".",".","Wagner Richard","Schmidt/Köthen",".","Ringeisen Max Verlag",".",".","A4",".",".",".",".","."]
[768,"Treu Helvetia","Marsch",".","Schwerzmann J.",".",".",".",".",".","C5",".",".",".",".","."]
[769,"Auf sonnigen Höh'n","Walzer",".","Ringeisen Max",".",".","Ringeisen Max Verlag",".",".","A4",".",".",".",".","."]
[770,"Zur Feier des Tages","Marsch",".","Lemke W.",".",".",".",".",".",".",".",".",".",".","."]
[771,"Schatz-Walzer","Walzer",".","Strauss Johann",".",".",".",".",".","A4",".",".",".",".","."]
[772,"Feierlicher Marsch","Marsch",".","Damm Gustav",".",".",".",".",".",".",".",".",".",".","."]
[773,"Der Barbier von Sevilla","Ouverture",".","Rossini G.","Schmidt/Köthen",".",".",".",".","A4",".",".",".",".","."]
[774,"Am lichten Morgen",".",".","Herrmann Martin",".",".","Boggio R. Verlag",".",".","C5",".",".",".",".","."]
[775,"Buntes Laub","Walzer",".","Herrmann Martin",".",".","Lüthold Albert Musikverlag",".",".","C5",".",".",".",".","."]
[776,"Canzonetta",".",".","Jaeggi Stephan",".",".","Euphonia Musikverlag",".",".","C5",".",".",".",".","."]
[777,"Au pays Lorrain","Ouverture",".","Balay G.",".",".",".",".",".","A4",".",".",".",".","."]
[778,"Morgengruss",".","Solo für Tenorhorn","Hippenmeyer W.",".",".",".",".",".","C5",".",".",".",".","."]
[778,"O mein Heimatland",".",".","Hippenmeyer W.",".",".",".",".",".","C5",".",".",".",".","."]
[779,"Die kleine Kneipe",".",".",".",".",".","Harmoniemusik Rohrdorf",".",".","A4",".",".",".",".","."]
[780,"Andulka-Marsch","Marsch",".","Kmoch Frantisek","Bummerl Franz",".",".",".",".","A4",".",".",".",".","."]
[780,"Gablonzer Perlen","Polka",".","Borovicka Antonin","Bummerl Franz",".",".",".",".","A4",".",".",".",".","."]
[781,"Ouverture Symphonique","Ouverture",".","Boedijn Gerard",".",".","Elwe Musikverlag",".",".","A4",".",".",".",".","."]
[782,"Durch Gounod's Zauberwelt",".",".","Wacek Wilhelm",".",".",".",".",".","A4",".",".",".",".","."]
[783,"Alpenveilchen",".",".","Steinbeck Heinrich",".",".","Bohne H. Verlag",".",".","C5",".",".",".",".","."]
[784,"Ständchen",".","Solo für Tenorhorn","Klingele Walter",".",".",".",".",".","C5",".",".",".",".","."]
[785,"Vor hundert Jahren","Potpourri",".","Genhart W.","Rust A.",".",".",".",".","A4",".",".",".",".","."]
[786,"An der Weser",".",".","Pressel Gustav","Rossow Albert",".","Kühn Paul Musikverlag",".",".","A4",".",".",".",".","."]
[786,"Behüt Dich Gott",".",".","Nessler Victor E.","Kathe M.",".","Kühn Paul Musikverlag",".",".","A4",".",".",".",".","."]
[787,"Die Mühle im Schwarzwald",".",".","Eilenberg Richard","Villinger Max",".",".",".",".","A4",".",".",".",".","."]
[788,"Festouverture",".",".","Kempter L.",".",".","Gebr. Hug & Co. ",".",".","A4",".",".",".",".","."]
[789,"Rosen-Gavotte",".",".","Steinbeck Heinrich",".",".","Bohne H. Verlag",".",".","A4",".",".",".",".","."]
[790,"Monika-Polka","Polka",".","Hasselmann Viktor",".",".",".",".",".","A4",".",".",".",".","."]
[790,"Prager Sokol-Marsch","Marsch",".","Kmoch Frantisek","Bummerl Franz",".",".",".",".","A4",".",".",".",".","."]
[791,"Polka d'Alsace","Polka",".","Trèves Jean",".",".",".",".",".","A4",".",".",".",".","."]
[791,"Urlaubsschein","Polka",".","Jankovec Jaroslav","Bummerl Franz",".",".",".",".","A4",".",".",".",".","."]
[792,"La Sorella","Marsch",".","Borel Ch.","Walters Harold L.",".","Ruh Musik AG",".",".","A4",".",".",".",".","."]
[793,"Hymne",".",".","Lüthold Ernst",".",".","Elwe Musikverlag",".",".","C5",".",".",".",".","."]
[794,"Des Hirten Abendgebet",".","Solo für Tenorhorn","Jecker W.","Ruh E.",".","Ruh Musik AG",".",".","C5",".",".",".",".","."]
[794,"Glockengeläute",".","Solo für Tenorhorn","Ruh E.",".",".","Ruh Musik AG",".",".","C5",".",".",".",".","."]
[795,"Böhmische Musik","Marsch",".","Kmoch Frantisek","Bummerl Franz",".",".",".",".","A4",".",".",".",".","."]
[795,"Komm, mach doch mit","Marschpolka",".","Poupe Frantisek","Bummerl Franz",".",".",".",".","A4",".",".",".",".","."]
[796,"Zampa","Ouverture",".","Herold F.","Schmidt/Köthen",".",".",".",".","A4",".",".",".",".","."]
[797,"Fascinating Drums",".",".","Huggens Ted",".",".","Molenaar",".",".","A4",".",".",".",".","."]
[797,"Pavane in Blue",".",".","Huggens Ted",".",".","Molenaar",".",".","A4",".",".",".",".","."]
[798,"Playboys-Rag","Dixie",".","Abel Lex",".",".","Belgano Musikverlag",".",".","C5",".",".",".",".","."]
[799,"Salvator","Prozessionsmarsch",".","Bohnsack O.",".",".","Ruh Musik AG",".",".","C5",".",".",".",".","."]
[800,"Dawn of a new day",".",".","Swearingen James L.",".","mittel","Ruh Musik AG",2003,".","A4",".",".",".",".","."]
[801,"Tropical Party","Unterhaltung",".",".","Ocean Johny","mittel",".",2003,".","A4",".",".",".",".","."]
[802,"The Young Amadeus","Klassisch",".","Mozart Wolfgan Amadeus","de Haan Jan",".","Ruh Musik AG",2003,".","A4",".",".",".",".","."]
[803,"Hey Baby","Pop",".","Channel Bruce/Cobb Margaret","van Kraeydonck Jan",".",".",2003,".","A4",".",".",".",".","."]
[804,"Concerto d'Amore",".",".","De Haan Jacob",".",".","De Haske",2002,".","A4",".",".",".",".","."]
[805,"Lemon Tree","Pop",".","Freudenthaler Peter/Hinkel Volker","Waignein André",".","Scherzando Music",2002,".","A4",".",".",".",".","."]
[806,"Joshua","Rag",".","Wyss Rudolf",".",".","Rudo Verlag",2002,".","C5",".",".",".",".","."]
[807,"Overture to a winter festival",".",".","Curnow James",".","schwer","Curnow Music",2003,".","A4",".",".",".",".","."]
[808,"Wann wird's mal wieder richtig Sommer?",".",".","Goodmann S./Woitkewitsch T.","Rabe Stefan","mittel","DeHaDe",2003,".","A4",".",".",".",".","."]
[809,"Air for Winds",".",".","Waignein André",".",".","Scherzando Music",2003,".","A4",".",".",".",".","."]
[810,"I will follow him","Pop",".","Stole/Del Roma/Plante","Sebregts Ron","mittel","De Haske",2002,".","A4",".",".",".",".","."]
[811,"Rudolph the red-nosed reindeer",".",".","Marks Johnny","Iwai Naohiro","schwer","De Haske",2003,".","A4",".",".",".",".","."]
[812,"Best songs ever","Pop",".",".","Kernen Roland","mittel","De Haske",2003,".","A4",".",".",".",".","."]
[813,"Christmas Swing",".",".","Stratford Dizzy",".","mittel","De Haske",2003,".","A4",".",".",".",".","."]
[814,"Winter Wonderland",".",".","Smith Richard/Bernard Felix","Morita Kazuhiro","mittel","De Haske",2003,".","A4",".",".",".",".","."]
[815,"The ketchup song","Pop",".","Gomez Ruiz/Manuel Francisco","Bernaerts Frank",".","Bernaerts Music",2003,".","A4",".",".",".",".","."]
[816,"Song of freedom",".",".","De Haan Jan",".",".","De Haske",2003,".","A4",".",".",".",".","."]
[817,"Jurassic Park","Film",".","Williams John","Mortimer John Glenesk",".","Difem Music Avenue",2003,".","A4",".",".",".",".","."]
[818,"An American in Switzerland","Volkslieder-Medley",".",".","Brogli Kurt",".","Ruh Musik AG",2004,".","A4",".",".",".",".","."]
[819,"W. Nuss vo Bümpliz","Pop",".","Huber Büne","Maeder Heinz","schwer","Power Music",2004,".","A4",".",".",".",".","."]
[820,"Heaven","Pop",".","Lee/Leoni/von Rohr","McAllen Tom","schwer","Frank Musikverlag",2004,".","A4",".",".",".",".","."]
[821,"Hello New York","Marsch",".","Evers Harm",".","mittel","De Haske",2005,".","C5",".",".",".",".","."]
[822,"Stüssliger-Marsch","Marsch",".","Campomori Enrico","Wyss Rudolf",".","Rudo-Verlag",2005,".","C5",".",".",".",".","."]
[823,"High Spirits","Marsch",".","Evers Harm",".",".","King's Brass",2005,".","C5",".",".",".",".","."]
[824,"Under the sea","Filmmusik",".","Ashman H./Menken A.","Nowak Jerry","leicht","Ruh Musik AG",2005,".","A4",".",".",".",".","."]
[825,"Mir Senne heis luschtig","Volkstümlich",".",".","Broadbent Derek","leicht","Frank Musikverlag",2005,".","C5",".",".",".",".","."]
[826,"The Cuckoo","Volkstümlich",".",".","Fernie Alan","schwer","Frank Musikverlag",2005,".","A4",".",".",".",".","."]
[827,"North Beach Parade","Marsch",".","Evers Harm",".","leicht","De Haske",2005,".","C5",".",".",".",".","."]
[828,"Rondo Barocco","Klassisch",".","Schwarz Otto M.",".","mittel","De Haske",2005,".","A4",".",".",".",".","."]
[829,"Hanover Hymn","Klassisch",".",".","de Haan Jan","mittel","De Haske",2005,".","A4",".",".",".",".","."]
[830,"Ave Maria","Klassisch","Solo für Flügelhorn","Bach/Gounod","Stoffels E.","mittel","Ruh Musik AG",2005,".","A4",".",".",".",".","."]
[831,"Every Valley","Klassisch",".","Händel George Friedrich","Hempel Jurjen","mittel","De Haske",2005,".","A4",".",".",".",".","."]
[832,"Belle of the Ball","Walzer",".","Anderson L.","van der Heide Hans","schwer","Ruh Musik AG",2005,".","A4",".",".",".",".","."]
[833,"Sing Sing Sing","Swing",".","Prima Louis","Ravenal Dick","mittel","Ruh Musik AG",2005,".","A4",".",".",".",".","."]
[834,"Sandpaper Ballet",".",".","Anderson Leroy","van der Heide Hans","schwer","Ruh Musik AG",2005,".","A4",".",".",".",".","."]
[835,"Sir Duke","Pop",".","Wonder Stevie","Kjaernes Bjorn Morten","schwer","Ruh Musik AG",2005,".","A4",".",".",".",".","."]
[836,"Symphony No. 100","Klassisch",".","Haydn Joseph","Posch Gerard","mittel","De Haske",2005,".","A4",".",".",".",".","."]
[837,"Toccata","Klassisch",".","Monteverdi Claudio","De Haan Jacob","leicht","De Haske",2005,".","A4",".",".",".",".","."]
[838,"Serenade","Klassisch",".","Bourgeois Derek",".","schwer",".",2005,".","A4",".",".",".",".","."]
[839,"Ballata per te",".",".","Vansant Hans",".","mittel",".",2005,".","A4",".",".",".",".","."]
[840,"Rhapsody for euphonium and concert band","Klassisch","Solo für Euphonium","Curnow James",".","schwer",".",2005,".","A4",".",".",".",".","."]
[841,"Claudia",".",".","Petr Spanily","Jaroslav Zeman","mittel","Rundel Siegfried Musikverlag",2006,".","A4",".",".",".",".","."]
[842,"Cornfield Rock",".",".","Jacob de Haan",".","mittel","De Haske",2006,".","A4",".",".",".",".","."]
[843,"Vivaldi`s Winter","Klassisch",".","Antonio Vivaldi","Steve Cortland","mittel","Bernaerts Music",2006,".","A4",".",".",".",".","."]
[844,"Figaro - Marsch",".",".","Wolfgang Amadeus Mozart","Albert Loritz","mittel","Rundel Siegfried Musikverlag",2006,".","A4",".",".",".",".","."]
[845,"Slaidburn","Konzertmarsch",".","William Rimmer","Klaas van der Woude","mittel","Obrasso - Verlag",2006,".","A4",".",".",".",".","."]
[846,"Trumpet Rock",".",".","Luigi di Ghisallo",".","leicht","Rundel Siegfried Musikverlag",2006,".","A4",".",".",".",".","."]
[847,"Voices",".",".","Vangelis","Ron Sebregts","leicht","De Haske",2006,".","A3",".",".",".",".","."]
[848,"Highland Cathedral","Volkstümlich",".","Michael Korb / Ulli Roever","Siegfried Rundel","mittel","Rundel Siegfried Musikverlag",2006,".","A4",".",".",".",".","."]
[849,"Band Power","Marsch",".","Ivo Huonder",".","mittel",".",2006,".","A5",".",".",".",".","."]
[850,"Saluto Lugano","Marsch",".","Siegfried Rundel",".","mittel","Rundel Siegfried Musikverlag",2006,".","A5",".",".",".",".","."]
[851,"A String of Pearls",".",".","Jerry Gray","John Wasson","mittel","Hal Leonard Corporation",2006,".","A3",".",".",".",".","."]
[852,"Irish Sketches",".",".","Luc Gistel",".","mittel","Scherzando",2006,".","A3",".",".",".",".","."]
[853,"Der Kalif von Bagdad","Overture",".","Francios-Adrien Boieldieu","Hans Hartwig","Schwer","Rundel Siegfried Musikverlag",2006,".","A3",".",".",".",".","."]
[854,"Il Postino","Filmmusik",".","Luis Bacalow","Emiliano Gusperti","mittel","Wicki Milano",2006,".","A4",".",".",".",".","."]
[855,"You are not alone",".",".","Michael Jackson","Larry Foster","mittel","Scherzando",2006,".","A4",".",".",".",".","."]
[856,"If you leave me now",".",".","Peter Catera","Björn Kjaernes","mittel","Norsk",2006,".","A4",".",".",".",".","."]
[857,"Introduction and modern beat",".","Solo für Trompete/ Alt- Sax","Dizzy Stratford",".","schwer","De Haske",2006,".","A3",".",".",".",".","."]
[858,"Fanfaren",".",".","Hazy Osterwald","Franz David",".","Ruh Musik AG",2006,".","A5",".",".",".",".","."]
[859,"Time to say goodbye",".",".","L. Quarantotto, F. Sartori, F. Peterson","Don Campbell","mittel","De Haske",2006,".","A4",".",".",".",".","."]
[860,"The Pink Panther Theme","Filmmusik",".","Henry mancini","Johan de Meij","schwer","Molenaar",2006,".","A3",".",".",".",".","."]
[861,"The Laurel and Hardy Theme","Filmmusik",".","Hatley / Steinberg","Ray Woodfield","mittel","Obrasso - Verlag",2006,".","A3",".",".",".",".","."]
[862,"S isch äbe ne Mönsch uf Ärde","Folkstümlich",".",".","Thomas Rüedi",".","mf Publications",2006,".","A4",".",".",".",".","."]
[863,"Swisswing","Marsch",".","Kurt Brogli",".","mittel","Ruh Musik AG",2006,".","A5",".",".",".",".","."]
[864,"Grande Marche for the Prince of Wales",".",".","Joseph Hayden","Josef Kotay","leicht","Ruh Musik AG",2006,".","A5",".",".",".",".","."]
[865,"Vater Unser",".",".",".","Rudi Hofer","leicht","Arcon Music",2006,".","A5",".",".",".",".","."]
[866,"Festmusik",".",".","Richard Wagner","Rudi Seifert","leicht","Rudi Seifert Studio Verlag",2006,".","A5",".",".",".",".","."]
[867,"Felicita","Marsch",".","Wim Laseroms",".","mittel","De Haske",2006,".","A5",".",".",".",".","."]
[868,"Virginia",".",".","Jacob de Haan",".","mittel","De Haske",2007,".","A3",".",".",".",".","."]
[869,"Total Toto","Pop",".","D. Paich/ J. Porcaro/ S. Lukather","Klaas van der Woude","mittel","De Haske",2007,".","A3",".",".",".",".","."]
[870,"Grandfather`s Clock",".","Solo für Piccolo und Tenorhorn","George Doughty","Peter Schad","mittel","Rundel Siegfried Musikverlag",2007,".","A4",".",".",".",".","."]
[871,"The funny Pumpkins",".","Solo für 3 Posaunen","Harm Evers",".","mittel","De Haske",2007,".","A4",".",".",".",".","."]
[873,"Choca Carioca","Latin ",".","Luigi di Ghisallo",".","mittel","Rundel Siegfried Musikverlag",2007,".","A4",".",".",".",".","."]
[874,"Ein bisschen Spass…",".",".",".","Kurt Gäbele","mittel","Rundel Siegfried Musikverlag",2007,".","A3",".",".",".",".","."]
[875,"Simple Gifts",".",".","Luis Martinus","Roland Smeets","mittel","hafabramusic",2007,".","A3",".",".",".",".","."]
[876,"Born to be Wild","Pop",".","Mars Bonfire","Johnnie Vinson","mittel","Hal Leonard Corporation",2007,".","A4",".",".",".",".","."]
[877,"Harry Potter and the philosophers Stone","Film",".","John Williams","Frank Bernaerts","mittel","Bernaerts Music",2006,".","A3",".",".",".",".","."]
[878,"The best of bond","Film",".",".","Ray Woodfield","mittel","Obrasso - Verlag",2006,".","A4",".",".",".",".","."]
[879,"Theme from Superman","Film",".","John Williams","Bill Holcombe","mittel",".",2006,".","A4",".",".",".",".","."]
[880,"Baby Elephant Walk",".",".","Henry Mancini","Johnnie Vinson","mittel","Hal Leonard Corporation",2006,".","A4",".",".",".",".","."]
[881,"Children of the World",".","Solo für Es Alto Sax","Brandon Barnes","Robert W. Smith","mittel",".",2007,".","A4",".",".",".",".","."]
[882,"Bright Future",".",".","Johan Nijs",".","mittel","Scherzando",2007,".","A3",".",".",".",".","."]
[883,"Explorations",".",".","Johan Nijs",".","mittel","De Haske",2007,".","A4",".",".",".",".","."]
[884,"See You",".",".","Otto M. Schwarz",".","leicht","Mitropa Music",2007,".","A4",".",".",".",".","."]
[885,"Kleine Ungarische Rhapsodie",".",".","Alfred Bösendorfer",".","mittel","Rundel Siegfried Musikverlag",2007,".","A3",".",".",".",".","."]
[886,"Arrival",".",".","B. Andersson","Thomas Berghoff","mittel","Rundel Siegfried Musikverlag",2007,".","A4",".",".",".",".","."]
[887,"Jericho",".",".",".","Charles Michiels","mittel","Tierolff Muziekcenttrale",2007,".","A4",".",".",".",".","."]
[888,"Air Force Hymn",".",".","Baker- Werle","Roland Smeets","leicht","hafabramusic",2007,".","A4",".",".",".",".","."]
[889,"Risin out of my soul",".",".",".","Nick Hillary","mittel",".",2007,".","A4",".",".",".",".","."]
[890,"Arsenal","Konzertmarsch",".","Jan Van der Roost",".","mittel","De Haske",2006,".","A5",".",".",".",".","."]
[891,"Hans Wettstein Marsch",".",".","Kurt Vogel",".","mittel",".",2006,".","A3",".",".",".",".","."]
[892,"Emotions","Marsch",".","Fritz Rickli",".","mittel","ELWE Verlag",2007,".","A5",".",".",".",".","."]
[893,"Schweizerpsalm","Hymne",".","P. Alberech Zwyssig","Ernst Hess","leicht","Emil Ruh ",".",".","A5",".",".",".",".","."]
[894,"Swiss Lady",".","Solo Für Piccolo und Alphorn","Peter Reber","Franz David","mittel",".",2007,".","A5",".",".",".",".","."]
[895,"Yellow Mountains",".",".","Jacob de Haan",".","leicht","De Haske",2007,".","A4",".",".",".",".","."]
[896,"the lion King","Film",".","Elton John","Ron Sebregts","mittel","De Haske",2007,".","A4",".",".",".",".","."]
[897,"Discover the Band","Marsch",".","Gilbert Tinner",".","leicht","Miltropa Music",2007,".","A5",".",".",".",".","."]
[898,"Banana Rock",".",".",".","Steve Mc Millan","leicht","Rundel Siegfried Musikverlag",2008,".","A4",".",".",".",".","."]
[899,"Puttin on the Ritz",".",".","Irving Berlin","Ray Woodfield","mittel","Obrasso",2008,".","A4",".",".",".",".","."]
[900,"Juke Box",".",".","Goff Richards","Ray Woodfield","leicht","Obrasso",2008,".","A4",".",".",".",".","."]
[901,"Erzherzog Albrecht Marsch","Marsch",".","Karl Komzak","Ray Woodfield",".",".",2008,".",".",".",".",".",".","."]
[902,"Hunyadi Indulo","Marsch",".","Siegfried Rudel",".","mittel","Rundel Siegfried Musikverlag",2008,".","A5",".",".",".",".","."]
[903,"Mack the Knife",".",".",".","Frank Bernaerts","mittel","Bernaerts Music",2008,".","A4",".",".",".",".","."]
[904,"Guadalajara",".","Solo für 3 Trompeten","Pepe Guizar","Alan Fernie","mittel","Obrasso",2008,".","A3",".",".",".",".","."]
[905,"Dreaming Celebration",".",".","Steve Daniels",".","leicht","Power Music",2008,".","A4",".",".",".",".","."]
[906,"Une belle Histoire",".",".","Michael Fugain","Roland Kernen","mittel","de Haske",2008,".","A4",".",".",".",".","."]
[907,"Pop looks Bach",".",".","Sam Fonteyn","Ray Woodfield","mittel","Obrasso",2008,".","A4",".",".",".",".","."]
[908,"Tete a tete",".","Duett Cornet + Euphonoum","Roy Newsom",".","schwer","Obrasso",2008,".","A4",".",".",".",".","."]
[909,"Renaissance Suite",".","Aufgabenstück Kantonales Bremgarten","Franco Cesarini",".","schwer","Mitropa Music",2008,".","A3",".",".",".",".","."]
[910,"In the Mood",".",".","Joe Garland","R. Beck","schwer",".",".",".","A4",".",".",".",".","."]
[911,"Ave Maria","Klassisch","Solo für Flügelhorn","Franz Schubert","Thomas Doss","mittel","Ruh Musik AG",2008,".","A4",".",".",".",".","."]
[912,"Nothing Compares 2 U",".",".","Sinead O`Connor","Luc Rodenmacher","leicht","Power Music",2008,".","A4",".",".",".",".","."]
[913,"St. Patrick Dances",".",".","Johan Nijs",".","leicht","Scherzando",2008,".","A4",".",".",".",".","."]
[914,"Land of Hope and Glory",".",".","Sir Edward Elgar","Phili Sparke","leicht","Anglo Music",2008,".","A4",".",".",".",".","."]
[915,"The Olympic Spirit",".",".","John Williams","Roland Smeets","mittel","hafabramusic",2008,".","A4",".",".",".",".","."]
[916,"Scandinavia",".",".","Alfred Bösendorfer",".","schwer","Rundel Siegfried Musikverlag",2008,".","A3",".",".",".",".","."]
[917,"Love shine a light",".",".",".","Frank Bernaerts","leicht","Bernaerts Music",2008,".","A4",".",".",".",".","."]
[918,"Is this the Way to Amarillo",".",".",".","Johny Ocean","mittel","Bernaerts Music",2008,".","A4",".",".",".",".","."]
[919,"ä",".",".",".","Jan van Kraeydonck","mittel","Bernaerts Music",2008,".","A4",".",".",".",".","."]
[920,"SaxoPhoning",".","Solo für 5 Sax","Luigi di Ghisallo",".","mittel","Rundel Siegfried Musikverlag",2009,".","A4",".",".",".",".","."]
[921,"Superstimmung","Stadion Kulthits",".",".","Willi März","mittel","Rundel Siegfried Musikverlag",2009,".","A3",".",".",".",".","."]
[922,"The Rock","Film",".","Hans Zimmer / Nick Glennie","Harry Gregson Williams","mittel","Edition Marc Reift",2009,".","A4",".",".",".",".","."]
[923,"Memory","Musical","Solo für Trompeten","Rob Ares",".",".","Arcon Music",2009,".","A4",".",".",".",".","."]
[924,"Jumpin` at the Woodside",".",".","Count Basie","Rudi Frei","leicht","Ruh Musik AG",2009,".","A5",".",".",".",".","."]
[925,"Ring Ring","ABBA",".","Anderson / Ulvaeus","Leigh Baker","mittel","Musikverlag Frank",2009,".","A4",".",".",".",".","."]
[926,"American Patrol",".",".",".","Scott Richards","mittel","Edition Marc Reift",2009,".","A4",".",".",".",".","."]
[927,"The best of Queen",".",".",".","Paul Murta","leicht","Hal Leonard Corporation",2009,".","A3",".",".",".",".","."]
[928,"Mission Impossible",".","Film",".","John Ryan","leicht",".",".",".","A4",".",".",".",".","."]
[929,"I` m a Beliver",".",".","Neil Diamond","Paul Murta","leicht","Hal Leonard Corporation",2008,".","A4",".",".",".",".","."]
[930,"Flic Flac","Marsch",".","G. Acklin",".","mittel",".",".",".","A5",".",".",".",".","."]
[931,"Ungarischer Tanz",".",".","Johannes Brahms","Siegfried Rundel","mittel","Rundel Siegfried Musikverlag",2009,".","A4",".",".",".",".","."]
[932,"les Savojardes",".",".","Jaques Offenbach","Siegfried Rundel","mittel","Rundel Siegfried Musikverlag",2009,".","A3",".",".",".",".","."]
[933,"Angels",".",".","Robbie Williams","Jan van Kraeydonck","leicht","Bernaerts Music",2009,".","A4",".",".",".",".","."]
[934,"Concerto per Clarinetto",".","Solo für Klarinette",".","Kees Vlak","mittel","Rundel Siegfried Musikverlag",2009,".","A3",".",".",".",".","."]
[935,"Coronation March","Krönungsmarsch",".","Peter Iilich Tschaikovsky","Loentij Dunaev","mittel","Rundel Siegfried Musikverlag",2009,".","A4",".",".",".",".","."]
[936,"Sinfonia per un Addio",".",".","Gian Piero Reverberi + Luigi Giordano","Lorenzo Bocci","mittel","De Haske",2009,".","A4",".",".",".",".","."]
[937,"Annen Polka",".",".",".","Siegfried Rundel","mittel","Rundel Siegfried Musikverlag",2009,".","A4",".",".",".",".","."]
[938,"Missa Brevis","Kirchenmesse",".","Jacob de Haan",".","mittel","De Haske",2008,".","A3",".",".",".",".","."]
[939,"Waltz No. 2",".","Dimitri Shostankovich","Jahan de Meij",".","mittel","Amstel Music",2009,".","A3",".",".",".",".","."]
[940,"Forrest Gump - Main Title","Film",".","Alan Silvestri","Johnnie Vinson","leicht","Hal Leonard Corporation",2009,".","A3",".",".",".",".","."]
[941,"I belive Ican Fly",".",".","Robert Kelly","Tim Waters","leicht","Hal Leonard Corporation",2010,".","A3",".",".",".",".","."]
[942,"Blow your Horn",".",".","Kees Vlak",".","mittel","Rundel Siegfried Musikverlag",2010,".","A4",".",".",".",".","."]
[943,"Alter Berner Marsch","Marsch",".","Carl Friedmann",".","leicht","Ruh Musik AG",2010,".","A5",".",".",".",".","."]
[944,"Patchwork Blues","Blues",".","Ivo Huonder",".","mittel","Musikverlag Frank",2010,".","A5",".",".",".",".","."]
[945,"Wir Musikanten","Polka",".","Kurt Gäble","Paul Nagler","mittel","Rundel Siegfried Musikverlag",2010,".","A4",".",".",".",".","."]
[946,"Biscaya","Slowfox",".","W. Bookwood","Rudi Seifert","mittel","Verlag Rudi Seifert",2010,".","A4",".",".",".",".","."]
[947,"Memories of Sao Paulo","Samba",".","Walter schneider","Conny Rall","mittel","Rundel Siegfried Musikverlag",2010,".","A4",".",".",".",".","."]
[948,"Badenweiler Marsch","Konzertmarsch",".","Georg Fürst","Bertold Jungkunz","mittel","Musikverlag Bernhard Geiger",2010,".","A4",".",".",".",".","."]
[949,"Shake a Tailfeather",".",".","O.Hayes","Aidan Thomas","mittel","Beriato Music",2010,".","A3",".",".",".",".","."]
[950,"Cane e Gatto"," Samba",".","Luigi di Ghisallo",".","mittel","Rundel Siegfried Musikverlag",2010,".","A3",".",".",".",".","."]
[951,"Verdammt ich lieb dich",".",".","Bernd Dietrich","Klaus Fiellmann","leicht","Beriato Music",2010,".","A4",".",".",".",".","."]
[952,"Mys Freiamt",".",".","Roland Zaugg",".","leicht",".",".",".","A4",".",".",".",".","."]
[953,"freude schöner Götterfunken",".",".","Ludwig van Beethoven","Heinz Dieter Paul","leicht","Halter Verlag",2010,".","A5",".",".",".",".","."]
[954,"Lord Tullamore",".",".","Carl Wittrock",".","mittel","Gobelinmusic",2010,".","A3",".",".",".",".","."]
[955,"One moment in time","Pop",".","Albert Hammond","Markus Götz",".","Ruh Musik AG",2010,".","A4",".",".",".",".","."]
[956,"Who wants to live forever",".",".","Brian May","Thijs Oud","leicht","Scherzando Music",2010,".","A4",".",".",".",".","."]
[957,"I will follow jim","Film ",".","J.W.Stole","Franz Watz","leicht","Schorer Publications",2010,".","A4",".",".",".",".","."]
[958,"Amen",".",".","Pawel Stanek",".","leicht","Rundel Siegfried Musikverlag",2010,".","A4",".",".",".",".","."]
[959,"Exodus","Film",".","Ernest Gold","John Glenesk Mortimer","mittel","Emil Ruh ",2010,".","A4",".",".",".",".","."]
[960,"Irish Charms",".",".",".","Henk Hogestein","mittel","De Haske",2010,".","A4",".",".",".",".","."]
[961,"She`s the one","pop",".","Robbie Williams","Steve Cortland","leicht","Bernaerts Music",2010,".","A4",".",".",".",".","."]
[962,"Celebrate",".",".","Kazuyasu Kaminaga",".","mittel","Wind Art",2010,".","A4",".",".",".",".","."]
[963,"Tarantella",".",".","Pawel Stanek",".","mittel","Rundel Siegfried Musikverlag",2010,".","A3",".",".",".",".","."]
[964,"Persian March","Persischer Marsch",".","Johann Strauss","John Glenesk Mortimer","mittel","Emil Ruh ",2010,".","A4",".",".",".",".","."]
[965,"Summernight Rock",".",".","Steve Mc Millan",".","mittel","Rundel Siegfried Musikverlag",2009,".","A4",".",".",".",".","."]
[966,"Everybody needs Somebody to love",".","Blues Brother",".","Marcel Saurer","leicht","Edition Marc Reift",2011,".","A4",".",".",".",".","."]
[967,"Midnight Dancer",".",".","Luigi di Ghisallo",".","mittel","Rundel Siegfried Musikverlag",2011,".","A3",".",".",".",".","."]
[968,"The Logical Song",".","Supertramp",".","Andre Waignin","mittel","Scherzando",2011,".","A3",".",".",".",".","."]
[969,"Pensylvanaia 6 - 5000",".",".",".","Masato Myokoin","mittel","De Haske",2011,".","a3",".",".",".",".","."]
[970,"Birdland",".",".","Joe Zawinul","Semjon Barlas","mittel","Molenaar",2011,".","a3",".",".",".",".","."]
[971,"Sing Sing Sing","Swing",".","Louis Prima","Dick Ravenal","mittel","Ruh Musik AG",2011,".","A4",".",".",".",".","."]
[972,"My Heart will go on","Film",".","James Horner","Will Jennings","leicht","Hal Leonard Corporation",2011,".","A3",".",".",".",".","."]
[973,"Marignian","Marsch",".","J. Daetwyler",".","mittel",".",2011,".","A5",".",".",".",".","."]
[974,"Boogie Woogie Bugle Boy",".",".","Kaye / Prince","Ray Woodfield","mittel","Obrasso - Verlag",2011,".","A3",".",".",".",".","."]
[975,"I will survive",".",".","Gloria Gainor","Jan van Kraeydonck","mittel","Bernaerts Music",2011,".","A3",".",".",".",".","."]
[976,"Clocks",".",".",".","Nick Hillary","mittel","Band Press VOR",2011,".","A3",".",".",".",".","."]
[977,"Let me entertain you",".",".","Robbie Williams","Don Campbell","mittel","De Haske",2011,".","A3",".",".",".",".","."]
[978,"Eye of the Tiger","Film",".","Peterik/ Sullivan","Peter King","mittel","Emil Ruh ",2011,".","A4",".",".",".",".","."]
[979,"Böhmischer Traum","Polka",".","Norbert Gälle","Siegfried Rundel","leicht","Rundel Siegfried Musikverlag",2011,".","A4",".",".",".",".","."]
[980,"A Groovy Kind of Love",".",".","Toni Wine","Alan Fernie","leicht","Obrasso - Verlag",2011,".","A4",".",".",".",".","."]
[981,"der einsame Hirte",".","solo","James Last","Corsin Tuor","mittel",".",2011,".","A4",".",".",".",".","."]
[982,"Nessun Dorma",".",".",".","Siegfried Rundel","leicht","Rundel Siegfried Musikverlag",2011,".","A5",".",".",".",".","."]
[983,"Hallelujah Chorus",".",".","George Fridrich Handel","Jack Bullock","mittel","Belvin Band",2011,".","A3",".",".",".",".","."]
[984,"Mazury Rhapsody",".","A Journey to Poland","Alfred Bösendorfer",".","schwer","Rundel Siegfried Musikverlag",2011,".","A3",".",".",".",".","."]
[985,"Pirates of the Caribbean",".","Symphonic Suite","Klaus Badlet","Nick Hillary","mittel",".",2011,".","A3",".",".",".",".","."]
[986,"Largo al Facototum della Citta",".",".","Giocchina Rossini","John Nimbly","schwer","Roosendaal Nederland",2011,".","A3",".",".",".",".","."]
[987,"There you`ll be","Film",".","diane Warren","Ted Ricketts","mittel","Hal Leonard Corporation",2012,".","A4",".",".",".",".","."]
[988,"How to train your Dragon","Film",".","John Powell","Sean o' Loughlin","mittel",".",2012,".","A3",".",".",".",".","."]
[989,"Robin Hood","Film",".","Michael Kamen","Erick Debs","mittel",".",2012,".","A3",".",".",".",".","."]
[990,"Honur the Brave","Konzertmarsch",".","William Rimmer","Ray Woodfield","schwer",".",2012,".","A4",".",".",".",".","."]
[991,"Oh Happy Day",".",".",".","Mike Sutherland","leicht",".",2012,".","A5",".",".",".",".","."]
[992,"Il Postigliore d^Amore",".",".","Alfred Bösendorfer",".","mittel","Rundel Siegfried Musikverlag",2012,".","A3",".",".",".",".","."]
[993,"Bohemian Rahpsody",".",".","Freddie Mercury","Philip Spark","mittel","Bernaerts Music","Jako 16",".","A3",".",".",".",".","."]
[994,"Gabriels Oboe","Solo Euphonium",".","Ennio Moricone","simon Kevin","mittel","Musikverlag Frank",2012,".","A4",".",".",".",".","."]
[995,"Auf der Jagd","poka schnell",".","Johann Strauss","Ray Woodfield","mittel","Obrasso - Verlag",2012,".","A4",".",".",".",".","."]
[996,"Wo ich auch stehe","mit Gesang",".","Albert Frey","Kurt Gäbele","leicht","Rundel Siegfried Musikverlag",2012,".","A5",".",".",".",".","."]
[997,"The last of the Mohicans",".",".",".","Frank Bernaerts","mittel","Bernaerts Music",2012,".","A4",".",".",".",".","."]
[998,"Brother Bear","Film",".",".","Frank Bernaerts","leicht","Bernaerts Music",2012,".","A4",".",".",".",".","."]
[999,"You can`t stop the beat","Musical",".","Marc Shaiman","Ted Ricketts","mittel",".",2012,".","A4",".",".",".",".","."]
[1000,"Crocodile Rock",".",".","Elton John","Alan Fernie","leicht","Obrasso - Verlag",2012,".","A4",".",".",".",".","."]
[1001,"Gimme some Lovin",".",".","Steve winwood","Gilbert Tinner","mittel","Musikverlag Frank",2012,".","A4",".",".",".",".","."]
[1002,"Follow the beat",".",".","Jan Ceulemans",".","mittel","Bernaerts Music",2012,".","A4",".",".",".",".","."]
[1003,"Fever","Musical",".","Eddie Cooley","John Moss","leicht",".",2012,".","A4",".",".",".",".","."]
[1004,"Elvis Rocks",".",".",".","Goff Richards","mittel","Obrasso - Verlag",2012,".","A3",".",".",".",".","."]
[1005,"Gonna Fly Now","Filmmusik",".","Conti/ Conners/ Robbins","Marcel Saurer",".","Marc Reift Verlag",2013,".",".",".",".",".",".","."]
[1006,"Open Sky","Marsch",".","Kees Vlak",".","mttel","Tierolff Muziekcenttrale",2013,".",".",".",".",".",".","."]
[1007,"Pompey",".",".","Mario Bürki",".","mittel","Musikverlag Frank",2013,".",".",".",".",".",".","."]
[1008,"Sway",".",".","Pablo Beltran Ruiz","Rob van Reijmersdal","mittel","Molenaar",2013,".",".",".",".",".",".","."]
[1009,"Mister Boogie",".",".","Walter schneider",".",".","Musikverlag Rundel",2013,".",".",".",".",".",".","."]
[1010,"Such A Happy Day",".","So a schöner Tag (Fliegerlied)","Andreas Donauer","Kurt Engelmann","einfach","De Haske",2013,".",".",".",".",".",".","."]
[1011,"Flashdance","Film/ Musical",".","Giorgio Moroder","Lorenzo Bocci","mittel","Molenaar",2013,".",".",".",".",".",".","."]
[1012,"Fliegermarsch","Marsch",".","Hermann Dostal","Siegfried Rundel",".","Rundel Siegfried Musikverlag",2013,".",".",".",".",".",".","."]
[1013,"Wir Zwei",".","Solo für Flügelhorn und Tenorhorn","Zdenek Gursky",".",".","Blaskapelle Gloria",2013,".",".",".",".",".",".","."]
[1014,"Aber dich gibt's nur einmal für mich",".",".","Pit/ Ly. By Heinz Gudera und Walter Leykauf","Harald Kolasch",".",".",".",".",".",".",".",".",".","."]
[1014,"Get up (A Banda)",".",".","Chico Buarque /Ly. By U. Niebergall& E.Schecko","Harald Kolasch",".","Schorer Publications",".",".",".",".",".",".",".","."]
[1014,"Greatest Hits and Evergreens",".",".",".",".",".",".",".",".",".",".",".",".",".","."]
[1014,"Heute so, morgen so",".",".","Gerd Schmidt / Lyrics by Günter Loose","Harald Kolasch",".","Schorer Publications",".",".",".",".",".",".",".","."]
[1014,"Ich war noch niemals in New York",".",".","Udo Jürgens /Lyrics by Michael Kunze","Harald Kolasch",".","Schorer Publications",".",".",".",".",".",".",".","."]
[1014,"Pure Lust am Leben",".",".","Friedel Geratsch","Wilfried Kornmeier",".","Schorer Publications",".",".",".",".",".",".",".","."]
[1014,"Sieben Fässer Wein",".",".","Norman Ascot/ Lyrics by Renée Marcard","Wilfried Kornmeier",".","Schorer Publications",".",".",".",".",".",".",".","."]
[1014,"Über den Wolken",".",".","Reinhard Mey","Wilfried Kornmeier",".","Schorer Publications",2013,".",".",".",".",".",".","."]
[1014,"You are my sunshine, my only sunshine",".",".","Jimmie Davis / Charles Mitchell","Wilfried Kornmeier",".","Schorer Publications",".",".",".",".",".",".",".","."]
[1015,"Manhatten Skyline",".",".","David Shire","Tony Osaer",".",".",".",".",".",".",".",".",".","."]
[1016,"A Salute From Lucern","Fanfare",".","Christoph Walter",".",".","ObrassoVerlag AG","KiKo 2013",".",".",".",".",".",".","."]
[1017,"The War of the Celts",".",".","Ronan Hardiman","Frank Bernaerts",".","Bernaerts Music","KiKo 2013",".",".",".",".",".",".","."]
[1018,"Choeur des Tiganes /Zigeunerchor",".",".","Guiseppe Verdi","Jules Hendriks",".","EMR","KiKo 2013",".",".",".",".",".",".","."]
[1019,"For unto us a Child is born",".",".","Georg Friedrich Händel","Jan van Kraeydonk",".","Bernaerts Music","KiKo 2013",".",".",".",".",".",".","."]
[1020,"The Da Vinci Code","Filmmusik",".","Hans Zimmer","Frank Bernaerts",".","Bernaerts Music","KiKo 2013",".",".",".",".",".",".","."]
[1021,"Concertino für Blasorchester",".",".","Emil Wallimann",".",".","Musica Musikverlag",2013,".",".",".",".",".",".","."]
[1022,"Bernina","Marsch",".","Tschuor Oscar",".",".",".","JaKo 14",".",".",".",".",".",".","."]
[1023,"It`s Raining Men",".",".","Paul Jabara& Paul Schaffer","Frank Bernaerts",".","Bernaerts Music","JaKo 14",".",".",".",".",".",".","."]
[1024,"Russian Dance Suite",".",".","Kees Vlak",".",".","Musikverlag Rundel","JaKo 14",".",".",".",".",".",".","."]
[1025,"Brass Parade","Marsch",".","Jean-Pierre Fleury",".",".","Power Music","JaKo 14",".",".",".",".",".",".","."]
[1026,"Morgensonne","Polka",".","Peter Schad",".","mittel-mittelschwer","Musikverlag Rundel","JaKo 14",".",".",".",".",".",".","."]
[1027,"Swarovski Marsch","Konzertmarsch",".","G. Buitenhuis",".","mittelschwer",".","JaKo 14",".",".",".",".",".",".","."]
[1028,"Crying at the Discoteque",".",".","N:G. Rodgers, A. Bard, A. Wollbeck","Jan van Kraeydonk","mittelschwer","Bernaerts Music","JaKo 14",".",".",".",".",".",".","."]
[1029,"Latin Favourites",".",".",".","Peter Kleine Schaars","mittelschwer",".","JaKo 14",".",".",".",".",".",".","."]
[1030,"Waltzing with Strauss",".",".",".","Walter Kalschnig","mittelschwer","Eichsfeld Musikverlag","JaKo 14",".",".",".",".",".",".","."]
[1031,"Let`s Twist Again",".",".","Kal Mann / David Appell","Ted Parson","mittel-mittelschwer","EMR","JaKo 14",".",".",".",".",".",".","."]
[1032,"Total Eclipse of Heart",".",".","Jim Steinman","Keith Terrett",".","Bernaerts Music","JaKo 14",".",".",".",".",".",".","."]
[1033,"Caribbean Beat",".",".","Jan Ceulemans",".","mittelschwer","Bernaerts Music","JaKo 14",".",".",".",".",".",".","."]
[1034,"See you later aligator",".",".","Robert Charles Guidry","Harald Kolasch",".","Musikverlag Adank","JaKo 14",".",".",".",".",".",".","."]
[1035,"Fanfare, Dance and Choral",".",".","Giovanni Gastoldi",".",".",".","KiKo 14",".",".",".",".",".",".","."]
[1036,"Le Ranz des Vaches",".",".",".","Sevillanas Hector",".",".","KiKo 14",".",".",".",".",".",".","."]
[1037,"Hindenburg",".",".","Geisler Michael",".",".",".","KiKo 14",".",".",".",".",".",".","."]
[1038,"Drei Haselnüsse für Aschenbrödel",".",".","Svoboda Karel",".",".",".","KiKo 14",".",".",".",".",".",".","."]
[1039,"All for Love",".",".","B.Adams/R.J. Lange/ M. Kamen",".",".",".","KiKo 14",".",".",".",".",".",".","."]
[1040,"Game of Thrones",".",".","Djawadi Ramin",".",".",".","KiKo 14",".",".",".",".",".",".","."]
[1041,"Jerusalem, Jerusalem",".",".","Shemer Naomi",".",".",".","KiKo 14",".",".",".",".",".",".","."]
[1042,"Vergnügungszug",".",".","Strauss Johann",".",".",".","KiKo 14",".",".",".",".",".",".","."]
[1043,"The Rose",".",".","McBroom Amanda",".",".",".","KiKo 14",".",".",".",".",".",".","."]
[1044,"Festival Day",".",".","Mario Bürki",".",".",".","JaKo 15",".",".",".",".",".",".","."]
[1045,"Ein Reisetagebuch",".",".","Manfred Sternberger",".",".",".","JaKo 15",".",".",".",".",".",".","."]
[1046,"Jai Ho",".",".","Rahman/ Michael Brown",".",".",".","JaKo 15",".",".",".",".",".",".","."]
[1047,"New Xork, New York",".",".","John Kander/ Rieks van der Velde",".",".",".","JaKo 15",".",".",".",".",".",".","."]
[1048,"An olympic Dream",".",".","Dean Jones",".",".",".","Jako 15",".",".",".",".",".",".","."]
[1049,"Far From over",".",".","Frank Stallone / Lorenzo Bocci",".",".",".","JaKo 15",".",".",".",".",".",".","."]
[1050,"Spanischer Zigeunertanz",".",".","Pasqual Mariquina",".",".",".","JaKo 15",".",".",".",".",".",".","."]
[1051,"Gangnam Style",".",".","Gun Hyung Yoo/ Jai Sang Park",".",".",".","JaKo 15",".",".",".",".",".",".","."]
[1052,"Swingin`Downbeat",".",".","Nicholas Buron",".",".",".","JaKo 15",".",".",".",".",".",".","."]
[1053,"Rössli-Schottisch",".",".","Mario Bürki",".",".",".","JaKo 15",".",".",".",".",".",".","."]
[1054,"Final Countdown",".",".","Jjoey Tempest / Robert Buckley",".",".",".","JaKo 15",".",".",".",".",".",".","."]
[1055,"Alls was bruchsch uf dere Welt isch liebi",".",".",".",".",".",".","JaKo 15",".",".",".",".",".",".","."]
[1056,"Mila",".",".","Ermanno Celotti",".",".",".",".",".",".",".",".",".",".","."]
[1057,"Gabriellas Song",".",".","Stefan Nilsson","Fred Borge",".",".","KiKo 15",".",".",".",".",".",".","."]
[1058,"Backdraft",".",".","Hans Zimmer","Darrol Barry",".",".","KiKo 15",".",".",".",".",".",".","."]
[1059,"The Hungarian Spirit",".",".","Roland Kernen",".",".",".","KiKo 15",".",".",".",".",".",".","."]
[1060,"Brindisi",".",".","Giuseppe Verdi","William Brighton",".",".","KiKo 15",".",".",".",".",".",".","."]
[1061,"Let it Go",".",".","Kristen Anderson-Lopez / Roberet Lopez","James Kazik",".",".","KiKo 15",".",".",".",".",".",".","."]
[1062,"Fanfare Festive",".",".","Michael Geisler",".",".",".","KiKo 15",".",".",".",".",".",".","."]
[1063,"March of the Trolls",".",".","Edvard Grieg","Brian Beck",".",".","KiKo 15",".",".",".",".",".",".","."]
[1064,"Hobbits Dance and Hymn",".",".","Johan De Meij","Paul Lavvender",".",".","KiKo 15",".",".",".",".",".",".","."]
[1065,"Concerto d'Amore",".",".","Jacob de Haan",".",".","De Haske","KiKo 15",".","A4",".",".",".",".","."]
[1066,"Hine e Hine",".",".","Princess Te Rangi Pai","Reter Graham",".",".","KiKo 15",".",".",".",".",".",".","."]
[1067,"Feuer und Eis",".",".",".",".",".",".",".",".",".",".",".",".",".","."]
[1068,"Piccadilly Fanfare",".",".","Johan Nijs",".",".",".","Kiko 16",".",".",".",".",".",".","."]
[1069,"The Winner Takes it all","Pop",".","ABBA","Frank Bernaerts",".",".","Kiko 16",".","A4",".",".",".",".","."]
[1070,"Radetzky-Marsch",".",".","Johann Stauss Vater","Siegfried Rundel",".",".","JaKo 16",".",".",".",".",".",".","."]
[1071,"Mountain Moments",".",".","Luis Carlos Neves Serra",".",".",".","JaKo 17",".",".",".",".",".",".","."]
[1072,"Village People on the Move",".",".","Peter Kleine Schaar","Moralli/ Belolo",".",".",".",".",".",".",".",".",".","."]
[1073,"Music from Carmina Burana",".",".","Carl Orff","Jay Bocook",".",".","Kiko 16",".",".",".",".",".",".","."]
[1074,"Torrents of fire",".",".","Larry Neeck",".",".",".","Kiko 16",".",".",".",".",".",".","."]
[1075,"Stelle dell`Argovia",".",".","Peter Erhard",".",".",".","Mai 18",".",".",".",".",".",".","."]
[1076,"Der Magnetberg",".",".","Mario Bürki",".",".",".","JaKo 17",".",".",".",".",".",".","."]
[1077,"Thriller",".",".","Michael Jackson// Rod Temperton","John Ryan",".",".","JaKo 17",".",".",".",".",".",".","."]
[1078,"Europa",".",".","Carlos Santana","Jérome Thomas",".",".","JaKo 17",".",".",".",".",".",".","."]
[1079,"Mussinan-Marsch","Marsch",".","C. Carl","Siegfried Rundel",".",".","JaKo 16",".","C5",".",".",".",".","."]
[1080,"Gruss an Bern",".",".","C. Friedemann",".",".",".","JaKo 16",".",".",".",".",".",".","."]
[1081,"Band of Brothers",".",".","Michel Kamen","Rieks Van der Velde",".",".","Kiko 16",".",".",".",".",".",".","."]
[1082,"Zarathustra 2000",".",".","Richard Strauss","Michael Jerg",".",".","JaKo 17",".",".",".",".",".",".","."]
[1083,"Semper Fidelis","Marsch",".","John Philip Sousa","Siegfried Rundel",".",".","JaKo 17",".",".",".",".",".",".","."]
[1084,"Bon Jovi - Rock Mix",".",".","John Bon Jovi","Wolfgang Wössner",".",".","JaKo 17",".",".",".",".",".",".","."]
[1085,"Bryan Adams",".",".","Bryan Adams","Wolfgang Wössner",".",".","JaKo 17",".",".",".",".",".",".","."]
[1086,"Haroliza",".",".","Franz Meierhofer","Michael Kuhn",".",".","JaKo 16",".",".",".",".",".",".","."]
[1087,"Vivat Lucerna",".",".","Arthur Ney",".",".",".","JaKo 17",".",".",".",".",".",".","."]
[1088,"Le nozze di Figaro",".",".","Wolfgang Amadeus Mozart","Fulvio Creux",".",".","Kiko 17",".",".",".",".",".",".","."]
[1089,"Elisabeth Serenade",".",".","Ronald Binge","Zbysek Bittmar",".",".","Kiko 17",".",".",".",".",".",".","."]
[1090,"Tales From The Vienna Wood / Geschichten aus dem Wienerwald",".",".","Johann Strauss","John Glenesk Mortimer",".",".","KiKo 17",".",".",".",".",".",".","."]
[1091,"Ne partez pas sans moi",".",".","Celine Dion","Frank Bernaerts",".",".","Kiko 17",".",".",".",".",".",".","."]
[1092,"Air From Suite No. 3",".",".","Johann Sebastian Bach","Frank Bernaerts",".",".","Kiko 17",".",".",".",".",".",".","."]
[1093,"Die diebische Elster","Ouvertüre",".","Giocchino Rossini","Gerhard Hafner",".","Ruh Musik AG","Kiko 17",".","A4",".",".",".",".","."]
[1094,"Nimrod",".",".","Edward Elgar","Uwe Kohls",".",".","KiKo 17",".",".",".",".",".",".","."]
[1095,"I`m so excited",".",".","Pointer Sisters","Peter Kleine Schaars",".",".","JaKo 16",".",".",".",".",".",".","."]
[1096,"Heaven`s Light",".",".","Steven Reineke",".",".",".","Kiko 16",".",".",".",".",".",".","."]
[1097,"Berliner Luft",".",".","Paul Lincke","Stefan Schalgin",".",".","Jako 18",".",".",".",".",".",".","."]
[1098,"Böhmisches Feuer",".",".","Kurt Pascher",".",".",".","Jako 18",".",".",".",".",".",".","."]
[1099,"Ease on down the road",".",".","Charles Smalls","Jirka Kadlec",".",".","Jako 18",".",".",".",".",".",".","."]
[1100,"Gladiator",".",".","Zimmer/ Gerard","Frank Bernaerts",".",".","Jako 18",".",".",".",".",".",".","."]
[1101,"Love is in the air",".",".","John Paul Young","Jonny Ocean",".",".","Jako 18",".",".",".",".",".",".","."]
[1102,"Madagascar",".",".","Hans Zimmer","Jay Bocook",".",".","Jako 18",".",".",".",".",".",".","."]
[1103,"Mazedonia",".",".","Mario Bürki",".",".",".","Jako18",".",".",".",".",".","Kant. MF","."]
[1104,"One of us",".",".","Andersson & Ulvaeus","Frank Bernaerts",".",".","Jako 18",".",".",".",".",".",".","."]
[1105,"Polka pro dva Klarinety",".",".","Augustin Zitek","Hans Eibl",".",".","Jako 18",".",".",".",".",".",".","."]
[1106,"Skyfall",".",".","Paul Epworth","Jay Bocook",".",".","Jako 18",".",".",".",".",".",".","."]
[1107,"Someone like you",".",".","Adele Adkins","Frank Bernaerts",".",".","Jako 18",".",".",".",".",".",".","."]
[1108,"William Tell March",".",".","G.Rossini","Robert Allmend",".",".","Jako18",".",".",".",".",".",".","."]
[1109,"Faces of Proudness",".",".","Andreas Ludwig Schulte",".",".",".","Kiko 18",".",".",".",".",".","Kant. MF","."]
[1110,"A Song of Hope",".",".","James Swearingen",".",".",".","Kiko 18",".",".",".",".",".",".","."]
[1111,"Ich bete an die Macht der Liebe",".",".","Dimitri Bortniansky","Roland Zaugg",".",".","Kiko 18",".",".",".",".",".",".","."]
[1112,"Künstler Quadrille",".",".","Johan Strauss Jr.","Vincent van den Bijlaard",".",".","Kiko 18",".",".",".",".",".",".","."]
[1113,"The Sound of Silence",".",".","Paul Simon","James L. Horsay",".",".","Kiko 18",".",".",".",".",".",".","."]
[1114,"Adventure Island",".",".","Andrew Pearce",".",".",".","Kiko 18",".",".",".",".",".",".","."]
[1115,"Don`t stop me now",".",".","Queen","Frank Bernaerts",".",".","Kiko 18",".",".",".",".",".",".","."]
[1116,"Baba Yetu",".",".","Christopher Tin","Roland Smeets",".",".","Jako 2019",".",".",".",".",".",".","."]
[1117,"Bundesrat Gnägi Marsch",".",".","Albert Benz",".",".",".","Jako 2019",".",".",".",".",".",".","."]
[1118,"Can`take my eyes off you",".",".","Bob Crewe / Bob Gaudio","Marcel Saurer",".",".","Jako 2019",".",".",".",".",".",".","."]
[1119,"The Polar Express Medley",".",".","Alan Silvestri","Jerry Brubaker",".",".","Kiko 2020",".",".",".",".",".",".","."]
[1120,"Aamulaulu",".",".","Toivo Kuula","Arthur Fuhrmann",".",".","Kiko 2020",".",".",".",".",".",".","."]
[1121,"The great Locomotive Chase",".",".","Robert W. Smith",".",".",".","Kiko 2020",".",".",".",".",".",".","."]
[1122,"Antarctica",".",".","Carl wittrock",".",".",".","Kiko 2020",".",".",".",".",".",".","."]
[1123,"Roller Coaster",".",".","Otto M. Schwarz",".",".",".","Kiko 2020",".",".",".",".",".",".","."]
[1124,"Sleigh  ride",".",".","Leroy Anderson",".",".",".","Kiko 2020",".",".",".",".",".",".","."]
[1125,"The Bells of Corneville",".",".","Robert Planquette","Stig Gustafson",".",".","Kiko 2020",".",".",".",".",".",".","."]
[1126,"A Christmas Celebration",".",".","Barry Darrol",".",".",".","Kiko 2020",".",".",".",".",".",".","."]
[1127,"Carol of the Bell",".",".","Mykola Leontovych","Peter Wilhousky",".",".","Kiko 2020",".",".",".",".",".",".","."]
[1128,"Auld lang syne",".",".","Traditional","Simon Felder",".",".","Kiko 2020",".",".",".",".",".",".","."]
[1129,"The Call of Christmas",".",".","Wim Stalman",".",".",".","Kiko 2020",".",".",".",".",".",".","."]
[1130,"Volare",".",".","Domenico Modugno, Franco Migliacci","Lorenzo Bocci",".",".","MT 2024",".",".",".",".",".",".","."]
[1131,"Böhmische Liebe",".",".","Mathias Rauch",".",".",".","MT 2024",".",".",".",".",".",".","."]
[1132,"Bis bald auf Wiedersehen",".",".","Wenzel Zittner","Gerald Weinkopf",".",".","MT 2024",".",".",".",".",".",".","."]
[1133,"7 Years",".",".","Lukas Graham","Jan van Kraeydonck",".",".","MT 2024",".",".",".","X","X","Noten Digital","."]
[1134,"Charlotta",".",".","Hecht","Jan Müller",".",".","MT 2024",".",".",".",".",".",".","."]
[1135,"Take on me",".",".","A-HA","Paul Murtha",".",".","MT 2024",".",".",".",".",".",".","."]
[1136,"Glory Fanfare",".",".","Otto M. Schwarz",".",".",".","MT 2024",".",".",".",".",".",".","."]
[1137,"A little Opening",".",".","Thiemo Kraas",".",".",".","Kiko 2024",".",".",".",".",".",".","."]
[1138,"Aqulia Volante",".",".","Michael Geisler",".",".",".","Kiko 2024",".",".",".",".","X","Noten Digital","Hörprobe"]
[1139,"A Symphonic Celebration",".",".","Robert Sheldon",".",".",".","Kiko 2024",".",".",".",".",".",".","."]
[1140,"Fiesta y flores",".",".","Jordi Ripoll",".",".",".","Kiko 2024",".",".",".",".",".",".","."]
[1141,"Beautiful Danxia - Rainbow Mountains",".",".","Satoshi Yagisawa",".",".",".","Kiko 2024",".",".",".",".",".",".","."]
[1142,"Winterlust",".",".","Josef Strauss","Scott Richards",".",".","Kiko 2024",".",".","X",".",".","Einzel Noten","Hörprobe"]

{"sheet":"Suche","index":1,"n_rows":21,"n_cols":20,"rows_kept":21,"cut":false,"hidden":false,"merged":[[0,4,1,16],[0,1,1,1]]}
[null,"Hier "]
[]
[null,null,"AUSWÄHLEN"]
[null,{"$f":"TRANSPOSE(DBN[#Headers])","v":"Nr."},null,null,"Nr.","Titel","Stückart","Beschrieb","Komponist","Arrangeur","Schwere\ngrad","Musikverlag","Jahr","Spender","Noten\nformat","Einzel","Partitur","Kompl","Digital \nNoten","Hörprobe\nMP3"]
[null,"Titel",null,null,16,"You raise me up",".",".","Brendan Graham / Rolf Lovland","Frank Bernaerts",".",".",".",".",".",".",".",".",".","."]
[null,"Stückart",".",null,764,"The winner takes it all","Pop",".","ABBA","Harmoniemusik Rohrdorf",".",".",".",".","A4",".",".",".",".","."]
[null,"Beschrieb",null,null,877,"Harry Potter and the philosophers Stone","Film",".","John Williams","Frank Bernaerts","mittel","Bernaerts Music",2006,".","A3",".",".",".",".","."]
[null,"Komponist","ABBA",null,903,"Mack the Knife",".",".",".","Frank Bernaerts","mittel","Bernaerts Music",2008,".","A4",".",".",".",".","."]
[null,"Arrangeur","Frank Bernaerts",null,917,"Love shine a light",".",".",".","Frank Bernaerts","leicht","Bernaerts Music",2008,".","A4",".",".",".",".","."]
[null,"Schwere\ngrad",null,null,997,"The last of the Mohicans",".",".",".","Frank Bernaerts","mittel","Bernaerts Music",2012,".","A4",".",".",".",".","."]
[null,"Musikverlag",null,null,998,"Brother Bear","Film",".",".","Frank Bernaerts","leicht","Bernaerts Music",2012,".","A4",".",".",".",".","."]
[null,"Jahr",null,null,1017,"The War of the Celts",".",".","Ronan Hardiman","Frank Bernaerts",".","Bernaerts Music","KiKo 2013",".",".",".",".",".",".","."]
[null,"Spender",null,null,1020,"The Da Vinci Code","Filmmusik",".","Hans Zimmer","Frank Bernaerts",".","Bernaerts Music","KiKo 2013",".",".",".",".",".",".","."]
[null,"Noten\nformat",null,null,1023,"It`s Raining Men",".",".","Paul Jabara& Paul Schaffer","Frank Bernaerts",".","Bernaerts Music","JaKo 14",".",".",".",".",".",".","."]
[null,"Einzel",null,null,1069,"The Winner Takes it all","Pop",".","ABBA","Frank Bernaerts",".",".","Kiko 16",".","A4",".",".",".",".","."]
[null,"Partitur",null,null,1091,"Ne partez pas sans moi",".",".","Celine Dion","Frank Bernaerts",".",".","Kiko 17",".",".",".",".",".",".","."]
[null,"Kompl",null,null,1092,"Air From Suite No. 3",".",".","Johann Sebastian Bach","Frank Bernaerts",".",".","Kiko 17",".",".",".",".",".",".","."]
[null,"Digital \nNoten",null,null,1100,"Gladiator",".",".","Zimmer/ Gerard","Frank Bernaerts",".",".","Jako 18",".",".",".",".",".",".","."]
[null,"Hörprobe\nMP3",null,null,1104,"One of us",".",".","Andersson & Ulvaeus","Frank Bernaerts",".",".","Jako 18",".",".",".",".",".",".","."]
[null,null,null,null,1107,"Someone like you",".",".","Adele Adkins","Frank Bernaerts",".",".","Jako 18",".",".",".",".",".",".","."]
[null,null,null,null,1115,"Don`t stop me now",".",".","Queen","Frank Bernaerts",".",".","Kiko 18",".",".",".",".",".",".","."]

{"sheet":"Hilfstabelle","index":2,"n_rows":881,"n_cols":16,"rows_kept":881,"cut":false,"hidden":false,"merged":[]}
[{"$f":"DBN[#Headers]","v":"Nr."},"Titel","Stückart","Beschrieb","Komponist","Arrangeur","Schwere\ngrad","Musikverlag","Jahr","Spender","Noten\nformat","Einzel","Partitur","Kompl","Digital \nNoten","Hörprobe\nMP3"]
[{"$f":"_xlfn._xlws.SORT(_xlfn.UNIQUE(DBN[Nr.]))","v":1},{"$f":"_xlfn._xlws.SORT(_xlfn.UNIQUE(DBN[Titel]))","v":"1...2...3...Maria"},{"$f":"_xlfn._xlws.SORT(_xlfn.UNIQUE(DBN[Stückart]))","v":" Samba"},{"$f":"_xlfn._xlws.SORT(_xlfn.UNIQUE(DBN[Beschrieb]))","v":"."},{"$f":"_xlfn._xlws.SORT(_xlfn.UNIQUE(DBN[Komponist]))","v":"."},{"$f":"_xlfn._xlws.SORT(_xlfn.UNIQUE(DBN[Arrangeur]))","v":"."},{"$f":"_xlfn._xlws.SORT(_xlfn.UNIQUE(DBN[Schwere\ngrad]))","v":"."},{"$f":"_xlfn._xlws.SORT(_xlfn.UNIQUE(DBN[Musikverlag]))","v":"."},{"$f":"_xlfn._xlws.SORT(_xlfn.UNIQUE(DBN[Jahr]))","v":98},{"$f":"_xlfn._xlws.SORT(_xlfn.UNIQUE(DBN[Spender]))","v":"."},{"$f":"_xlfn._xlws.SORT(_xlfn.UNIQUE(DBN[Noten\nformat]))","v":"."},{"$f":"_xlfn._xlws.SORT(_xlfn.UNIQUE(DBN[Einzel]))","v":"."},{"$f":"_xlfn._xlws.SORT(_xlfn.UNIQUE(DBN[Partitur]))","v":"."},{"$f":"_xlfn._xlws.SORT(_xlfn.UNIQUE(DBN[Kompl]))","v":"."},{"$f":"_xlfn._xlws.SORT(_xlfn.UNIQUE(DBN[Digital \nNoten]))","v":"."},{"$f":"_xlfn._xlws.SORT(_xlfn.UNIQUE(DBN[Hörprobe\nMP3]))","v":"."}]
[2,"1e Rhapsody on Negro Spirituals",".","A Journey to Poland","ABBA","Achim Graf / Peter Welte","einfach","Amstel Music",1945,null,"A3","X","X","X","Beispiel","Hörprobe"]
[3,"7 Years","ABBA","Aufgabenstück Kantonales Bremgarten","Abel Lex","Adamek H. Paul","leicht","Anglo Music",1962,null,"A4",null,null,null,"CH - Noten Digital","Hörprobe MP3"]
[4,"76 Trombones","Arie","Blues Brother","Adele Adkins","Aidan Thomas","mittel","Arcon Music",1968,null,"A5",null,null,null,"Einzel Noten"]
[5,"ä","Blues","Dimitri Shostankovich","A-HA","Alan Fernie","mittel-mittelschwer","Band Press VOR",1971,null,"C5",null,null,null,"Kant. MF"]
[6,"A Call for Peace","Boogie","Duett Cornet + Euphonoum","Alan Silvestri","Albert Loritz","mittelschwer","Belgano Musikverlag",1972,null,null,null,null,null,"Noten Digital"]
[7,"A Christmas Celebration","Boogie Woogie","Fanfare","Albert Benz","Andre Waignin","mttel","Belvin Band",1973]
[8,"A day at the circus","Cha Cha Cha","Film","Albert Frey","Arthur Fuhrmann","schwer","Beriato Music",1974]
[9,"A Groovy Kind of Love","Cha-Cha-Cha","Klarinetten Ensemble","Albert Hammond","Auer/Ansbach",null,"Bernaerts Music",1975]
[10,"A little Opening","Charleston","Konzertmarsch","Alfred Bösendorfer","Bainum Glenn Cliffe",null,"Blaskapelle Gloria",1976]
[11,"A Salute From Lucern","Choral","Latin","Allmend Robert","Bauduc Ray/Haggart Bob",null,"Boggio R. Verlag",1977]
[12,"A Song of Hope","Dixie","mit Tambouren","Anderson / Ulvaeus","Beck R.",null,"Bohne H.",1979]
[13,"A String of Pearls","Dixieland","Operette Der Obersteiger","Anderson L.","Beck Randy",null,"Bohne H. Verlag",1980]
[14,"A Symphonic Celebration","Fanfare","Potpourri","Anderson Leroy","Benz Albert/Schumacher Rolf",null,"Büttler Karl",1981]
[15,"A Tribute to Elvis","Fantasie","Prozession","Andersson & Ulvaeus","Bernaerts Frank",null,"Curnow Music",1982]
[16,"Aamulaulu","Fernsehmelodien","Seemannslieder-Potpourri","Andreas Donauer","Bernhard Helmut",null,"De Haske",1983]
[17,"Aargauer Feuerwehrmarsch","Film","Serenade","Andreas Ludwig Schulte","Bertold Jungkunz",null,"DeHaDe",1984]
[18,"ABBA Gold","Film ","Show","Andrew Pearce","Bichsel J.",null,"DIFEM",1985]
[19,"Abendglocken","Film/ Musical","So a schöner Tag (Fliegerlied)","Anklin G.","Bill Holcombe",null,"DIFEM ",1987]
[20,"Aber dich gibt's nur einmal für mich","Filmmelodien","Solisten-Medley","Anklin Guido","Binder C.",null,"Difem Music Avenue",1988]
[21,"Acapulco","Filmmusik","Solistenparade","Antonio Vivaldi","Björn Kjaernes",null,"Edition Helbling AG",1989]
[22,"Adventure Island","Folk Festival","solo","Arthur Ney","Blüthgen H.",null,"Edition Marc Reift",1990]
[23,"African Symphony","Folkstümlich","Solo für 2 Klarinetten","Ashman H./Menken A.","Bocook Jay",null,"Eichsfeld Musikverlag",1991]
[24,"Air for Winds","Foxtrott","Solo für 3 Posaunen","Augustin Zitek","Boekel Meindert",null,"Elwe Musikverlag",1992]
[25,"Air Force Hymn","Gospel","Solo für 3 Trompeten","Avsenik V. S.","Böhm Hans",null,"Elwe Verlag",1993]
[26,"Air From Suite No. 3","Gospels","Solo für 5 Sax","B. Andersson","Bohne H.",null,"Emil Ruh ",1995]
[27,"Alabama-Dixie","Grande Marche","Solo für Bariton und Euphonium","B.Adams/R.J. Lange/ M. Kamen","Brian Beck",null,"EMR",1996]
[28,"All for Love","Hymne","Solo für Bariton, Tenorsax, Baritonsax, Bass, Euphonium","Bach/Gounod","Broadbent Derek",null,"Euphonia Musikverlag",1997]
[29,"Alls was bruchsch uf dere Welt isch liebi","Jazz","Solo für Bass","Backer, Davis, Cook, Greenaway","Brogli Kurt",null,"Ewoton Musikverlag",1999]
[30,"Alpenglühn","Jazz-Rock","Solo für Es Alto Sax","Badinger,Schachner,Schicho","Bummerl Franz",null,"Frank Musikverlag",2000]
[31,"Alpenländer-Stimmungsparade","Kanon","Solo für Euphonium","Baker- Werle","Charles Michiels",null,"Gebr. Hug & Co. ",2001]
[32,"Alpenrosen","Kirchenmesse","Solo für Fagott oder Bariton/Tenorhorn/Posaune","Balay G.","Charvat Josef",null,"Gobelinmusic",2002]
[33,"Alpenveilchen","Klassik","Solo für Fahrradglocke","Ball Eric","Colmar J.",null,"Greber Music",2003]
[34,"Also sprach Zarathustra","Klassisch","Solo für Flöten und Klarinetten","Bär Edi","Conny Rall",null,"Haag Hermann Kreuzlingen",2004]
[35,"Alte Kameraden","Konzertmarsch","Solo für Flügelhorn","Barry Darrol","Corsin Tuor",null,"Haag Hermann Musikverlag",2005]
[36,"Alter Berner Marsch","Krönungsmarsch","Solo für Flügelhorn und Tenorhorn","Beck R.","Darrol Barry",null,"Haag Hermann Verlag",2006]
[37,"Always look on the bright side of life","Ländler","Solo für grosse Trommel mit Becken","Benetka F.","David Franz",null,"hafabramusic",2007]
[38,"Am Bergsee","Latin ","Solo für Klarinette","Benz Albert","De Haan Jacob",null,"Hal Leonard Corporation",2008]
[39,"Am Lago di Poschiavo","Mambo","Solo für Klarinetten","Berlin Irving","de Haan Jan",null,"Halter Verlag",2009]
[40,"Am lichten Morgen","March Paraphrase","Solo für Klarinetten und Trompeten","Berlioz Hector","De Meij Johan",null,"Harmoniemusik Rohrdorf",2010]
[41,"Am schönen Thunersee","Marcia Sinfonico","Solo für Piccolo","Bernard Francis","Dick Ravenal",null,"Hug & Co. Basel",2011]
[42,"Am Seealpsee","Marsch","Solo Für Piccolo und Alphorn","Bernd Dietrich","Domberger Alois",null,"King's Brass",2012]
[43,"Amazing Grace","Marsch-Beat","Solo für Piccolo und Tenorhorn","Bernhagen W.","Don Campbell",null,"Körner B. Verlag",2013]
[44,"Amboss-Polka","Marschpolka","Solo für Posaune","Bernhauser Anton","Egger Rolf",null,"Kühn Paul Musikverlag",2021]
[45,"Amen","mit Gesang","Solo für Tenorhorn","Bieri Jakob","Egidius H.",null,"Lüthold A. Musikverlag",2022]
[46,"Amercian Panorama","Modern","Solo für Trompete","Binicki Stanislav","Ehmig J. P.",null,"Lüthold Albert Musikverlag","."]
[47,"American Patrol","Musical","Solo für Trompete oder Cornet","Bisselink B.","Emiliano Gusperti",null,"Marc Reift Verlag","1992/2005"]
[48,"Amor Amor Amor","Oper","Solo für Trompete und Flügelhorn","Blake Ian, Porter K.C., Escolar Luis Gomez","Erick Debs",null,"mf Publications","2001/2005"]
[49,"Amora","Operette","Solo für Trompete/ Alt- Sax","Blaser Hanspter","Ernst Hess",null,"Migros","2002/2005"]
[50,"Amsel-Polka","Ouverture","Solo für Trompeten","Bob Crewe / Bob Gaudio","Exl Engelbert M.",null,"Milgra Edition","JaKo 14"]
[51,"An American in Switzerland","Ouvertüre","Solo für Tuba","Boedijn Gerard","Fernie Alan",null,"Miltropa Music","JaKo 15"]
[52,"An den Frühling","Overture","Solo Oboe","Boggio R.","Flink A. J.",null,"Mitropa","Jako 16"]
[53,"An der schönen blauen Donau","Parademarsch","Solo Posaune","Bohnsack O.","Foster Larry",null,"Mitropa Music","JaKo 17"]
[54,"An der Weser","Pasa Doble","Solo Querflöte","Bohnsack Oskar","Foster Robert E.",null,"Molenaar","Jako 18"]
[55,"An olympic Dream","Paso Doble","Solo Tenorhorn","Borel Ch.","Frank Bernaerts",null,"Musica Musikverlag","Jako 2019"]
[56,"Andante sostenuto","Paso Doble vivo","Solo Trompete","Borovicka Antonin","Franz David",null,"Musikverlag Adank","Jako18"]
[57,"Andulka-Marsch","Persischer Marsch","Supertramp","Bosch Adr.","Franz Watz",null,"Musikverlag Bernhard Geiger","KiKo 14"]
[58,"Andulko Safarova","poka schnell","Symphonic Suite","Boss Walter","Fred Borge",null,"Musikverlag Frank","KiKo 15"]
[59,"Angels","Polka","Tessinerlieder","Bourbon René","Frey Hans",null,"Musikverlag Grolimund","Kiko 16"]
[60,"Annen Polka","Pop","Vaterlandslieder","Bourgeois Derek","Fulvio Creux",null,"Musikverlag Rundel","Kiko 17"]
[61,"Annie get your gun","Potpourri","Volkslieder-Potpourri","Brandon Barnes","Gerald Weinkopf",null,"Mythen Verlag","Kiko 18"]
[62,"Antarctica","Prozessionsmarsch",null,"Brendan Graham / Rolf Lovland","Gerhard Hafner",null,"Ney Arthur Musikverlag","KiKo 2013"]
[63,"Appenzeller-Alpenbitter","Rag",null,"Brian May","Gerrens Pit",null,"Norsk","Kiko 2020"]
[64,"Aqulia Volante","Samba",null,"Brogli Kurt","Gilbert Tinner",null,"Obrasso","Kiko 2024"]
[65,"Arc-en-ciel","Schlager",null,"Brunner Carlo","Goff Richards",null,"Obrasso - Verlag","Mai 18"]
[66,"Arosa","Serenade",null,"Bryan Adams","Gottlöber Lothar",null,"ObrassoVerlag AG","MT 2024"]
[70,"Arrival","Slowfox",null,"Bulla Stephen","Greber Walter",null,"Power Music"]
[71,"Arsenal","Solo Euphonium",null,"Burgener Otto","Gutzeit Erich",null,"Rauber Musik"]
[73,"Au pays Lorrain","Stadion Kulthits",null,"Burkhardt V.","H.R.Binder",null,"Reiner Max & Söhne"]
[74,"Auf der Jagd","Suite",null,"Burkhardt Viktor","Hammerschmidt G.",null,"Rhythmus Verlag"]
[75,"Auf der Vogelwiese","Swing",null,"Burle Karel","Hannickel Mike",null,"Ringeisen Max Verlag"]
[79,"Auf sonnigen Höh'n","Symphonie",null,"Büttler Karl","Hans Eibl",null,"Ringeisen Musikverlag"]
[80,"Auf- und Abzug der Gnomengarde","Symphony",null,"Buzzi","Hans Hartwig",null,"Roosendaal Nederland"]
[81,"Auf weiter Flur","Tango",null,"C. Carl","Harald Kolasch",null,"Rudi Seifert Studio Verlag"]
[82,"Auld lang syne","Trauermusik",null,"C. Friedemann","Harmoniemusik Rohrdorf",null,"Rudo Verlag"]
[83,"Autumn Leaves","Unterhaltung",null,"Campomori Enrico","Harry Gregson Williams",null,"Rudo-Verlag"]
[84,"Ave Maria","Volkslieder",null,"Carena Felice","Häusser Hans Egon",null,"Ruh Musik AG"]
[85,"Ave verum-KV 618 Holzbläserquintett","Volkslieder-Medley",null,"Carl Friedmann","Häusser Hans-Egon",null,"Rundel GmbH"]
[87,"Baba Yetu","Volkstümlich",null,"Carl Orff","Hautvast Cartney",null,"Rundel Siegfried"]
[88,"Baby Elephant Walk","Walzer",null,"Carl Wittrock","Hautvast Willy",null,"Rundel Siegfried Musikverlag"]
[90,"Baby-Face",null,null,"Carlos Santana","Heinz Dieter Paul",null,"Saner W. Verlag"]
[95,"Backdraft",null,null,"Celine Dion","Hempel Jurjen",null,"Scherzando"]
[96,"Badener Gold",null,null,"Cesarini Franco","Henk Hogestein",null,"Scherzando Music"]
[97,"Badenfahrt 1947",null,null,"Channel Bruce/Cobb Margaret","Herrmannsdörfer Heinz",null,"Schorer Publications"]
[98,"Badenfahrt-Marschlied",null,null,"Chaplin,Delange,Willson,Phillips,Parsons","Hewitt C. W.",null,"Schori F. Verlag"]
[99,"Badenweiler Marsch",null,null,"Charles Smalls","Higgins John",null,"Schröer Hermann"]
[100,"Ballata per te",null,null,"Chico Buarque /Ly. By U. Niebergall& E.Schecko","Huggens Ted",null,"Teckel-Verlag Kühn Paul"]
[101,"Banana Rock",null,null,"Chopin F.","Iwai Naohiro",null,"Tessiner Musikverlag"]
[102,"Band of Brothers",null,null,"Christoph Walter","Jack Bullock",null,"Tierolff Muziekcenttrale"]
[103,"Band Power",null,null,"Christopher Tin","Jahreis Erwin",null,"Verlag Rudi Seifert"]
[104,"Bannergruss",null,null,"Clark Maurice","James Kazik",null,"Wicki Milano"]
[106,"Barnum and Bailey's Favorite",null,null,"Conradi","James L. Horsay",null,"Wind Art"]
[107,"Bayrische Polka",null,null,"Conti/ Conners/ Robbins","Jan Müller"]
[108,"Beach Boys",null,null,"Cori J. N.","Jan van Kraeydonck"]
[109,"Beautiful Danxia - Rainbow Mountains",null,null,"Cosmar Harald","Jan van Kraeydonk"]
[110,"Behüt Dich Gott",null,null,"Count Basie","Jaroslav Ondra"]
[114,"Beim Dorfwirt",null,null,"Curnow James","Jaroslav Zeman"]
[115,"Beim Feste",null,null,"D. Paich/ J. Porcaro/ S. Lukather","Jay Bocook"]
[116,"Belisar",null,null,"Daetwyler Jean","Jérome Thomas"]
[117,"Bellaria",null,null,"Damm Gustav","Jerry Brubaker"]
[118,"Belle of the Ball",null,null,"Darling John","Jirka Kadlec"]
[119,"Bellinzona Marsch",null,null,"Dätwyler J.","Johan de Meij"]
[123,"Berlin wie es weint und lacht",null,null,"Dätwyler Jean","John Glenesk Mortimer"]
[126,"Berliner Luft",null,null,"David Franz","John Moss"]
[128,"Berner Jubiläumsmarsch",null,null,"David Shire","John Nimbly"]
[129,"Bernina",null,null,"Davis, Onorati, Simeone","John Ryan"]
[130,"Best songs ever",null,null,"De Curtis Ernesto","John Wasson"]
[131,"Biel 76 Marsch",null,null,"De Haan Jacob","Johnnie Vinson"]
[133,"Billy-Boy",null,null,"De Haan Jan","Johny Ocean"]
[134,"Birdland",null,null,"Dean Jones","Jonny Ocean"]
[136,"Bis bald auf Wiedersehen",null,null,"Denny Ray/Moore Pete","Josef Kotay"]
[138,"Bis früh um Fünfe",null,null,"Di Ghisallo Luigi","Jugel Karl"]
[139,"Biscaya",null,null,"diane Warren","Jules Hendriks"]
[140,"Black Bottom",null,null,"Dimitri Bortniansky","Kabec Vlad"]
[141,"Blitz Party",null,null,"Dizzy Stratford","Kahlfeld G."]
[142,"Blow the trumpets",null,null,"Djawadi Ramin","Kathe M."]
[143,"Blow your Horn",null,null,"Domenico Modugno, Franco Migliacci","Kees Vlak"]
[145,"Blumengeflüster",null,null,"Donizetti","Keith Terrett"]
[149,"Bohemian Rahpsody",null,null,"Donizetti G.","Kernen Roland"]
[153,"Böhmische Liebe",null,null,"Eddie Cooley","Kjaernes Bjorn Morten"]
[154,"Böhmische Musik",null,null,"Edvard Grieg","Klaas van der Woude"]
[158,"Böhmischer Traum",null,null,"Edward Elgar","Klaus Fiellmann"]
[159,"Böhmisches Feuer",null,null,"Egidius H.","Kleine Schaars Peter"]
[160,"Bon Jovi - Rock Mix",null,null,"Eilenberg R.","Kliment Hans"]
[162,"Boogie for Trumpets",null,null,"Eilenberg Richard","Kokelaar Karel"]
[164,"Boogie Woogie Bugle Boy",null,null,"Elgar Edward","Kolditz Hans"]
[166,"Born to be Wild",null,null,"Elton John","Kothera Georg"]
[167,"Bourbon Street",null,null,"Elvis Presley","Kubat J."]
[169,"Brasiliana",null,null,"Emil Wallimann","Kurt Engelmann"]
[170,"Brass Parade",null,null,"Ennio Moricone","Kurt Gäbele"]
[171,"Brasses to the Fore",null,null,"Ermanno Celotti","Larry Foster"]
[172,"Brautchor",null,null,"Ermatinger Emil","Larry Norred"]
[173,"Brazilian Bay Dance",null,null,"Ernest Gold","Leigh Baker"]
[174,"Bright Future",null,null,"Etzel Roy/Wilden Gert","Leyden Norman"]
[175,"Brindisi",null,null,"Everaarts Mathieu","Linharek Franto"]
[176,"Brislach",null,null,"Evers Harm","Loentij Dunaev"]
[178,"Brother Bear",null,null,"Farian Frank","Löffler Edmund"]
[179,"Brummerl-Polka",null,null,"Farner Jakob","Löffler Willi"]
[180,"Bryan Adams",null,null,"Ferstl Herbert","Lorenzo Bocci"]
[181,"Bundesfeier Marsch",null,null,"Fetras Oscar","Luc Rodenmacher"]
[182,"Bundesrat Gnägi Marsch",null,null,"Fihn Peter","Maas Wim"]
[184,"Buntes Laub",null,null,"Fillinger Hans","Maeder Heinz"]
[185,"Buretanz",null,null,"Fischer Hermann","Manazza Luigi"]
[187,"Bye Bye Spiritual",null,null,"Forster M. H.","Mantegazzi G. B."]
[190,"Cabaret",null,null,"Fr. Silcher","Marcel Saurer"]
[192,"Can`take my eyes off you",null,null,"Francios-Adrien Boieldieu","Markus Götz"]
[194,"Cane e Gatto",null,null,"Franco Cesarini","Masato Myokoin"]
[196,"Canyon Passage",null,null,"Frank Fred L.","Maston John"]
[197,"Canzonetta",null,null,"Frank Stallone / Lorenzo Bocci","McAllen Tom"]
[198,"Caribbean Beat",null,null,"Frankenstein Lutz","Mellema Cor. M."]
[199,"Carmen Ouvertüre",null,null,"Franz Meierhofer","Michael Jerg"]
[200,"Carol of the Bell",null,null,"Franz Schubert","Michael Kuhn"]
[201,"Castellum",null,null,"Freddie Mercury","Mike Sutherland"]
[202,"Celebrate",null,null,"Freedman Max C./De Knight Jimmy","Mnozil Brass / Brighton"]
[203,"Charles Chaplin",null,null,"Frei Fridolin","Möckel Hans"]
[204,"Charleston Chorly",null,null,"Freivogel Hans","Molenaar Jan"]
[205,"Charlotta",null,null,"Freudenthaler Peter/Hinkel Volker","Molenaar P.J."]
[207,"Chiemgauer-Bass-Sololändler",null,null,"Frey Hans","Moralli/ Belolo"]
[208,"Children of the World",null,null,"Friedel Geratsch","Morita Kazuhiro"]
[209,"Choca Carioca",null,null,"Friedemann C.","Mortimer John Glenesk"]
[210,"Choclat",null,null,"Friedemann Carl","Müller Anton"]
[211,"Choeur des Tiganes /Zigeunerchor",null,null,"Fritz Rickli","Naohiro Iwai"]
[212,"Choral alpin",null,null,"Fucik Julius","Nick Hillary"]
[214,"Choral and Rock-Out",null,null,"Fülling Eugen","Nowak Jerry"]
[215,"Christmas Swing",null,null,"Furter Th.","Ocean Johny"]
[217,"Clarinet Candy",null,null,"Furter Theo","Otto Wimmer"]
[218,"Claudia",null,null,"G. Acklin","Oud Thijs"]
[219,"Clocks",null,null,"G. Buitenhuis","P.Kühn"]
[220,"Come back to Sorrento",null,null,"G.Rossini","Paul Lavvender"]
[226,"Comfort Ye My People",null,null,"Gade Niels W.","Paul Murta"]
[229,"Concertino für Blasorchester",null,null,"Geisler Michael","Paul Murtha"]
[230,"Concerto d'Amore",null,null,"Genhart W.","Paul Nagler"]
[233,"Concerto per Clarinetto",null,null,"Georg Friedrich Händel","Peeters Marcel"]
[234,"Concorde Marsch",null,null,"Georg Fürst","Peter A. Platt"]
[235,"Congratulations",null,null,"George Doughty","Peter King"]
[236,"Conquest of paradise",null,null,"George Fridrich Handel","Peter Kleine Schaars"]
[240,"Cornfield Rock",null,null,"Georges Bizet","Peter Schad"]
[241,"Coronation March",null,null,"Gerd Schmidt / Lyrics by Günter Loose","Peter Wilhousky"]
[243,"Country and Western",null,null,"Gershwin - Jaroc","Phili Sparke"]
[244,"Credo",null,null,"Gershwin George","Philip Spark"]
[246,"Crocodile Rock",null,null,"Gian Piero Reverberi + Luigi Giordano","Pollak Franz"]
[247,"Crying at the Discoteque",null,null,"Giant, Hess, Hill, Kay, Kaye, Lee","Posch Gerard"]
[248,"Dancing-Party",null,null,"Gietz Heinz","R. Beck"]
[249,"Dankeschön Bert Kämpfert",null,null,"Gilbert Tinner","Rabe Stefan"]
[252,"Das Alpenkorps",null,null,"Giocchina Rossini","Ravenal Dick"]
[253,"Das Banner weht",null,null,"Giocchino Rossini","Ray Woodfield"]
[254,"Das Leben ein Kampf",null,null,"Gion B. Casanova","Reckling A."]
[255,"Das Lied der Berge",null,null,"Giorgio Moroder","Reter Graham"]
[256,"Dawn of a new day",null,null,"Giovanni Gastoldi","Rhinow Hans-Joachim"]
[259,"Days of Swing",null,null,"Giuseppe Verdi","Rieks Van der Velde"]
[260,"Deep in the Heart of Texas",null,null,"Gloria Gainor","Ringeisen M."]
[263,"De-Garde",null,null,"Goff Richards","Ringeisen Max"]
[264,"Dem Villiger Stumpen",null,null,"Gomez Ruiz/Manuel Francisco","Rob Balfoort"]
[265,"Der Ackersmann",null,null,"Goodmann S./Woitkewitsch T.","Rob van Reijmersdal"]
[266,"Der alte Brummbär",null,null,"Gottlöber Lothar","Robert Allmend"]
[268,"Der alte Bumser",null,null,"Graetsch H.","Robert Longfield"]
[269,"Der Anton aus Tirol",null,null,"Greenwood J.A.","Robert W. Smith"]
[270,"Der Barbier von Sevilla",null,null,"Grob R./Müller A.","Roland Kernen"]
[272,"der einsame Hirte",null,null,"Grolimund H.","Roland Smeets"]
[273,"Der fidele Bassist",null,null,"Grund Bert","Roland Zaugg"]
[275,"Der gute Kamerad",null,null,"Guiseppe Verdi","Römer Paul"]
[277,"Der Herr Tubist",null,null,"Gun Hyung Yoo/ Jai Sang Park","Ron Sebregts"]
[278,"Der Kalif von Bagdad",null,null,"Haag Willy","Ron Sebrets"]
[279,"Der Magnetberg",null,null,"Häberling Albert","Rossow A."]
[280,"Der österreichische Soldat",null,null,"Häfeli Walter","Rossow Albert"]
[281,"Der Struwwelpeter",null,null,"Hamm J. V.","Royer Günter"]
[282,"Der Teufelsbassist",null,null,"Hämmerie Toni","Rudi Frei"]
[283,"Der verrückte Wecker",null,null,"Hammerschmidt G.","Rudi Hofer"]
[284,"Der Wanderer im Gebirge",null,null,"Hammerstein,Rodgers","Rudi Seifert"]
[286,"Des Hirten Abendgebet",null,null,"Hammes Gerd","Ruh E."]
[287,"Des Sennen Abschied",null,null,"Hammond Albert/Bettis John","Rundel Siegfried"]
[288,"Deutschmeister-Regiments-Marsch",null,null,"Händel G.F.","Rust A."]
[289,"Diamanten-Polka",null,null,"Händel Georg Friedrich","Sacci Frank"]
[290,"Diavolezza",null,null,"Händel George Friedrich","Sandy Smith"]
[291,"Die beiden Savoyarden",null,null,"Handy W. C.","Scheffer Pi"]
[292,"Die diebische Elster",null,null,"Hans Zimmer","Schmidt Hermann"]
[293,"Die Eiche erzählt",null,null,"Hans Zimmer / Nick Glennie","Schmidt/Köthen"]
[294,"Die Geheimnisse der Etsch",null,null,"Harm Evers","Schmidt-Köthen"]
[295,"Die kleine Kneipe",null,null,"Hartmann Bruno","Schneider Manfred"]
[298,"Die Ländler-Solisten",null,null,"Hartwig Hans","Schneiders Hardy"]
[299,"Die Macht des Schicksals",null,null,"Hasselmann Viktor","Schröder M."]
[300,"Die Mühle im Schwarzwald",null,null,"Hassler Hans Leo","Scott Richards"]
[301,"Die neue Staccato Polka",null,null,"Hatley / Steinberg","Sean o' Loughlin"]
[302,"Die Rose vom Thunersee",null,null,"Haydn Joseph","Sebregts Ron"]
[303,"Die Verlobung vor der Trommel",null,null,"Hazy Osterwald","Seifert R."]
[305,"Die Zaubertrompete",null,null,"Hecht","Seifert Rudi"]
[306,"Discover the Band",null,null,"Henderson Ray","Semjon Barlas"]
[307,"Divertimento Classico",null,null,"Henry mancini","Sevillanas Hector"]
[308,"Dixieland Selection Number One",null,null,"Hentschke Heinz","Siegfried Rundel"]
[310,"Don Pasquale",null,null,"Hermann Dostal","Simon Felder"]
[311,"Don Pedro",null,null,"Hermann Jerry","Simon Felderer"]
[312,"Don`t stop me now",null,null,"Hernandez Rafael","simon Kevin"]
[313,"Donausagen",null,null,"Herold F.","Stefan Schalgin"]
[314,"Dr Schacher Seppli",null,null,"Herrmann Martin","Steve Cortland"]
[315,"Dreaming Celebration",null,null,"Heusser Hans","Steve Mc Millan"]
[316,"Drei Haselnüsse für Aschenbrödel",null,null,"Hippenmeyer W.","Stig Gustafson"]
[317,"Drina Mars",null,null,"Honegger Hans","Stoffels E."]
[319,"Du meiner Väter Land",null,null,"Huber Büne","Ted Parson"]
[320,"Du nur du",null,null,"Huber Paul","Ted Ricketts"]
[321,"Durch Gounod's Zauberwelt",null,null,"Huggens Ted","Thijs Oud"]
[322,"Durch Kampf zum Sieg",null,null,"Huonder Ivo","Thomas Berghoff"]
[323,"Ease on down the road",null,null,"Idle Eric","Thomas Doss"]
[324,"Edelweiss und Alpenrose",null,null,"Irving Berlin","Thomas Rüedi"]
[326,"Ehr und Preis",null,null,"Ivo Huonder","Tiemersma S."]
[329,"eidgenossen",null,null,"Iwai Naohiro","Tim Waters"]
[330,"Eiger-Mönch-Jungfrau",null,null,"J. Daetwyler","Tony Osaer"]
[331,"Ein bisschen Spass…",null,null,"J. Howard/B. Moll/R. King","Trèves Jean"]
[361,"Ein Frühlingsmorgen",null,null,"J.W.Stole","Tuschla Walter"]
[362,"Ein Reisetagebuch",null,null,"Jacob de Haan","Uwe Kohls"]
[363,"Ein schönes Wochenende",null,null,"Jaeggi Stephan","Van Auken Zane"]
[423,"Eine kleine Nachtmusik",null,null,"Jäggi Stephan","Van der Beek Wil"]
[427,"Einer für alle, alle für einen",null,null,"Jahan de Meij","van der Heide Hans"]
[428,"Einig Volk",null,null,"James Horner","van der Veken J."]
[449,"El Bimbo",null,null,"James Last","Van Kammen A."]
[464,"El Caballero",null,null,"James Rich / Boots Randolph","van Kraeydonck Jan"]
[466,"El Cumbanchero",null,null,"James Swearingen","Van Leeuwen S. P."]
[474,"El Pedro",null,null,"Jan Ceulemans","Van Lijnschooten Henk"]
[477,"Elisabeth Serenade",null,null,"Jan Van der Roost","Villinger Max"]
[491,"Elitekorps",null,null,"Jankovec Jaroslav","Vincent van den Bijlaard"]
[502,"Elvis Rocks",null,null,"Jaques Offenbach","Vinson Johnnie"]
[506,"Emotions",null,null,"Jean-Pierre Fleury","Viziru Mihail"]
[507,"Empor zur Harmonie",null,null,"Jecker W.","Wagner Otto"]
[511,"English Suite",null,null,"Jennings Will/Sample Joe","Waignein André"]
[512,"Ennet am Gotthard",null,null,"Jenny Albert","Walter Kalschnig"]
[513,"Erika",null,null,"Jerry Gray","Walters Harold L."]
[515,"Erinnerungen",null,null,"Jessel Leon","Warwas Fritz"]
[520,"Erwachendes Leben",null,null,"Jewell Fred","Watson Ty"]
[522,"Erzherzog Albrecht Marsch",null,null,"Jim Steinman","Watz Franz"]
[525,"Es steht im Tor",null,null,"Jimmie Davis / Charles Mitchell","Weinkopf Gerald"]
[526,"Escamito",null,null,"Jjoey Tempest / Robert Buckley","Weinkopf Gerald, Vejvoda Jaromir"]
[527,"Espana Cani",null,null,"Joe Garland","Widemair Walter/Seifert Rudi"]
[528,"Estudiantina",null,null,"Joe Zawinul","Wilfried Kornmeier"]
[529,"Europa",null,null,"Johan De Meij","Will Jennings"]
[530,"Evergreen-Sterne",null,null,"Johan Nijs","Willi März"]
[531,"Every Valley",null,null,"Johan Strauss Jr.","William Brighton"]
[534,"Everybody needs Somebody to love",null,null,"Johann Sebastian Bach","Wolfgang Wössner"]
[535,"Exodus",null,null,"Johann Stauss Vater","Wyss Rudolf"]
[538,"Explorations",null,null,"Johann Strauss","Yoder Paul"]
[544,"Eye of the Tiger",null,null,"Johannes Brahms","Zaugg R."]
[551,"Faces of Proudness",null,null,"John Bon Jovi","Zbysek Bittmar"]
[557,"Fackeltanz Nr. 1",null,null,"John Kander/ Rieks van der Velde","Zollinger W. + D."]
[558,"Fairplay",null,null,"John Paul Young","Zurmühle O."]
[559,"Fanfare 2000",null,null,"John Philip Sousa","Zurmühle Otto"]
[560,"Fanfare Festive",null,null,"John Powell"]
[561,"Fanfare, Dance and Choral",null,null,"John Williams"]
[562,"Fanfaren",null,null,"Johnson H./Moll B./King R."]
[563,"Fanfaren Marsch",null,null,"Johnson Timothy"]
[564,"Fanfaren-Intrada",null,null,"Joplin Scott"]
[565,"Far From over",null,null,"Jordi Ripoll"]
[566,"Farandole",null,null,"Josef Poncar"]
[567,"Fascinating Drums",null,null,"Josef Strauss"]
[568,"Fascination",null,null,"Joseph Hayden"]
[569,"Feel the Spirit",null,null,"Joseph W."]
[570,"Feierlicher Marsch",null,null,"Jurek Wilh. Aug."]
[571,"Felddivision 5",null,null,"Kal Mann / David Appell"]
[572,"Felicita",null,null,"Kämpfert Bert, Rehbein Herbert"]
[573,"Festgruss",null,null,"Kander J./Ebb F."]
[574,"Festhymnus",null,null,"Kander John"]
[575,"Festival Day",null,null,"Karl Komzak"]
[576,"Festjubel",null,null,"Kaye / Prince"]
[577,"Festliche Fanfaren",null,null,"Kazuyasu Kaminaga"]
[578,"Festliche Intonation für Blasorchester",null,null,"Kees Vlak"]
[579,"Festmusik",null,null,"Kempter L."]
[580,"Festouverture",null,null,"Kenny Terry"]
[581,"Festparade",null,null,"Kernen Roland"]
[582,"Feuer und Eis",null,null,"Keysten R."]
[583,"Fever",null,null,"Keysten Ralf"]
[584,"Fiesta y flores",null,null,"Kiesler E."]
[585,"Figaro - Marsch",null,null,"King Karl L."]
[586,"Film-Festival",null,null,"Kinzl Franz"]
[587,"Final Countdown",null,null,"Kipfer Christian"]
[588,"Finkenschlag",null,null,"Klaus Badlet"]
[589,"Finlandia",null,null,"Kleeb Sales"]
[590,"Five minutes with Cole Porter",null,null,"Klees Werner"]
[591,"Flash Dance",null,null,"Klein Josef"]
[592,"Flashdance",null,null,"Kliment Hans"]
[593,"Flic Flac",null,null,"Kling Henry"]
[594,"Fliegermarsch",null,null,"Klingele Walter"]
[595,"Florentiner Marsch",null,null,"Kmoch Frantisek"]
[596,"Folies Bergère",null,null,"Kmoch Franz"]
[597,"Follow the beat",null,null,"Koch Herbert"]
[598,"For unto us a Child is born",null,null,"Kolditz Hans"]
[599,"Forrest Gump - Main Title",null,null,"Komzak K."]
[600,"Frei wie der Adler",null,null,"Komzak Karl"]
[601,"Freie Eidgenossen",null,null,"Königshofer Franz"]
[602,"Freie Welt",null,null,"Körner B."]
[603,"Freies Land",null,null,"Kosma J./Prevert J."]
[604,"freude schöner Götterfunken",null,null,"Kramer P. A."]
[605,"Fribourg",null,null,"Krauer R."]
[606,"Frieden auf der Welt",null,null,"Kristen Anderson-Lopez / Roberet Lopez"]
[607,"Froh und Heiter",null,null,"Kubes Ladislav"]
[608,"Froher Wanderer",null,null,"Kugler Franz"]
[609,"Frohes Leben",null,null,"Künzle Adolf"]
[610,"Frohes Wiederseh'n",null,null,"Kurt Brogli"]
[611,"Fröhliche Polka",null,null,"Kurt Gäble"]
[612,"Frohsinn auf den Bergen",null,null,"Kurt Pascher"]
[613,"Frohsinn Marsch",null,null,"Kurt Vogel"]
[614,"From Lucerne to Weggis",null,null,"L. Quarantotto, F. Sartori, F. Peterson"]
[615,"Frühlings-Einzug",null,null,"La Rocca N."]
[616,"Für Stadt und Land",null,null,"Lange Willy"]
[617,"Furchtlos und treu",null,null,"Larry Neeck"]
[618,"Gablonzer Perlen",null,null,"Laseroms Wim"]
[619,"Gabriellas Song",null,null,"Lee/Leoni/von Rohr"]
[620,"Gabriels Oboe",null,null,"Leemann Max"]
[621,"Game of Thrones",null,null,"Legrady Thomas"]
[622,"Gangnam Style",null,null,"Lemke W."]
[623,"Gebet und Schlachthymne",null,null,"Lennon John"]
[624,"Gedenke mein",null,null,"Leroy Anderson"]
[625,"Gedenken",null,null,"Lincke Paul"]
[626,"Gentry's Triumphal March",null,null,"Lipman-Ham"]
[627,"Geschwind Marsch",null,null,"Lloyd Webber"]
[628,"Get up (A Banda)",null,null,"Lohmann Georg"]
[629,"Gimme some Lovin",null,null,"Lotterer Gustav"]
[631,"Give us peace",null,null,"Lou Bega"]
[632,"Gladiator",null,null,"Louis Prima"]
[633,"Glenn beats the Battle of Jericho",null,null,"Luc Gistel"]
[634,"Glenn Miller Medley",null,null,"Ludwig van Beethoven"]
[635,"Glocken der Heimat",null,null,"Luigi di Ghisallo"]
[636,"Glockengeläute",null,null,"Luis Bacalow"]
[637,"Gloria Nr. 33",null,null,"Luis Carlos Neves Serra"]
[638,"Glory Fanfare",null,null,"Luis Martinus"]
[639,"Go ring them Bells",null,null,"Lukas Graham"]
[640,"Gonna Fly Now",null,null,"Lüthold Ernst"]
[641,"Grande Marche for the Prince of Wales",null,null,"MacDermot Galt/Rado James/Ragni Gerome"]
[642,"Grandfather`s Clock",null,null,"Mancini Henry"]
[643,"Greatest Hits and Evergreens",null,null,"Manfred Sternberger"]
[644,"Gruss an Bern",null,null,"Mantegazzi G. B."]
[645,"Gruss an das Worblental",null,null,"Marc Shaiman"]
[646,"Guadalajara",null,null,"Marchetti F. D."]
[647,"Gummi-Mambo",null,null,"Mario Bürki"]
[648,"Hair",null,null,"Marks Johnny"]
[649,"Halleluja",null,null,"Marquina-Hanniken"]
[650,"Hallelujah Chorus",null,null,"Mars Bonfire"]
[651,"Hanover Hymn",null,null,"Martin Bill"]
[652,"Hans Wettstein Marsch",null,null,"Mas Quiles Juan Vicente"]
[653,"Happy Polka 3",null,null,"Mathias Rauch"]
[654,"Haroliza",null,null,"McBroom Amanda"]
[655,"Harry Potter and the philosophers Stone",null,null,"Meijns Albert"]
[656,"Hava Nagilah",null,null,"Mey Reinhard"]
[657,"Heaven",null,null,"Meyerbeer G."]
[658,"Heaven`s Light",null,null,"Michael Fugain"]
[659,"Heimweh-Walzer",null,null,"Michael Geisler"]
[660,"Hello Dolly",null,null,"Michael Jackson"]
[661,"Hello New York",null,null,"Michael Jackson// Rod Temperton"]
[662,"Henry Mancini in Concert",null,null,"Michael Kamen"]
[663,"Herbstruf",null,null,"Michael Korb / Ulli Roever"]
[664,"Heute so, morgen so",null,null,"Michael Nyman"]
[665,"Hey Baby",null,null,"Michel Kamen"]
[666,"High Spirits",null,null,"Miller Glenn"]
[667,"Highland Cathedral",null,null,"Möckel Hans"]
[668,"Hindenburg",null,null,"Monteverdi Claudio"]
[669,"Hine e Hine",null,null,"Morali J."]
[670,"Hobbits Dance and Hymn",null,null,"Morgan Claude"]
[671,"Hochzeitsnacht im Paradies",null,null,"Morricone Ennio"]
[672,"Holz Quintett in Es-Dur, Op. 88, Nr.2",null,null,"Mosch Ernst"]
[673,"Honur the Brave",null,null,"Moss Katie"]
[674,"Hooray! Hooray!",null,null,"Mozart Wolfgan Amadeus"]
[675,"Hootenanny",null,null,"Mozart Wolfgang Amadeus"]
[676,"Horalka",null,null,"Müller Albert"]
[677,"How to train your Dragon",null,null,"Müller H."]
[678,"Huntsman's Holiday",null,null,"Müller H./Frei F."]
[679,"Hunyadi Indulo",null,null,"Müller Hans"]
[680,"Hymne",null,null,"Myddleton W. H."]
[681,"Hymne für Blasorchester",null,null,"Mykola Leontovych"]
[682,"I belive Ican Fly",null,null,"N:G. Rodgers, A. Bard, A. Wollbeck"]
[683,"I will follow him",null,null,"Nagel Willi"]
[684,"I will follow jim",null,null,"Neil Diamond"]
[685,"I will survive",null,null,"Nessler Victor E."]
[686,"I` m a Beliver",null,null,"Neukomm Werner"]
[687,"I`m so excited",null,null,"Neumayer Sepp"]
[688,"Ice Cream",null,null,"Ney Arthur"]
[689,"Ich bete an die Macht der Liebe",null,null,"Nicholas Buron"]
[690,"Ich hab das Glück bestellt",null,null,"Nijs Johan"]
[691,"Ich war noch niemals in New York",null,null,"Norbert Gälle"]
[692,"I'd like to teach the World to sing",null,null,"Norman Ascot/ Lyrics by Renée Marcard"]
[693,"If you leave me now",null,null,"O.Hayes"]
[694,"Il Postigliore d^Amore",null,null,"Offenbach J."]
[695,"Il Postino",null,null,"Offenbach Jacques"]
[696,"Im Frühjahr",null,null,"Oldörp Fred"]
[697,"I'm on my way",null,null,"Orsomando Giovanni"]
[698,"Im Röseligarte",null,null,"Oscar Tschuor"]
[699,"Im Rosengarten",null,null,"Oshrat K. / Orr S."]
[700,"Im weissen Rössl",null,null,"Otto M. Schwarz"]
[701,"In the Lime - Tree Avenue",null,null,"P. Alberech Zwyssig"]
[702,"In the Mood",null,null,"Pablo Beltran Ruiz"]
[703,"Interlaken-Jungfrau",null,null,"Papert Willi"]
[704,"Intrada",null,null,"Parlow Albert"]
[705,"Intrada Solenne",null,null,"Pasqual Mariquina"]
[706,"Introduction and modern beat",null,null,"Pastore Carmine"]
[707,"Io senza te",null,null,"Pauker A."]
[708,"Irish Charms",null,null,"Paul Epworth"]
[709,"Irish Sketches",null,null,"Paul Jabara& Paul Schaffer"]
[710,"Is this the Way to Amarillo",null,null,"Paul Lincke"]
[711,"It`s Raining Men",null,null,"Paul Simon"]
[712,"Italienische Lustspiel Ouverture",null,null,"Pawel Stanek"]
[713,"Jack's Rag",null,null,"Payer Robert"]
[714,"Jai Ho",null,null,"Penders Jef"]
[715,"Jericho",null,null,"Pepe Guizar"]
[716,"Jerusalem, Jerusalem",null,null,"Peter Catera"]
[717,"Jesus Christ Superstar",null,null,"Peter Erhard"]
[718,"Joshua",null,null,"Peter Iilich Tschaikovsky"]
[719,"Joy to the world",null,null,"Peter Kleine Schaar"]
[720,"Jubel Trubel Heiterkeit",null,null,"Peter Reber"]
[721,"Jubelklänge",null,null,"Peter Schad"]
[722,"Jubiläumsmarsch",null,null,"Peterik/ Sullivan"]
[723,"Jugend voran",null,null,"Petr Spanily"]
[724,"Jugendträume",null,null,"Pfortner Karl"]
[725,"Juke Box",null,null,"Piero Umiliani / Sam Pottle"]
[726,"Jumpin` at the Woodside",null,null,"Pit/ Ly. By Heinz Gudera und Walter Leykauf"]
[727,"Junge Idee",null,null,"Pointer Sisters"]
[728,"Jurassic Park",null,null,"Porter Cole"]
[729,"Just a gigolo/I ain't got nobody",null,null,"Poupe Frantisek"]
[730,"Karl der Kühne",null,null,"Prado Perez"]
[731,"King-Size",null,null,"Pressel Gustav"]
[732,"Klarinetten Twist",null,null,"Prima Louis"]
[733,"Kleine Ungarische Rhapsodie",null,null,"Princess Te Rangi Pai"]
[734,"Knittel-Twist",null,null,"Prohaszka Adam"]
[735,"Komm, mach doch mit",null,null,"Purcell"]
[736,"Konzert Ouverture",null,null,"Purcell H."]
[737,"Kornblumen",null,null,"Queen"]
[738,"Künstler Quadrille",null,null,"Rachel Portmann"]
[739,"La Bannière",null,null,"Rahman/ Michael Brown"]
[740,"La Golondrina",null,null,"Raymond Fred"]
[741,"La Parranda",null,null,"Reinhard Mey"]
[742,"La sera sper il Lagg",null,null,"Reinter"]
[743,"La Sorella",null,null,"René Berberat"]
[744,"La Tromba Espagnola",null,null,"Richard Strauss"]
[745,"Land of Hope and Glory",null,null,"Richard Wagner"]
[746,"Landi 39",null,null,"Riedemann Peter"]
[747,"Ländliches Lied",null,null,"Rimmer Drake"]
[748,"Larghetto pastorale",null,null,"Rimski Nikolai"]
[749,"Largo al Facototum della Citta",null,null,"Ringeisen Max"]
[750,"Largo Nr. 43",null,null,"Ringgenberg Jörg"]
[751,"Latin Favourites",null,null,"Rob Ares"]
[752,"Latin Sounds",null,null,"Robbie Williams"]
[753,"Laurena",null,null,"Robert Charles Guidry"]
[754,"Laurona Marcha",null,null,"Robert Kelly"]
[755,"Lausbüberei'n",null,null,"Robert Planquette"]
[756,"Le Commandant",null,null,"Robert Sheldon"]
[757,"Le nozze di Figaro",null,null,"Robert W. Smith"]
[758,"Le Ranz des Vaches",null,null,"Roccard Ken"]
[759,"Leichte Cavallerie",null,null,"Roland Kernen"]
[760,"Lemon Tree",null,null,"Roland Zaugg"]
[761,"les Savojardes",null,null,"Ronald Binge"]
[762,"Let it Go",null,null,"Ronan Hardiman"]
[763,"Let me entertain you",null,null,"Rossini G."]
[764,"Let`s Twist Again",null,null,"Rossow A."]
[765,"Let's go",null,null,"Rossow Albert"]
[766,"Letzte Rose",null,null,"Röthlin A."]
[767,"Liebe Freunde",null,null,"Roy Newsom"]
[768,"Liechtensteiner-Romanze",null,null,"Rückauer Hans"]
[769,"Lineli-Walzer",null,null,"Ruh E."]
[770,"Lingua materna",null,null,"Ruiz Gabriel"]
[771,"Locarno",null,null,"Rundel Siegfried"]
[772,"Lochkovska",null,null,"Safaric Karl"]
[773,"Lord Tullamore",null,null,"Sam Fonteyn"]
[774,"Love is in the air",null,null,"Satoshi Yagisawa"]
[775,"Love shine a light",null,null,"Schanke David"]
[776,"Lustige Musikanten",null,null,"Scheffer Pi"]
[777,"Mack the Knife",null,null,"Schestag Paul"]
[778,"Madagascar",null,null,"Schild W."]
[779,"Mambo Nr. 5",null,null,"Scholz Walter"]
[780,"Man of Many Parts",null,null,"Schori F."]
[781,"Manhatten Skyline",null,null,"Schröer Hermann"]
[782,"Manitoba-Dixieland",null,null,"Schubert Franz"]
[783,"March of the Trolls",null,null,"Schwarz Otto M."]
[784,"Marche au Supplice",null,null,"Schweppe Dirk/Seelos Ambros"]
[785,"Marcia Solenne",null,null,"Schwerzmann J."]
[786,"Marco Polo",null,null,"Seeberger Adolf"]
[787,"Maremma",null,null,"Seffel X."]
[788,"Marignian",null,null,"Seifert Rudi"]
[789,"Marsch der Grenadiere",null,null,"Shemer Naomi"]
[790,"Mazedonia",null,null,"Sherman / Sherman"]
[791,"Mazury Rhapsody",null,null,"Shostakovitch Dimitri"]
[792,"Mein Herz, Dein Herz",null,null,"Sibelius Jean"]
[793,"Mein Hobby ist Musik",null,null,"Sidler F."]
[794,"Meine Braut ist bei der Feuerwehr",null,null,"Siede Ludwig"]
[795,"Memories of Cole Porter",null,null,"Siegfried Rudel"]
[796,"Memories of Sao Paulo",null,null,"Siegfried Rundel"]
[797,"Memory",null,null,"Signer Pius"]
[798,"Mexican Trumpets",null,null,"Silcher Friedrich"]
[799,"Midnight Dancer",null,null,"Sinead O`Connor"]
[800,"Mila",null,null,"Sir Edward Elgar"]
[801,"Militärländler",null,null,"Smith Richard/Bernard Felix"]
[802,"Miluska",null,null,"Sousa J. P."]
[803,"Mir Senne heis luschtig",null,null,"Sousa John Philip"]
[804,"Missa Brevis",null,null,"Stefan Nilsson"]
[805,"Mission Impossible",null,null,"Steinbeck Heinrich"]
[806,"Mister Boogie",null,null,"Stepanek Josef"]
[807,"Mit dir mal in Urlaub gehn",null,null,"Steve Daniels"]
[808,"Mit Sang und Klang",null,null,"Steve Jablonsky"]
[809,"Mixed-Pickles",null,null,"Steve Mc Millan"]
[810,"Moment for Morricone",null,null,"Steve winwood"]
[811,"Mondnacht auf der Alster",null,null,"Steven Reineke"]
[812,"Monika-Polka",null,null,"Stoeckart Jan"]
[813,"Mood Romantic",null,null,"Stolc Emil"]
[814,"Moonlight Serenade",null,null,"Stole/Del Roma/Plante"]
[815,"Morgarten 1315",null,null,"Stranner H."]
[816,"Morgengruss",null,null,"Stratford Dizzy"]
[817,"Morgens um Sieben ist die Welt noch in Ordnung",null,null,"Strauss Johann"]
[818,"Morgensonne",null,null,"Strauss Richard"]
[819,"Mountain Moments",null,null,"Strebel A."]
[820,"Music from Carmina Burana",null,null,"Stucki G."]
[821,"Musica Helvetica",null,null,"Sutherland Gavin"]
[822,"Musical-Melodien",null,null,"Svoboda Karel"]
[823,"Musik heraus",null,null,"Swander Don"]
[824,"Musik ist Trumpf",null,null,"Swearingen James L."]
[825,"Musik ist wie das Sonnenlicht",null,null,"Tarver James L."]
[826,"Musikante-Fraue",null,null,"Taylor J. S."]
[827,"Musikantenlaune",null,null,"Teike C."]
[828,"Musiktag",null,null,"Teike Carl"]
[829,"Mussinan-Marsch",null,null,"Thiemo Kraas"]
[830,"My Happy Girl",null,null,"Titl A. E."]
[831,"My Heart will go on",null,null,"Toivo Kuula"]
[832,"Mys Freiamt",null,null,"Toni Wine"]
[833,"Nabucco",null,null,"Traditional"]
[834,"Nachruf an Giuseppe Verdi",null,null,"Translateur S."]
[835,"Ne partez pas sans moi",null,null,"Trèves Jean"]
[836,"Nessun Dorma",null,null,"Tschuor Oscar"]
[837,"Netolicka Polka",null,null,"Tuschla Walter"]
[838,"New Xork, New York",null,null,"Tuschla Walter/Russler Erwin"]
[839,"New York, New York",null,null,"Udo Jürgens"]
[840,"Niederbipp",null,null,"Udo Jürgens /Lyrics by Michael Kunze"]
[841,"Nimrod",null,null,"Uebel Ernst"]
[842,"North Beach Parade",null,null,"Vacek Karel"]
[843,"Nothing Compares 2 U",null,null,"Van Beethoven Ludwig"]
[844,"Notturno",null,null,"van Lijnschooten H."]
[845,"O Frühling wie bist du so schön",null,null,"Van Lijnschooten Henk"]
[846,"O Happy Day",null,null,"Van McCoy"]
[847,"O mein Heimatland",null,null,"Vangelis"]
[848,"O schöne Gotteswelt",null,null,"Vansant Hans"]
[849,"Oesterreichische Marschperlen",null,null,"Verdi G."]
[850,"Oh Happy Day",null,null,"Verdi Giuseppe"]
[851,"Olandese",null,null,"Vesely Karel"]
[852,"Olimpica",null,null,"Vlak Kees"]
[853,"One day I'll fly away",null,null,"Völkl W./Luksch G."]
[854,"One Moment in Time",null,null,"von Blon Fr."]
[855,"One of us",null,null,"Von Blon Franz"]
[856,"Open Sky",null,null,"Von Falz-Fein E. A."]
[857,"Oregon",null,null,"Von Flotow F."]
[858,"Orpheus in der Unterwelt",null,null,"von Gluck"]
[859,"Othello",null,null,"Von Suppé Franz"]
[860,"Ouverture Symphonique",null,null,"W. Bookwood"]
[861,"Overture to a winter festival",null,null,"W.Klingele"]
[862,"Pace e Lavoro",null,null,"Wacek Wilhelm"]
[863,"Papermills Bandsmen",null,null,"Wagner Philipp"]
[864,"Paraphrase über Heim's Abendfeier",null,null,"Wagner R."]
[865,"Parole d'amour",null,null,"Wagner Richard"]
[866,"Passacaille",null,null,"Waignein André"]
[867,"Patchwork Blues",null,null,"Waldteufel Emil"]
[868,"Patrizia",null,null,"Waller Thomas, Williams Clarence"]
[869,"Pavane in Blue",null,null,"Walter schneider"]
[870,"Pensylvanaia 6 - 5000",null,null,"Walters Harold L."]
[871,"Persian March",null,null,"Warrington John"]
[873,"Petersburger Schlittenfahrt",null,null,"Watz Franz"]
[874,"Piccadilly Fanfare",null,null,"Watzlaff Erich"]
[875,"Pirates of the Caribbean",null,null,"Webber Andrew Lloyd"]
[876,"Plaisier d'amour",null,null,"Weber Heinrich"]
[877,"Playboys-Rag",null,null,"Weber Kurt"]
[878,"Plui de Roses",null,null,"Weistra W."]
[879,"Poème et Fugue",null,null,"Wenger H."]
[880,"Polka d'Alsace",null,null,"Wenzel Zittner"]
[881,"Polka pro dva Klarinety",null,null,"Wichers Joh."]
[882,"Polka Schräg",null,null,"Wili März"]
[883,"Polyhymnia",null,null,"William Rimmer"]
[884,"Pomp and Circumstance Nr. 1",null,null,"Williams John"]
[885,"Pompey",null,null,"Willson Meredith"]
[886,"Ponto Tresa Marsch",null,null,"Wim Laseroms"]
[887,"Pop looks Bach",null,null,"Wim Stalman"]
[888,"Prager Sokol-Marsch",null,null,"Winkler Gerhard"]
[889,"Princes Street Parade",null,null,"Winkler Peter Paul"]
[890,"Psalm für Blasorchester",null,null,"Woitschach Paul"]
[891,"Puppet on a String",null,null,"Wolfgang Amadeus Mozart"]
[892,"Pure Lust am Leben",null,null,"Wonder Stevie"]
[893,"Puttin on the Ritz",null,null,"Würmli E."]
[894,"Radetzky-Marsch",null,null,"Würmli Emil"]
[895,"Rag from Aegeri",null,null,"Wyss Rudolf"]
[896,"Register-Show",null,null,"Zaugg Paul"]
[897,"Reigen seliger Geister",null,null,"Zdenek Gursky"]
[898,"Remember when",null,null,"Zeller C."]
[899,"Renaissance Suite",null,null,"Zickoff"]
[900,"Requiescant in Pace",null,null,"Ziehrer C. M."]
[901,"Retraite francaise",null,null,"Zimmer/ Gerard"]
[902,"Revival Rag 1920",null,null,"Zittner Wenzel"]
[903,"Rhapsody for euphonium and concert band",null,null,"Zurmühle Otto"]
[904,"Rhapsody from Scotland",null,null,"Zwyssig/Carey/Baumgartner"]
[905,"Rigoletto"]
[906,"Rimballzello"]
[907,"Ring Ring"]
[908,"Risin out of my soul"]
[909,"Riverboat-Blues"]
[910,"Robin Hood"]
[911,"Rock around the clock"]
[912,"Rocking Parade"]
[913,"Rohrdorfer Marsch"]
[914,"Roller Coaster"]
[915,"Römerhof Marsch"]
[916,"Rondo Barocco"]
[917,"Rondo für Rosie"]
[918,"Rosamunde"]
[919,"Rosen-Gavotte"]
[920,"Ross Roy"]
[921,"Rössli-Schottisch"]
[922,"Rotary Convention"]
[923,"Rubbling Woodwinds"]
[924,"Rübezahl"]
[925,"Rudolph the red-nosed reindeer"]
[926,"Rund um J. Offenbach"]
[927,"Russian Dance Suite"]
[928,"S isch äbe ne Mönsch uf Ärde"]
[929,"Sabinchen Polka"]
[930,"Sailing"]
[931,"Saluto Lugano"]
[932,"Salvator"]
[933,"Samba Tequila"]
[934,"Samba-Crazy"]
[935,"San Carlo"]
[936,"San Francisco"]
[937,"Sandpaper Ballet"]
[938,"Sandy-Fox"]
[939,"Sarah"]
[940,"SaxoPhoning"]
[941,"Scandinavia"]
[942,"Schatz-Walzer"]
[943,"Schaut her, schaut her"]
[944,"Schiff ahoi"]
[945,"Schlachthymne und Willkommen Roms Söhne"]
[946,"Schlittschuhläufer Polka"]
[947,"Schunkel-Parade"]
[948,"Schwarzwaldmädel"]
[949,"Schweiz. Fahnenmarsch"]
[950,"Schweizerpsalm"]
[951,"Schwyzer-Soldaten"]
[952,"Sedesatka"]
[953,"See You"]
[954,"See you later aligator"]
[955,"Sefira"]
[956,"Sehnsuchtsmelodie"]
[957,"Sei nicht bös"]
[958,"Semper Fidelis"]
[959,"Serenade"]
[960,"Shake a Tailfeather"]
[961,"She`s the one"]
[962,"Sichleten Walzer"]
[963,"Sieben Fässer Wein"]
[964,"Sihlphoniker-Polka"]
[965,"Simple Gifts"]
[966,"Sinfonia per un Addio"]
[967,"Sinfonie Concertante"]
[968,"Sing Sing Sing"]
[969,"Sir Duke"]
[970,"Sizilianisches Ständchen"]
[971,"Skyfall"]
[972,"Slaidburn"]
[973,"Sleigh  ride"]
[974,"So ein Tag"]
[975,"So zwei, wie wir zwei"]
[976,"Solistentraum"]
[977,"Someone like you"]
[978,"Song from the States"]
[979,"Song of freedom"]
[980,"Songs for Tony - Sax Quartett"]
[981,"Sonority"]
[982,"Sousa-Favoriten"]
[983,"South Rampart Street Parade"]
[984,"Spanischer Tanz"]
[985,"Spanischer Zigeunertanz"]
[986,"Spatzen-Polka"]
[987,"Speedy Gonzales"]
[988,"Spirit: Stallion of the Cimarron"]
[989,"Sportpalast Polka"]
[990,"St. Jan"]
[991,"St. Louis Blues-Marsch"]
[992,"St. Patrick Dances"]
[993,"Ständchen"]
[994,"Starparade"]
[995,"Stelldichein in Oberkrain"]
[996,"Stelle dell`Argovia"]
[997,"Stetten bey de Rüs"]
[998,"Stille Wasser die sind tief"]
[999,"Stüssliger-Marsch"]
[1000,"Such A Happy Day"]
[1001,"Südböhmische Polka"]
[1002,"Suitony"]
[1003,"Summernight Rock"]
[1004,"Summertime"]
[1005,"Superstimmung"]
[1006,"Surotoki"]
[1007,"Swarovski Marsch"]
[1008,"Sway"]
[1009,"Swingin`Downbeat"]
[1010,"Swinging Brass"]
[1011,"Swiss Lady"]
[1012,"Swisswing"]
[1013,"Symphony #5-Finale"]
[1014,"Symphony No. 100"]
[1015,"Take on me"]
[1016,"Tales From The Vienna Wood / Geschichten aus dem Wienerwald"]
[1017,"Tannhauser"]
[1018,"Tarantella"]
[1019,"Teamwork"]
[1020,"Teenager Fantasie"]
[1021,"Televisions-Melodien"]
[1022,"Tete a tete"]
[1023,"That's Soul"]
[1024,"The Acrobat"]
[1025,"The Bassmen"]
[1026,"The Beatles in Concert"]
[1027,"The Bells of Corneville"]
[1028,"The best of bond"]
[1029,"The best of Queen"]
[1030,"The Call of Christmas"]
[1031,"The Cuckoo"]
[1032,"The Da Vinci Code"]
[1033,"The Entertainer"]
[1034,"The Farmer's Fair"]
[1035,"The Floral Dance"]
[1036,"The funny Pumpkins"]
[1037,"The great Locomotive Chase"]
[1038,"The happy cyclist"]
[1039,"The Hungarian Spirit"]
[1040,"The Imperial March ( Darth Vader`s Theme)"]
[1041,"The Jungel Book"]
[1042,"The ketchup song"]
[1043,"The last of the Mohicans"]
[1044,"The Laurel and Hardy Theme"]
[1045,"The Liberty Bell"]
[1046,"the lion King"]
[1047,"The little drummer boy"]
[1048,"The Logical Song"]
[1049,"The Muppets"]
[1050,"The Olympic Spirit"]
[1051,"The Phantom Brigade"]
[1052,"The Pink Panther Theme"]
[1053,"The Polar Express Medley"]
[1054,"The Rock"]
[1055,"The Rose"]
[1056,"The Second Waltz"]
[1057,"The Sound of Silence"]
[1058,"The walking frog"]
[1059,"The War of the Celts"]
[1060,"The Washington Post"]
[1061,"The winner takes it all"]
[1062,"The Young Amadeus"]
[1063,"Theme from Superman"]
[1064,"There you`ll be"]
[1065,"There's no business like show business"]
[1066,"Three Twens"]
[1067,"Thriller"]
[1068,"Tiger Rag"]
[1069,"Time to say goodbye"]
[1070,"Titanic"]
[1071,"Toccata"]
[1072,"Topas"]
[1073,"Torrents of fire"]
[1074,"Total Eclipse of Heart"]
[1075,"Total Toto"]
[1076,"Transformers"]
[1077,"Trauermarsch"]
[1078,"Treu Helvetia"]
[1079,"Trio Eugster-Hits"]
[1080,"Tritsch-Tratsch-Polka"]
[1081,"Trombones on Parade"]
[1082,"Trompet Voluntary"]
[1083,"Tropical Party"]
[1084,"Trumpet Rock"]
[1085,"Trumpet Tune and Air"]
[1086,"Trumpets in the night"]
[1087,"Tubantella"]
[1088,"Turnerlied"]
[1089,"Twelve Time Rhythm"]
[1090,"Tyrolean Tubas"]
[1091,"Über den Wolken"]
[1092,"Ueber Berg und Tal"]
[1093,"Ueber den Wolken"]
[1094,"Under the sea"]
[1095,"Une belle Histoire"]
[1096,"Ungarischer Tanz"]
[1097,"Ungarisches Bouquet"]
[1098,"Unter Donner und Blitz"]
[1099,"Unvergessener Fred Raymond"]
[1100,"Urlaubsschein"]
[1101,"Valerius Suite"]
[1102,"Valetta Rambler"]
[1103,"Variationen über ein Thema von Glinka"]
[1104,"Variations on a French Folk Song"]
[1105,"Vater Unser"]
[1106,"Venkovska"]
[1107,"Verdammt ich lieb dich"]
[1108,"Verdi"]
[1109,"Vergnügungszug"]
[1110,"Vielen Dank für die Blumen"]
[1111,"Village People on the Move"]
[1112,"Violetta"]
[1113,"Virginia"]
[1114,"Visit to George Gershwin"]
[1115,"Vivaldi`s Winter"]
[1116,"Vivat Lucerna"]
[1117,"Voices"]
[1118,"Volare"]
[1119,"Volksgruss"]
[1120,"Volkslieder im Marschtempo"]
[1121,"Volkslieder im Trompetensound"]
[1122,"Vor hundert Jahren"]
[1123,"W. Nuss vo Bümpliz"]
[1124,"Wach auf"]
[1125,"Waltz No. 2"]
[1126,"Waltzing with Strauss"]
[1127,"Walzerklänge"]
[1128,"Wann wird's mal wieder richtig Sommer?"]
[1129,"Was Grosspapa erzählt"]
[1130,"Weaner Mad'ln"]
[1131,"Weihung"]
[1132,"Wenn eine Frau die Wahrheit spricht"]
[1133,"Western Dances"]
[1134,"Who wants to live forever"]
[1135,"Wiener Bürger"]
[1136,"Wild Cat Blues"]
[1137,"William Tell March"]
[1138,"Winter Wonderland"]
[1139,"Winterlust"]
[1140,"Winterthur 86"]
[1141,"Wir Musikanten"]
[1142,"Wir Zwei"]
[null,"Wo ich auch stehe"]
[null,"Y.M.C.A."]
[null,"Yakety Sax -Sax Quartett"]
[null,"Yellow Mountains"]
[null,"You are my sunshine, my only sunshine"]
[null,"You are not alone"]
[null,"You can`t stop the beat"]
[null,"You raise me up"]
[null,"You'll never walk alone"]
[null,"Zampa"]
[null,"Zarathustra 2000"]
[null,"Zillertaler Hochzeitsmarsch"]
[null,"Zur Feier des Tages"]
[null,"Zürcher Ausstellungs Marsch"]
[null,"Zwee schnälli Bärner"]
[null,"Zwei kleine Finken"]